Nominativi dei beneficiari;Data mandato;Natura economica;Importo;Descrizione mandato;Numero mandato;TITNO_BL;2� livello;3� livello;4� livello;5� livello
TOTALERG SPA;09/01/2018;Carburanti, combustibili e lubrificanti ;247,55;Liquidazione Fattura Nr. I7452609  del 30/11/2017 (di cui Split per euro 44,64) - FORNITURA DI CARBURANTE PER AUTOTRAZIONE MEDIANTE FUEL CARD E DEI SERVIZI CONNESSI PER LE PUBBLICHE AMMINISTRAZIONI - MESE NOVEMBRE 2017;2;1;3;1;2;2
ASSITECA SPA;09/01/2018;Premi di assicurazione per responsabilit� civile verso terzi;51.617,00;PAGAMENTO PREMIO POLIZZE ASSICURATIVE ANNO 2018 ALLE GENERALI ITALIA SPA;6;1;10;4;1;3
PACI DARDACO;09/01/2018;Terreni edificabili;61.000,00;Acquisto terreno posto in Vinci foglio di mappa 38 partocella 417 e 418;5;2;2;2;1;2
TOTALERG SPA;09/01/2018;Carburanti, combustibili e lubrificanti ;493,23;Liquidazione Fattura Nr. I7452609  del 30/11/2017 (di cui Split per euro 88,94) - FORNITURA DI CARBURANTE PER AUTOTRAZIONE MEDIANTE FUEL CARD E DEI SERVIZI CONNESSI PER LE PUBBLICHE AMMINISTRAZIONI - MESE NOVEMBRE 2017;1;1;3;1;2;2
ENERGRID S.R.L.;09/01/2018;Energia elettrica;21.275,82;Liquidazione Fattura Nr. 217402195  del 12/12/2017 (di cui Split per euro 3.836,62) - FORNITURA ENERGIA ELETTRICA PER PUBBLICA ILLUMINAZIONE-NOVEMBRE 2017;4;1;3;2;5;4
TOTALERG SPA;09/01/2018;Carburanti, combustibili e lubrificanti ;1.266,56;Liquidazione Fattura Nr. I7452609  del 30/11/2017 (di cui Split per euro 228,40) - FORNITURA DI CARBURANTE PER AUTOTRAZIONE MEDIANTE FUEL CARD E DEI SERVIZI CONNESSI PER LE PUBBLICHE AMMINISTRAZIONI - MESE NOVEMBRE 2017;3;1;3;1;2;2
VESCOVI RENZO S.P.A.;11/01/2018;Infrastrutture stradali;1.291,40;IVA - Liq. Fattura Nr. 46/10  del 07/11/2017 (di cui Split per euro 1.291,40) - LAVORI PER LA MESSA IN SICUREZZA DELLA STRADA COMUNALE EMPOLESE DI POGGIO - VIA SAN DONATO _ DETERMINA A CONTRARRE E AFFIDAMENTO DITTA VESCOVI RENZO SPA Fattura;115;2;2;1;9;12
BARTALUCCI SAS DI BARTALUCCI ELENA E BARTALUCCI MONICA;11/01/2018;Altri servizi ausiliari n.a.c.;63,14;Liquidazione Fattura Nr. 468/P  del 09/11/2017 (di cui Split per euro 11,39) - TRASCRIZIONE SEDUTA  DEL CONSIGLIO COMUNALE DEL 29/11/2016 - 125 minuti;87;1;3;2;13;999
ASSOCIAZIONE CULTURALE IL PONTE;11/01/2018;Altre spese per contratti di servizio pubblico;3.092,51;Liquidazione Fattura Nr. 39  del 31/10/2017 - AFFIDAMENTO IN CONCESSIONE SERVIZI EDUCATIVI PER L'INFANZIA E DEI SERVIZI EXTRASCOLASTICI DEL COMUNE DI VINCI DAL 19 SETTEMBRE 2017 AL 23 OTTOBRE 2017 (ONERI PER LA SICUREZZA EURO 9,11);85;1;3;2;15;999
ASSOCIAZIONE CULTURALE IL PONTE;11/01/2018;Altre spese per contratti di servizio pubblico;1.533,99;Liquidazione Fattura Nr. 42  del 13/11/2017 - SERVIZIO CONCESSIONE SERVIZI EDUCATIVI PER L'INFANZIA E SERVIZI EXTRA SCOLASTICI VILLA REGHINI DAL 24/10/17 AL 31/10/17;85;1;3;2;15;999
TERMOCONTROL SRL MANUTENZIONE IMPIANTI;11/01/2018;Manutenzione ordinaria e riparazioni di impianti e macchinari;73,70;Liquidazione Fattura Nr. 000046PA  del 08/11/2017 (di cui Split per euro 13,29) - MANUTENZIONE IMPIANTI TERMOIDRAULICI E DI CONDIZIONAMENTO ANNO TERMICO 2016-2017 - Fattura al 31.10.2017;100;1;3;2;9;4
CO&SO EMPOLI - CONS. DI COOP. SOCIALI - SOCIETA' COOPERATIVA;11/01/2018;Altre spese per contratti di servizio pubblico;2.776,78;Liquidazione Fattura Nr. 000941-2C0  del 31/10/2017 - servizi educativi ed extrascolastici presso Villa Reghini dal 19 settembre al 23 ottobre 2017;85;1;3;2;15;999
VESCOVI RENZO S.P.A.;11/01/2018;Infrastrutture stradali;5.870,00;Liquidazione Fattura Nr. 46/10  del 07/11/2017 - LAVORI PER LA MESSA IN SICUREZZA DELLA STRADA COMUNALE EMPOLESE DI POGGIO - VIA SAN DONATO _ DETERMINA A CONTRARRE E AFFIDAMENTO DITTA VESCOVI RENZO SPA;115;2;2;1;9;12
COOPERATIVA SOCIALE MIMOSA ONLUS;11/01/2018;Manutenzione ordinaria e riparazioni di beni immobili;2.770,42;Liquidazione Fattura Nr. 000021-2017-FE  del 31/10/2017 (di cui Split per euro 499,58) - AFFIDAMENTO DIRETTO AI SENSI DELL'ART. 36 D.LGS. 50/2011 IN APPALTO DEL SERVIZIO DI PULIZIA DEL VERDE PUBBLICO  DAL 13.03.2017 AL 31.12.2017;111;1;3;2;9;8
TERMOCONTROL SRL MANUTENZIONE IMPIANTI;11/01/2018;Manutenzione ordinaria e riparazioni di beni immobili;98,62;Liquidazione Fattura Nr. 000046PA  del 08/11/2017 (di cui Split per euro 17,78) - MANUTENZIONE IMPIANTI TERMOIDRAULICI E DI CONDIZIONAMENTO ANNO TERMICO 2016-2017 - Fattura al 31.10.2017;109;1;3;2;9;8
TERMOCONTROL SRL MANUTENZIONE IMPIANTI;11/01/2018;Manutenzione ordinaria e riparazioni di impianti e macchinari;57,75;IVA-Liq. Fattura Nr. 000047PA  del 08/11/2017 - MANUT. IMPIANTI TERMICI DA CANONE-ANNO2016-2017-fattura al 31.10.2017 Fattura Nr. 000047PA del 08-11-2017;108;1;3;2;9;4
TERMOCONTROL SRL MANUTENZIONE IMPIANTI;11/01/2018;Manutenzione ordinaria e riparazioni di impianti e macchinari;144,10;IVA-Liq. Fattura Nr. 000047PA  del 08/11/2017 - MANUT. IMPIANTI TERMICI DA CANONE-ANNO2016-2017-fattura al 31.10.2017 Fattura Nr. 000047PA del 08-11-2017;105;1;3;2;9;4
ECOMEDICA S.P.A.;11/01/2018;Altre prestazioni professionali e specialistiche n.a.c.;346,82;Liquidazione Fattura Nr. 00098  del 30/09/2017 - PRESTAZIONI DIAGNOSTICHE VARI DIPENDENTI;101;1;3;2;11;999
TERMOCONTROL SRL MANUTENZIONE IMPIANTI;11/01/2018;Manutenzione ordinaria e riparazioni di impianti e macchinari;35,47;IVA-Liq. Fattura Nr. 000047PA  del 08/11/2017 - MANUT. IMPIANTI TERMICI DA CANONE-ANNO2016-2017-fattura al 31.10.2017 Fattura Nr. 000047PA del 08-11-2017;112;1;3;2;9;4
LATINI  CLAUDIO;11/01/2018;Altre prestazioni professionali e specialistiche n.a.c.;761,28;LIQUIDAZIONE FATTURA NR. 000011-2017-PA  DEL 06/11/2017 (DI CUI SPLIT PER EURO 137,28) - REDAZIONE DUVRI APPALTO ACCOMPAGNAMENTO SCUOLABUS E PRE-SCUOLA;80;1;3;2;11;999
CO&SO EMPOLI - CONS. DI COOP. SOCIALI - SOCIETA' COOPERATIVA;11/01/2018;Altre spese per contratti di servizio pubblico;5.405,81;Liquidazione Fattura Nr. 001011-2C0  del 31/10/2017 (di cui Split per euro 257,42) - servizio sostegno handicap nell'ambito scolastico dal 1 al 7 ottobre 2017;84;1;3;2;15;999
CERT2000 SRL;11/01/2018;Manutenzione ordinaria e riparazioni di impianti e macchinari;122,00;Liquidazione Fattura Nr. 13/01  del 13/11/2017 (di cui Split per euro 22,00) - VERIFICHE PERIODICHE IMP. ASCENSORE MAGAZZINO;99;1;3;2;9;4
CIR FOOD S.C. DIVISIONE EUDANIA;11/01/2018;Contratti di servizio per le mense scolastiche;29.847,49;Liquidazione Fattura Nr. 5200028610  del 31/10/2017 (di cui Split per euro 1.147,98) - Destinatario:0000100288,COMUNE DI VINCI,Piazza Leonardo 29,VINCI,50059,FI Trattenute DPR RIT 0,5 % ART. 4 C.3 DPR 207/2010 di 144,22- RIF2: SER.RIST.SCOL;97;1;3;2;15;6
CO&SO EMPOLI - CONS. DI COOP. SOCIALI - SOCIETA' COOPERATIVA;11/01/2018;Altre spese per contratti di servizio pubblico;17.854,44;Liquidazione Fattura Nr. 001012-2C0  del 31/10/2017 (di cui Split per euro 850,21) - servizio sostegno handicap nell'ambito scolastico dal 9 al 31 ottobre 2017;84;1;3;2;15;999
ARCA - COOPERATIVA SOCIALE A R.L.;11/01/2018;Contratti di servizio di asilo nido;34.914,74;Liquidazione Fattura Nr. E-1166  del 13/11/2017 (di cui Split per euro 1.662,61) - SERVIZIO EDUCATIVO PRESSO NIDO COMUNALE PICCINO PICCIO' MESE DI OTTOBRE 2017;98;1;3;2;15;10
ARCA - COOPERATIVA SOCIALE A R.L.;11/01/2018;Contratti di servizio di asilo nido;4.715,59;Liquidazione Fattura Nr. E-1129  del 02/11/2017 - SERVIZIO REFEZIONE PRESSO NIDO COMUNALE PICCINO PICCIO' MESE DI SETTEMBRE 2017;83;1;3;2;15;10
ARCA - COOPERATIVA SOCIALE A R.L.;11/01/2018;Contratti di servizio di asilo nido;235,78;IVA-Liquidazione Fattura Nr. E-1129  del 02/11/2017 (di cui Split per euro 235,78) - SERVIZIO REFEZIONE PRESSO NIDO COMUNALE PICCINO PICCIO' MESE DI SETTEMBRE 2017;83;1;3;2;15;10
MEDICEA  ASSOCIAZIONE CULTURALE;11/01/2018;Altri servizi diversi n.a.c.;906,86;Liquidazione Fattura Nr. 31  del 30/11/2017 - servizio attacchinaggio manifesti cig Z371CAF4A1 IMPEGNO SPESA PPAA;117;1;3;2;99;999
CENTRO L.I.F.E.;11/01/2018;Altri servizi diversi n.a.c.;0,12;"Liquidazione Fattura Nr. 000003-2017-1PA  del 13/10/2017 (di cui Split per euro 0,12) - PROGETTO SERVIZIO CIVILE ""IMPARARE A FARE RETE/ PER IL MAB""";119;1;3;2;99;999
BARTALUCCI SAS DI BARTALUCCI ELENA E BARTALUCCI MONICA;11/01/2018;Altri servizi ausiliari n.a.c.;24,24;Liquidazione Fattura Nr. 479/P  del 13/11/2017 (di cui Split per euro 4,37) - TRASCRIZIONE seduta del 20/02/2017 min. 48;87;1;3;2;13;999
ARCA - COOPERATIVA SOCIALE A R.L.;11/01/2018;Contratti di servizio di asilo nido;4.951,37;Liquidazione Fattura Nr. E-1167  del 13/11/2017 (di cui Split per euro 235,78) - SERVIZIO REFEZIONE PRESSO NIDO COMUNALE MESE DI OTTOBRE 2017 ;98;1;3;2;15;10
EREDI LEPORATTI S.A.S.;11/01/2018;Contratti di servizio di trasporto pubblico;77,92;IVA Liquidazione Fattura Nr. 16/E  del 29/10/2017 (di cui Split per euro 77,92) - Servizio Navetta a chiamata Vinci-Anchiano-Vinci e Vinci-Empoli Stazione-Vinci periodo 01/10/2017 - 31/10/2017;82;1;3;2;15;1
DAMAZ S.R.L. - INGROSSO CASALINGHI;11/01/2018;Altri beni e materiali di consumo n.a.c.;91,34;Liquidazione Fattura Nr. 12424P  del 10/11/2017 (di cui Split per euro 16,47) - ordine n. 1 per Servizi museali - Gara det. 180/2017 - Prima consegna;90;1;3;1;2;999
TERMOCONTROL SRL MANUTENZIONE IMPIANTI;11/01/2018;Manutenzione ordinaria e riparazioni di impianti e macchinari;856,55;Liquidazione Fattura Nr. 000046PA  del 08/11/2017 (di cui Split per euro 154,46) - MANUTENZIONE IMPIANTI TERMOIDRAULICI E DI CONDIZIONAMENTO ANNO TERMICO 2016-2017 - Fattura al 31.10.2017;102;1;3;2;9;4
"PENSIONE PER CANI E GATTI ""CERTOSA"" S.R.L.";11/01/2018;Contratti di servizio per la lotta al randagismo ;753,84;Liquidazione Fattura Nr. FATTPA 4_18  del 08/01/2018 (di cui Split per euro 135,94) - AGGIUDICAZIONE DEFINITIVA ED EFFICACE DELL'APPALTO DEL SERVIZIO DI RICOVERO, CUSTODIA, MANTENIMENTO E CURA DI CANI ABBANDONATI E FERITI AI SENSI DELLA LEG;118;1;3;2;15;11
DAMAZ S.R.L. - INGROSSO CASALINGHI;11/01/2018;Altri beni e materiali di consumo n.a.c.;236,27;Liquidazione Fattura Nr. 12425P  del 10/11/2017 (di cui Split per euro 42,61) - ordine n. 1 Vinci Palazzo comunale gara det. 180/2017;89;1;3;1;2;999
EREDI LEPORATTI S.A.S.;11/01/2018;Contratti di servizio di trasporto pubblico;120,48;IVA Liquidazione Fattura Nr. 17/E  del 29/10/2017 (di cui Split per euro 120,48) - FATTURA TPL MENSILITA' OTTOBRE 2017;81;1;3;2;15;1
PRATESI LORENZO S.R.L.;11/01/2018;Altri beni e materiali di consumo n.a.c.;1.121,79;Liquidazione Fattura Nr. 5/E  del 30/10/2017 (di cui Split per euro 202,29) - FORNITURA DI N. 20 TRANSENNE A GARAZIA DEL MANTENIMENTO DELLA SICUREZZA STRADALE _ DETERMINA A CONTRARRE E AFFIDAMENTO DITTA PRATESI LORENZO SRL;110;1;3;1;2;999
EREDI LEPORATTI S.A.S.;11/01/2018;Contratti di servizio di trasporto pubblico;1.204,75;Liquidazione Fattura Nr. 17/E  del 29/10/2017 - FATTURA TPL MENSILITA' OTTOBRE 2017;81;1;3;2;15;1
EREDI LEPORATTI S.A.S.;11/01/2018;Contratti di servizio di trasporto pubblico;779,22;Liquidazione Fattura Nr. 16/E  del 29/10/2017 - Servizio Navetta a chiamata Vinci-Anchiano-Vinci e Vinci-Empoli Stazione-Vinci periodo 01/10/2017 - 31/10/2017;82;1;3;2;15;1
TERMOCONTROL SRL MANUTENZIONE IMPIANTI;11/01/2018;Manutenzione ordinaria e riparazioni di impianti e macchinari;758,69;Liquidazione Fattura Nr. 000046PA  del 08/11/2017 (di cui Split per euro 136,81) - MANUTENZIONE IMPIANTI TERMOIDRAULICI E DI CONDIZIONAMENTO ANNO TERMICO 2016-2017 - Fattura al 31.10.2017;104;1;3;2;9;4
BARTALUCCI SAS DI BARTALUCCI ELENA E BARTALUCCI MONICA;11/01/2018;Altri servizi ausiliari n.a.c.;34,84;Liquidazione Fattura Nr. 471/P  del 09/11/2017 (di cui Split per euro 6,28) - TRASCRIZIONE CC del 29/12/2016 - 69 minuti;87;1;3;2;13;999
ISTITUTO COMPRENSIVO DI VINCI;11/01/2018;Trasferimenti correnti a Ministero dell'Istruzione - Istituzioni scolastiche;1.837,46;CONTRIBUTO REGIONALE PEZ, COFINANZIAMENTO COMUNALE PEZ E PRIMO ACCONTO DEL CONTRIBUTO COMUNALE PER L'ORGANIZZAZIONE DELL'ISTITUTO COMPRENSIVO DI VINCI;94;1;4;1;1;2
MINISTERO DELL'INTERNO DIREZIONE CENTRALE PER I SERVIZI DEMOGRAFICI;11/01/2018;Trasferimenti correnti a Ministeri;143,71;Bilancio dello Stato, imput. al capo X- cap. 3746 -  causale �Comune di Vinci, corrispettivo per rilascio n. 45 carte identit� elettroniche periodo 16/29.12.2017;78;1;4;1;1;1
O.L.V. SRL IMPIANTI ELETTRICI CIVILI ED INDUSTRIALI;11/01/2018;Noleggi di impianti e macchinari;1.009,55;Liquidazione Fattura Nr. 23  del 12/12/2017 (di cui Split per euro 182,05) - ILLUMINAZIONE D'EMERGENZA USCITE DI SICUREZZA TENSOSTRUTTURA.;121;1;3;2;7;8
BLITZ DISINFESTAZIONI SRL;11/01/2018;Organizzazione e partecipazione a manifestazioni e convegni;183,00;Liquidazione Fattura Nr. 26  del 31/10/2017 (di cui Split per euro 33,00) - DISINFEZIONE 18 SET. 2017 AREA STERRATA GIARDINO COSTITUIZIONE ITALIANA PER GIORNATA SPORT 2017 Rif. determina S.1 n. 142 del 30/08/2017 - Cod. Imp. DS01142 - CIG Z;86;1;3;2;2;5
CAMERA DI CONCILIAZIONE E MEDIAZIONE DEL NORDEST SAS;11/01/2018;Patrocinio legale;488,00;Liquidazione Fattura Nr. FatPAM 1  del 24/11/2017 (di cui Split per euro 88,00) - Spese di mediazione ex D.lgs 28/2010 - impegno n. DS01155/2017;77;1;3;2;11;6
SOCIETA' PUBBLICITA' EDITORIALE S.P.A.;11/01/2018;Pubblicazione bandi di gara;181,50;Liquidazione Fattura Nr. 2017/B430DD001601  del 14/12/2017 (di cui Split per euro 32,73) - Fornitura generica;116;1;3;2;16;1
VIVENDA S.R.L.;11/01/2018;Pubblicazione bandi di gara;599,53;Liquidazione Fattura Nr. 1520/PA  del 11/12/2017 (di cui Split per euro 105,23) - Pubblicazione esito per Appalto del servizio di assistenza specialistica alla disabilit� in ambito scolastico e per le attivit� del centro di aggregazione gio;116;1;3;2;16;1
GAP S.R.L.;11/01/2018;Pubblicazioni;31,79;IVA SU LIQUIDAZIONE RIF.PREVENTIVO N.2017/BNCF-1654 DEL 2017-11-10 LIQUIDAZIONE FATTURA NR. FE/00056C DEL 11/12/2017 -  FORNITURA MATERIALE DOCUMENTARIO  FATTURA NR. FE/00056C DEL 11/12/2017 - FORNITURA MATERIALE DOCUMENTARIO PER BIBLIOTECA;120;1;3;1;1;2
TERMOCONTROL SRL MANUTENZIONE IMPIANTI;11/01/2018;Manutenzione ordinaria e riparazioni di impianti e macchinari;987,44;Liquidazione Fattura Nr. 000046PA  del 08/11/2017 (di cui Split per euro 178,06) - MANUTENZIONE IMPIANTI TERMOIDRAULICI E DI CONDIZIONAMENTO ANNO TERMICO 2016-2017 - Fattura al 31.10.2017;103;1;3;2;9;4
GAP S.R.L.;11/01/2018;Pubblicazioni;144,51;RIF.PREVENTIVO N.2017/BNCF-1654 DEL 2017-11-10 LIQUIDAZIONE FATTURA NR. FE/00056C DEL 11/12/2017 -  FORNITURA MATERIALE DOCUMENTARIO PER BIBLIOTECA;120;1;3;1;1;2
VERDIANI GIOVANNI CARTOLIBRERIA;11/01/2018;Pubblicazioni;42,94;Liquidazione Fattura Nr. 3/PA  del 12/12/2017 - FORNITURA LIBRI DI TESTO PER CEDOLE LIBRARIE ELEMENTARI;96;1;3;1;1;2
COOPERATIVA SOCIALE ZOE S.C.A.R.L.;11/01/2018;Servizi di pulizia e lavanderia;407,61;Liquidazione Fattura Nr. FATTPA 318_17  del 31/10/2017 (di cui Split per euro 73,50) - VARIANTE - PULIZIE OTTOBRE 2017;91;1;3;2;13;2
COOPERATIVA SOCIALE ZOE S.C.A.R.L.;11/01/2018;Servizi di pulizia e lavanderia;198,62;Liquidazione Fattura Nr. FATTPA 319_17  del 31/10/2017 (di cui Split per euro 35,82) - Pulizia biblioteche ottobre 2017;92;1;3;2;13;2
COOPERATIVA SOCIALE ZOE S.C.A.R.L.;11/01/2018;Servizi di pulizia e lavanderia;1.271,14;Liquidazione Fattura Nr. FATTPA 320_17  del 31/10/2017 (di cui Split per euro 229,22) - PULIZIA EDIFICI COMUNALI (GENERALE) OTTOBRE 2017;91;1;3;2;13;2
COOPERATIVA SOCIALE ZOE S.C.A.R.L.;11/01/2018;Servizi di pulizia e lavanderia;188,86;Liquidazione Fattura Nr. FATTPA 321_17  del 31/10/2017 (di cui Split per euro 34,06) - PULIZIA NUOVO UTU OTTOBRE2017;93;1;3;2;13;2
MINISTERO DELL'INTERNO DIREZIONE CENTRALE PER I SERVIZI DEMOGRAFICI;11/01/2018;Trasferimenti correnti a Ministeri;611,84;Bilancio dello Stato, imput. al capo X- cap. 3746 -  causale �Comune di Vinci, corrispettivo per rilascio n. 45 carte identit� elettroniche periodo 16/29.12.2017;79;1;4;1;1;1
ETRURIA P.A. SRL;11/01/2018;Stampati specialistici;684,40;Liquidazione Fattura Nr. 2183/00000 del 20/11/2017 - ACQUISTO REGISTRI DI STATO CIVILE ANNO 2018, PERGAMENE E PORTADOCUMENTI PER MATRIMONI CIVILI - DETERMINA A CONTRARRE E AFFIDAMENTO DIRETTO - IMPEGNO DI SPESA;88;1;3;1;2;14
ISTITUTO COMPRENSIVO DI VINCI;11/01/2018;Trasferimenti correnti a Ministero dell'Istruzione - Istituzioni scolastiche;11.840,35;Contributo regionale PEZ, cofinanziamento comunale PEZ e primo acconto del contributo comunale per l'organizzazione dell'Istituto Comprensivo di VInci  ;95;1;4;1;1;2
TERMOCONTROL SRL MANUTENZIONE IMPIANTI;11/01/2018;Manutenzione ordinaria e riparazioni di impianti e macchinari;264,31;Liquidazione Fattura Nr. 000046PA  del 08/11/2017 (di cui Split per euro 47,66) - MANUTENZIONE IMPIANTI TERMOIDRAULICI E DI CONDIZIONAMENTO ANNO TERMICO 2016-2017 - Fattura al 31.10.2017;106;1;3;2;9;4
TERMOCONTROL SRL MANUTENZIONE IMPIANTI;11/01/2018;Manutenzione ordinaria e riparazioni di impianti e macchinari;447,85;Liquidazione Fattura Nr. 000046PA  del 08/11/2017 (di cui Split per euro 80,76) - MANUTENZIONE IMPIANTI TERMOIDRAULICI E DI CONDIZIONAMENTO ANNO TERMICO 2016-2017 - Fattura al 31.10.2017;113;1;3;2;9;4
TERMOCONTROL SRL MANUTENZIONE IMPIANTI;11/01/2018;Manutenzione ordinaria e riparazioni di impianti e macchinari;262,49;Liquidazione Fattura Nr. 000047PA  del 08/11/2017 - MANUT. IMPIANTI TERMICI DA CANONE-ANNO2016-2017-fattura al 31.10.2017;108;1;3;2;9;4
TERMOCONTROL SRL MANUTENZIONE IMPIANTI;11/01/2018;Manutenzione ordinaria e riparazioni di impianti e macchinari;161,25;Liquidazione Fattura Nr. 000047PA  del 08/11/2017 - MANUT. IMPIANTI TERMICI DA CANONE-ANNO2016-2017-fattura al 31.10.2017;112;1;3;2;9;4
TERMOCONTROL SRL MANUTENZIONE IMPIANTI;11/01/2018;Manutenzione ordinaria e riparazioni di impianti e macchinari;289,75;Liquidazione Fattura Nr. 000046PA  del 08/11/2017 (di cui Split per euro 52,25) - MANUTENZIONE IMPIANTI TERMOIDRAULICI E DI CONDIZIONAMENTO ANNO TERMICO 2016-2017 - Fattura al 31.10.2017;107;1;3;2;9;4
TERMOCONTROL SRL MANUTENZIONE IMPIANTI;11/01/2018;Manutenzione ordinaria e riparazioni di impianti e macchinari;1.103,61;Liquidazione Fattura Nr. 000046PA  del 08/11/2017 (di cui Split per euro 199,02) - MANUTENZIONE IMPIANTI TERMOIDRAULICI E DI CONDIZIONAMENTO ANNO TERMICO 2016-2017 - Fattura al 31.10.2017;99;1;3;2;9;4
TERMOCONTROL SRL MANUTENZIONE IMPIANTI;11/01/2018;Manutenzione ordinaria e riparazioni di impianti e macchinari;213,51;Liquidazione Fattura Nr. 000046PA  del 08/11/2017 (di cui Split per euro 38,50) - MANUTENZIONE IMPIANTI TERMOIDRAULICI E DI CONDIZIONAMENTO ANNO TERMICO 2016-2017 - Fattura al 31.10.2017;108;1;3;2;9;4
TERMOCONTROL SRL MANUTENZIONE IMPIANTI;11/01/2018;Manutenzione ordinaria e riparazioni di impianti e macchinari;655,00;Liquidazione Fattura Nr. 000047PA  del 08/11/2017 - MANUT. IMPIANTI TERMICI DA CANONE-ANNO2016-2017-fattura al 31.10.2017;105;1;3;2;9;4
TERMOCONTROL SRL MANUTENZIONE IMPIANTI;11/01/2018;Manutenzione ordinaria e riparazioni di impianti e macchinari;195,69;Liquidazione Fattura Nr. 000046PA  del 08/11/2017 (di cui Split per euro 35,29) - MANUTENZIONE IMPIANTI TERMOIDRAULICI E DI CONDIZIONAMENTO ANNO TERMICO 2016-2017 - Fattura al 31.10.2017;114;1;3;2;9;4
FLM S.R.L. FINANZA LOCALE MANAGEMENT;12/01/2018;Acquisto di servizi per altre spese per formazione e addestramento n.a.c.;270,00;"Liquidazione Fattura Nr. 000123-2017-FE  del 01/12/2017 - PARTECIPAZIONE AL CORSO DI FORMAZIONE ORGANIZZATO DA GRUPPO FINANZA LOCALE PER IL GIORNO 27 NOVEMBRE 2017 IN MATERIA DI TRIBUTI ""ADEMPIMENTI DI FINE ANNO"".";124;1;3;2;4;999
CO&SO EMPOLI - CONS. DI COOP. SOCIALI - SOCIETA' COOPERATIVA;12/01/2018;Altre spese per contratti di servizio pubblico;3.761,00;Liquidazione Fattura Nr. 000989-2C0  del 31/10/2017 (di cui Split per euro 678,21) - Fatt. regime sciss.pag.;122;1;3;2;15;999
CO&SO EMPOLI - CONS. DI COOP. SOCIALI - SOCIETA' COOPERATIVA;12/01/2018;Altre spese per contratti di servizio pubblico;4.367,84;Liquidazione Fattura Nr. 000987-2C0  del 31/10/2017 (di cui Split per euro 787,64) - Fatt. regime sciss.pag.;123;1;3;2;15;999
CO&SO EMPOLI - CONS. DI COOP. SOCIALI - SOCIETA' COOPERATIVA;12/01/2018;Altre spese per contratti di servizio pubblico;1.157,29;Liquidazione Fattura Nr. 000986-2C0  del 31/10/2017 (di cui Split per euro 208,69) - Fatt. regime reverse charge;122;1;3;2;15;999
CO&SO EMPOLI - CONS. DI COOP. SOCIALI - SOCIETA' COOPERATIVA;12/01/2018;Altre spese per contratti di servizio pubblico;22.210,20;Liquidazione Fattura Nr. 000985-2C0  del 31/10/2017 - servizi museali mese ottobre 2017;122;1;3;2;15;999
CO&SO EMPOLI - CONS. DI COOP. SOCIALI - SOCIETA' COOPERATIVA;12/01/2018;Altre spese per contratti di servizio pubblico;582,20;Liquidazione Fattura Nr. 000988-2C0  del 31/10/2017 (di cui Split per euro 104,99) - Fatt. regime sciss.pag.;123;1;3;2;15;999
ELEMEDIA S.P.A.;12/01/2018;Accesso a banche dati e a pubblicazioni on line;179,99;Liquidazione Fattura Nr. 2007_276  del 30/05/2017 (di cui Split per euro 6,92) - ABBONAMENTO A IL TIRRENO ON LINE;127;1;3;2;5;3
VETRERIA POLI FABRIZIO;12/01/2018;Altri beni e materiali di consumo n.a.c.;22,00;Liquidazione Fattura Nr. 2/PA  del 11/12/2017 (di cui Split per euro 22,00) - VETRO TERMICO ANTINFORTUNISTICO, MISURA 150 X 80 CM;125;1;3;1;2;999
GIANI MILA SNC;12/01/2018;Carta, cancelleria e stampati;658,80;Liquidazione Fattura Nr. PA  000145  del 30/11/2017 (di cui Split per euro 118,80) - FORNITURA CARTA A4 PER GLI UFFICI;126;1;3;1;2;1
ERARIO DELLO STATO PER PAGAMENTO I.V.A.;12/01/2018;Versamenti IVA a debito per le gestioni commerciali;4.697,00;PAGAMENTO IVA A DEBITO SERVIZI COMMERCIALI ANNO 2017 DEL MESE DI DICEMBRE;129;1;10;3;1;1
CELCOMMERCIALE SRL;12/01/2018;Accesso a banche dati e a pubblicazioni on line;1.017,48;Liquidazione Fattura Nr. 1831  del 07/12/2017 (di cui Split per euro 183,48) - Fattura Cliente;127;1;3;2;5;3
GRAFICHE ALDERIGHI DI ALDERIGHI ROBERTO;12/01/2018;Carta, cancelleria e stampati;165,92;Liquidazione Fattura Nr. 182  del 31/07/2017 (di cui Split per euro 29,92) - DETERMINA DI AFFIDAMENTO PER L'ACQUISTO DI DUE REGISTRI CRONOLOGICI PER GLI ATTI DEL MESSO NOTIFICATORE;126;1;3;1;2;1
CERT2000 SRL;16/01/2018;Manutenzione ordinaria e riparazioni di impianti e macchinari;44,00;IVA-Liquidazione Fattura Nr. 12/01  del 13/11/2017 - Verifiche periodiche imp. ascensore Museo e Casa Natale;134;1;3;2;9;4
SMS DI SERAFINI MIRKO;16/01/2018;Manutenzione ordinaria e riparazioni di beni immobili;4.158,39;Liquidazione Fattura Nr. 36/PA  del 20/10/2017 - MANUTENZIONE SEGNALETICA ORIZZONTALE SULLE STRADE COMUNALI;133;1;3;2;9;8
SMS DI SERAFINI MIRKO;16/01/2018;Manutenzione ordinaria e riparazioni di beni immobili;914,85;IVA-Liquidazione Fattura Nr. 36/PA  del 20/10/2017 (di cui Split per euro 914,85) - MANUTENZIONE SEGNALETICA ORIZZONTALE SULLE STRADE COMUNALI;133;1;3;2;9;8
A.S.D. TENNIS VINCI;16/01/2018;Trasferimenti correnti a Istituzioni Sociali Private ;5.000,00;"Contributo per il progetto ""La promozione allo sport tennis per le scuole e corsi di tennis 2017/2018""";137;1;4;4;1;1
REAL VINCI S.S.D. A R.L.;16/01/2018;Trasferimenti correnti a altre imprese;8.850,00;"Contributo per il progetto ""Promozione del calcio femminile""";136;1;4;3;99;999
CERT2000 SRL;16/01/2018;Manutenzione ordinaria e riparazioni di impianti e macchinari;200,00;Liquidazione Fattura Nr. 12/01  del 13/11/2017 - Verifiche periodiche imp. ascensore Museo e Casa Natale;134;1;3;2;9;4
EDISON ENERGIA S.P.A.;17/01/2018;Energia elettrica;7,17;Liquidazione Fattura Nr. 5750501496  del 12/12/2017 (di cui Split per euro 1,29) - IT001E04919526 - FORNITURA ENERGIA ELETTRICA MESE DI NOVEMBRE 2017 BAGNI PUBBLICI;151;1;3;2;5;4
EDISON ENERGIA S.P.A.;17/01/2018;Energia elettrica;25,00;Liquidazione Fattura Nr. 5750502043  del 12/12/2017 (di cui Split per euro 4,51) - IT001E04919518 - FORNITURA ENERGIA ELETTRICA MESE DI NOVEMBRE 2017 PILOMAT;150;1;3;2;5;4
EDISON ENERGIA S.P.A.;17/01/2018;Energia elettrica;25,00;Liquidazione Fattura Nr. 5750502050  del 12/12/2017 (di cui Split per euro 4,51) - IT001E40889318 -  FORNITURA ENERGIA ELETTRICA MESE DI NOVEMBRE 2017 CASA COMPARINI;138;1;3;2;5;4
EDISON ENERGIA S.P.A.;17/01/2018;Energia elettrica;25,00;Liquidazione Fattura Nr. 5750502056  del 12/12/2017 (di cui Split per euro 4,51) - IT001E04919522 -  FORNITURA ENERGIA ELETTRICA MESE DI NOVEMBRE 2017 LOCALI EX MACELLI;138;1;3;2;5;4
CASALINI GIOVANNA;17/01/2018;Altri trasferimenti in conto capitale n.a.c. a Famiglie;1.260,58;RIMBORSO ONERI DI URBANIZAZIONE PRIMARIA, SECONDARIA RELATIVI AL TITOLO ABILITATIVO EDILIZIO IN SANATORIA N. 1 DEL 07/09/2017 (PRATICA N. 37/C/2004). SIG.RA CASALINI GIOVANA;161;2;4;22;1;1
CASALI GIOVANNA ARCHITETTO;17/01/2018;Spese per commissioni e comitati dell'Ente;296,18;LIQUIDAZIONE FATTURA NR. 000001-2017-FT PA  DEL 15/12/2017 (DI CUI SPLIT PER EURO 53,41) - COMMISSIONE EDILIZIA COMUNALE 2016/2017;153;1;3;2;99;5
CASALI GIOVANNA ARCHITETTO;17/01/2018;Spese per commissioni e comitati dell'Ente;627,82;LIQUIDAZIONE FATTURA NR. 000001-2017-FT PA  DEL 15/12/2017 (DI CUI SPLIT PER EURO 113,21) - COMMISSIONE EDILIZIA COMUNALE 2016/2017;154;1;3;2;99;5
EDISON ENERGIA S.P.A.;17/01/2018;Energia elettrica;29,14;Liquidazione Fattura Nr. 5750502364  del 12/12/2017 (di cui Split per euro 2,65) - IT001E41741369 -  FORNITURA ENERGIA ELETTRICA MESE DI NOVEMBRE 2017 ALLOGGI PETROIO;138;1;3;2;5;4
NICCOLI GIUDITTA;17/01/2018;Spese per commissioni e comitati dell'Ente;224,15;Liquidazione Fattura Nr. 1/A  del 22/12/2017 - COMPENSI PER COMMISSIONE PER IL PAESAGGIO 2017;154;1;3;2;99;5
LIVI ELISA;17/01/2018;Spese per commissioni e comitati dell'Ente;222,90;LIQUIDAZIONE FATTURA NR. 5-2017  DEL 20/12/2017 (DI CUI SPLIT PER EURO 40,20) - COMPENSO PARTECIPAZIONI COMMISSIONE EDILIZIA COMUNALE DA AGOSTO 2016 A DICEMBRE 2016 (N.5 SEDUTE) E NELL'ANNO 2017 (N.4 SEDUTE);153;1;3;2;99;5
LIVI ELISA;17/01/2018;Spese per commissioni e comitati dell'Ente;186,41;LIQUIDAZIONE FATTURA NR. 5-2017  DEL 20/12/2017 (DI CUI SPLIT PER EURO 33,61) - COMPENSO PARTECIPAZIONI COMMISSIONE EDILIZIA COMUNALE DA AGOSTO 2016 A DICEMBRE 2016 (N.5 SEDUTE) E NELL'ANNO 2017 (N.4 SEDUTE);154;1;3;2;99;5
EDISON ENERGIA S.P.A.;17/01/2018;Energia elettrica;25,14;Liquidazione Fattura Nr. 5750502092  del 12/12/2017 (di cui Split per euro 4,53) - IT001E04919533 -  FORNITURA ENERGIA ELETTRICA MESE DI NOVEMBRE 2017 UFF. DISMESSO VIA TORRE, 3;138;1;3;2;5;4
EDISON ENERGIA S.P.A.;17/01/2018;Energia elettrica;394,54;Liquidazione Fattura Nr. 5750503722  del 12/12/2017 (di cui Split per euro 71,15) - IT001E40889726 - FORNITURA ENERGIA ELETTRICA MESE DI NOVEMBRE 2017 TEATRO MISERICORDIA;148;1;3;2;5;4
EDISON ENERGIA S.P.A.;17/01/2018;Energia elettrica;47,09;Liquidazione Fattura Nr. 5750502777  del 12/12/2017 (di cui Split per euro 8,49) - IT001E04919530 -  FORNITURA ENERGIA ELETTRICA MESE DI NOVEMBRE 2017 EX SCUOLA ANCHIANO;138;1;3;2;5;4
EDISON ENERGIA S.P.A.;17/01/2018;Energia elettrica;578,01;Liquidazione Fattura Nr. 5750503867  del 12/12/2017 (di cui Split per euro 104,23) - IT001E04919521 - FORNITURA ENERGIA ELETTRICA MESE DI NOVEMBRE 2017 BIBLIOTECA;146;1;3;2;5;4
EDISON ENERGIA S.P.A.;17/01/2018;Energia elettrica;393,89;Liquidazione Fattura Nr. 5750503906  del 12/12/2017 (di cui Split per euro 71,03) - IT001E41412665 - FORNITURA ENERGIA ELETTRICA MESE DI NOVEMBRE 2017 PALASPORT;149;1;3;2;5;4
EDISON ENERGIA S.P.A.;17/01/2018;Energia elettrica;753,19;Liquidazione Fattura Nr. 5750503965  del 12/12/2017 (di cui Split per euro 135,82) - IT001E04919538 - FORNITURA ENERGIA ELETTRICA MESE DI NOVEMBRE 2017 SCUOLA INFANZIA SOVIGLIANA;141;1;3;2;5;4
EDISON ENERGIA S.P.A.;17/01/2018;Energia elettrica;467,05;Liquidazione Fattura Nr. 5750504037  del 12/12/2017 (di cui Split per euro 84,22) - IT001E04919520 FORNITURA ENERGIA ELETTRICA MESE DI NOVEMBRE 2017 SCUOLA PRIMARIA E SEC. 1� GRADO VINCI;143;1;3;2;5;4
EDISON ENERGIA S.P.A.;17/01/2018;Energia elettrica;467,06;Liquidazione Fattura Nr. 5750504037  del 12/12/2017 (di cui Split per euro 84,23) - IT001E04919520 FORNITURA ENERGIA ELETTRICA MESE DI NOVEMBRE 2017 SCUOLA PRIMARIA E SEC. 1� GRADO VINCI;145;1;3;2;5;4
EDISON ENERGIA S.P.A.;17/01/2018;Energia elettrica;1.076,66;Liquidazione Fattura Nr. 5750504075  del 12/12/2017 (di cui Split per euro 194,15) - IT001E40886806 - FORNITURA ENERGIA ELETTRICA MESE DI NOVEMBRE 2017 SCUOLA SEC. 1� GRADO SOVIGLIANA;145;1;3;2;5;4
EDISON ENERGIA S.P.A.;17/01/2018;Energia elettrica;1.231,26;Liquidazione Fattura Nr. 5750504106  del 12/12/2017 (di cui Split per euro 222,03) - IT001E04919531 - FORNITURA ENERGIA ELETTRICA MESE DI NOVEMBRE 2017 MUSEO LEONARDIANO;147;1;3;2;5;4
EDISON ENERGIA S.P.A.;17/01/2018;Energia elettrica;1.331,29;Liquidazione Fattura Nr. 5750504126  del 12/12/2017 (di cui Split per euro 240,07) - IT001E04919523- FORNITURA ENERGIA ELETTRICA MESE DI NOVEMBRE EDIFICIO COMUNALE ;138;1;3;2;5;4
PUCCI EDILIZIA E STRADE DI ALESSANDRO PUCCI;17/01/2018;Fabbricati ad uso scolastico;12.844,26;Liquidazione Fattura Nr. 15/PA  del 20/11/2017 (di cui Split per euro 1.167,66) - MESSA IN SICUREZZA SOLAI TRAMITE PRESIDI ANTISFONDELLAMENTO BLOCCO B PLESSO SCOLASTICO PIAZZA GARIBALDI ;160;2;2;1;9;3
PUCCI EDILIZIA E STRADE DI ALESSANDRO PUCCI;17/01/2018;Fabbricati ad uso scolastico;835,08;Liquidazione Fattura Nr. 15/PA  del 20/11/2017 (di cui Split per euro 75,92) - MESSA IN SICUREZZA SOLAI TRAMITE PRESIDI ANTISFONDELLAMENTO BLOCCO B PLESSO SCOLASTICO PIAZZA GARIBALDI ;160;2;2;1;9;3
STUDIO ASSOCIATO GRUPPO EDEN;17/01/2018;Incarichi professionali per la realizzazione di investimenti;5.675,00;"LIQUIDAZIONE FATTURA NR. 05_PA  DEL 27/11/2017 (DI CUI SPLIT PER EURO 1.023,36) - COMPENSO PER LA GESTIONE DELLE PROCEDURE DI INCENTIVAZIONE C.D. ""CONTO TERMICO 2.0""";162;2;2;3;5;1
SPEMA S.N.C. - ALLESTIMENTI SU VEICOLI INDUSTRIALI;17/01/2018;Manutenzione ordinaria e riparazioni di mezzi di trasporto ad uso civile, di sicurezza e ordine pubblico;1.206,56;Liquidazione Fattura Nr. 4/PA  del 24/11/2017 (di cui Split per euro 217,58) - INTERVENTO DI RIPARAZIONE E MANUTENZIONE DEGLI ALLESTIMENTI MONTATI SUI VEICOLI INDUSTRIALI IN USO AL COMUNE _ DETERMINA A CONTRARRE E AFFIDAMENTO DITTA SPEMA SN;139;1;3;2;9;1
COOPERATIVA SOCIALE PEGASO SOCIETA' COOPERATIVA;17/01/2018;Manutenzione ordinaria e riparazioni di beni immobili;16.714,00;Liquidazione Fattura Nr. 168 b  del 31/10/2017 (di cui Split per euro 3.014,00) - Taglio dell'erba lungo i cigli _ DET. 356 DEL 20/12/2017;156;1;3;2;9;8
EDISON ENERGIA S.P.A.;17/01/2018;Energia elettrica;262,59;Liquidazione Fattura Nr. 5750503906  del 12/12/2017 (di cui Split per euro 47,35) - IT001E41412665 - FORNITURA ENERGIA ELETTRICA MESE DI NOVEMBRE 2017 PALASPORT;149;1;3;2;5;4
EDISON ENERGIA S.P.A.;17/01/2018;Energia elettrica;454,52;Liquidazione Fattura Nr. 5750503775  del 12/12/2017 (di cui Split per euro 81,96) - IT001E04919535 - FORNITURA ENERGIA ELETTRICA MESE DI NOVEMBRE 2017 SCUOLA INFANZIA VINCI;141;1;3;2;5;4
EDISON ENERGIA S.P.A.;17/01/2018;Energia elettrica;53,75;Liquidazione Fattura Nr. 5750502934  del 12/12/2017 (di cui Split per euro 9,69) - IT001E41398842 - FORNITURA ENERGIA ELETTRICA MESE DI NOVEMBRE 2017 FONTANELLO PARCO MILLE;155;1;3;2;5;4
EDISON ENERGIA S.P.A.;17/01/2018;Energia elettrica;215,23;Liquidazione Fattura Nr. 5750503490  del 12/12/2017 (di cui Split per euro 38,81) - IT001E04919540 - FORNITURA ENERGIA ELETTRICA MESE DI NOVEMBRE 2017 VILLA REGHINI;158;1;3;2;5;4
EDISON ENERGIA S.P.A.;17/01/2018;Energia elettrica;55,29;Liquidazione Fattura Nr. 5750502944  del 12/12/2017 (di cui Split per euro 9,97) - IT001E04919527 -  FORNITURA ENERGIA ELETTRICA MESE DI NOVEMBRE 2017 ARCHIVIO COMUNALE;140;1;3;2;5;4
EDISON ENERGIA S.P.A.;17/01/2018;Energia elettrica;59,69;Liquidazione Fattura Nr. 5750502999  del 12/12/2017 (di cui Split per euro 10,76) - IT001E04919532 -  FORNITURA ENERGIA ELETTRICA MESE DI NOVEMBRE 2017 UFF. COMUNALE VIA TORRE, 9;138;1;3;2;5;4
EDISON ENERGIA S.P.A.;17/01/2018;Energia elettrica;70,54;Liquidazione Fattura Nr. 5750503092  del 12/12/2017 (di cui Split per euro 12,72) - IT001E43263124 - FORNITURA ENERGIA ELETTRICA MESE DI NOVEMBRE 2017 FONTANELLO VITOLINI;155;1;3;2;5;4
EDISON ENERGIA S.P.A.;17/01/2018;Energia elettrica;71,24;Liquidazione Fattura Nr. 5750503096  del 12/12/2017 (di cui Split per euro 12,85) - IT001E04919543 - FORNITURA ENERGIA ELETTRICA MESE DI NOVEMBRE 2017 MERCATO SETTIMANALE E IMPIANTO IRRIGAZIONE;150;1;3;2;5;4
EDISON ENERGIA S.P.A.;17/01/2018;Energia elettrica;96,25;Liquidazione Fattura Nr. 5750503209  del 12/12/2017 (di cui Split per euro 17,36) - IT001E04919517 - FORNITURA ENERGIA ELETTRICA MESE DI NOVEMBRE 2017 CASSA ESPANSIONE PICCARATICO;150;1;3;2;5;4
EDISON ENERGIA S.P.A.;17/01/2018;Energia elettrica;223,47;Liquidazione Fattura Nr. 5750503511  del 12/12/2017 (di cui Split per euro 40,30) - IT001E04919515 -  FORNITURA ENERGIA ELETTRICA MESE DI NOVEMBRE 2017 SCUOLA INFANZIA SPICCHIO;141;1;3;2;5;4
EDISON ENERGIA S.P.A.;17/01/2018;Energia elettrica;440,20;Liquidazione Fattura Nr. 5750503766  del 12/12/2017 (di cui Split per euro 79,38) - IT001E04919529 - FORNITURA ENERGIA ELETTRICA MESE DI NOVEMBRE 2017 CASA NATALE LEONARDO;147;1;3;2;5;4
EDISON ENERGIA S.P.A.;17/01/2018;Energia elettrica;235,03;Liquidazione Fattura Nr. 5750503522  del 12/12/2017 (di cui Split per euro 42,38) - IT001E04919525 - FORNITURA ENERGIA ELETTRICA MESE DI NOVEMBRE 2017 UFF. TURISTICO NUOVO;151;1;3;2;5;4
EDISON ENERGIA S.P.A.;17/01/2018;Energia elettrica;252,24;Liquidazione Fattura Nr. 5750503544  del 12/12/2017 (di cui Split per euro 45,49) - IT001E04919519 -  FORNITURA ENERGIA ELETTRICA MESE DI NOVEMBRE 2017 URP VIA FUCINI;140;1;3;2;5;4
EDISON ENERGIA S.P.A.;17/01/2018;Energia elettrica;328,51;Liquidazione Fattura Nr. 5750503642  del 12/12/2017 (di cui Split per euro 59,24) - IT001E04919524 -  FORNITURA ENERGIA ELETTRICA MESE DI NOVEMBRE 2017 MAGAZZINO COMUNALE;138;1;3;2;5;4
EDISON ENERGIA S.P.A.;17/01/2018;Energia elettrica;363,10;Liquidazione Fattura Nr. 5750503683  del 12/12/2017 (di cui Split per euro 65,48) - IT001E04919536- FORNITURA ENERGIA ELETTRICA MESE DI NOVEMBRE 2017 UFF. COMUNALI VIA BATTISTI;138;1;3;2;5;4
EDISON ENERGIA S.P.A.;17/01/2018;Energia elettrica;403,00;Liquidazione Fattura Nr. 5750503727  del 12/12/2017 (di cui Split per euro 72,67) - IT001E04919544 - FORNITURA ENERGIA ELETTRICA MESE DI NOVEMBRE 2017 NIDO COMUNALE;157;1;3;2;5;4
EDISON ENERGIA S.P.A.;17/01/2018;Energia elettrica;419,18;Liquidazione Fattura Nr. 5750503752  del 12/12/2017 (di cui Split per euro 75,59) - IT001E04919534 - FORNITURA ENERGIA ELETTRICA MESE DI NOVEMBRE 2017 RESIDENZA PER ANZIANI;159;1;3;2;5;4
EDISON ENERGIA S.P.A.;17/01/2018;Energia elettrica;1.012,86;Liquidazione Fattura Nr. 5750504060  del 12/12/2017 (di cui Split per euro 182,65) - IT001E04919516 - FORNITURA ENERGIA ELETTRICA MESE DI NOVEMBRE 2017 SCUOLA PRIMARIA SPICCHIO;143;1;3;2;5;4
EDISON ENERGIA S.P.A.;17/01/2018;Energia elettrica;1.182,42;Liquidazione Fattura Nr. 5750504096  del 12/12/2017 (di cui Split per euro 213,22) - IT001E04919528 - FORNITURA ENERGIA ELETTRICA MESE DI NOVEMBRE 2017 PALAZZINA UZIELLI;147;1;3;2;5;4
PRATESI LORENZO S.R.L.;17/01/2018;Altri beni e materiali di consumo n.a.c.;226,01;Liquidazione Fattura Nr. 8/E  del 24/11/2017 (di cui Split per euro 40,76) - DET. 48 DEL 17/3/2017 - FORNITURA MATERIALI EDILI;142;1;3;1;2;999
PRATESI LORENZO S.R.L.;17/01/2018;Altri beni e materiali di consumo n.a.c.;1.082,19;Liquidazione Fattura Nr. 6/E  del 22/11/2017 (di cui Split per euro 195,15) - FORNITURA DI GRANULARE ASSORBENTE PER LA MESSA IN SICUREZZA DELLE STRADE _ DET. 291 del 10/11/2017;152;1;3;1;2;999
PRATESI LORENZO S.R.L.;17/01/2018;Altri beni e materiali di consumo n.a.c.;10,04;Liquidazione Fattura Nr. 8/E  del 24/11/2017 (di cui Split per euro 1,81) - DET. 48 DEL 17/3/2017 - FORNITURA MATERIALI EDILI;144;1;3;1;2;999
VESCOVI RENZO S.P.A.;17/01/2018;Altri beni e materiali di consumo n.a.c.;453,03;Liquidazione Fattura Nr. 48/10  del 27/11/2017 (di cui Split per euro 81,69) - FORNITURA STABILIZZATO E CONGLOMERATO BITUMINOSO A FREDDO - DET. 263 DEL 17/10/2017;152;1;3;1;2;999
SCUOLA MATERNA PARROCCHIALE DON SERGIO CIONI;18/01/2018;Trasferimenti correnti a Istituzioni Sociali Private ;5.923,78;FINANZIAMENTI REGIONALI PER CONTRIBUTI ALLE SCUOLE PRIVATE PARITARIE A.S. 16/17;178;1;4;4;1;1
ENERGETIC S.P.A.;18/01/2018;Gas;1.306,14;Liquidazione Fattura Nr. EX56748/2017  del 11/12/2017 (di cui Split per euro 235,53) - Servizio di fornitura Gas Naturale - residenza Anziani;175;1;3;2;5;6
SCUOLA MATERNA -SUOR GEMMA GALGANI- SUORE ORSOLINE DELLA SACRA FAMIGLIA;18/01/2018;Trasferimenti correnti a Istituzioni Sociali Private ;2.544,08;FINANZIAMENTI REGIONALI PER CONTRIBUTI ALLE SCUOLE PRIVATE PARITARIE A.S. 16/17 ;178;1;4;4;1;1
IL GIRASOLE EDICOLA DI GROSSI FABIO;18/01/2018;Pubblicazioni;47,73;Liquidazione Fattura Nr. 6  del 14/12/2017 - FORNITURA LIBRI DI TESTO PER CEDOLE LIBRARIE ELEMENTARI;176;1;3;1;1;2
CARTOLERIA ANNA;18/01/2018;Pubblicazioni;172,72;Liquidazione Fattura Nr. 5/PA  del 21/12/2017 - FORNITURA LIBRI DI TESTO PER CEDOLE LIBRARIE ELEMENTARI;176;1;3;1;1;2
ENERGETIC S.P.A.;18/01/2018;Gas;1.454,20;Liquidazione Fattura Nr. EX56747/2017  del 11/12/2017 (di cui Split per euro 262,23) - Servizio di fornitura Gas Naturale Scuola secondaria secondaria Primo Grado Sovigliana;171;1;3;2;5;6
ENERGETIC S.P.A.;18/01/2018;Gas;383,57;Liquidazione Fattura Nr. EX56749/2017  del 11/12/2017 (di cui Split per euro 69,17) - Servizio di fornitura Gas Naturale -Villa Reghini;174;1;3;2;5;6
C.I.S.  INTELLIGENT SYSTEM S.R.L.;18/01/2018;Apparati di telecomunicazione;1.401,66;Liquidazione Fattura Nr. 128/PA  del 23/11/2017 (di cui Split per euro 252,76) - DETERMINAZIONE  N.123 DEL 21/09/2017 SETTORE 2, IMPEGNO N.DS02123/1 E/2 DEL 21/09/2017;166;2;2;1;7;4
ENERGETIC S.P.A.;18/01/2018;Gas;1.261,89;Liquidazione Fattura Nr. EX56758/2017  del 11/12/2017 (di cui Split per euro 227,55) - Servizio di fornitura Gas Naturale - plesso scolastico Vinci;171;1;3;2;5;6
ENERGETIC S.P.A.;18/01/2018;Gas;756,71;Liquidazione Fattura Nr. EX56755/2017  del 11/12/2017 (di cui Split per euro 136,46) - Servizio di fornitura Gas Naturale Palazzo Comunale;168;1;3;2;5;6
ENERGETIC S.P.A.;18/01/2018;Gas;535,90;Liquidazione Fattura Nr. EX56756/2017  del 11/12/2017 (di cui Split per euro 96,64) - Servizio di fornitura Gas Naturale - Palasport;172;1;3;2;5;6
ENERGETIC S.P.A.;18/01/2018;Gas;1.634,42;Liquidazione Fattura Nr. EX56757/2017  del 11/12/2017 (di cui Split per euro 294,73) - Servizio di fornitura Gas Naturale- scuola primaria Spicchio;170;1;3;2;5;6
ENERGETIC S.P.A.;18/01/2018;Gas;431,71;Liquidazione Fattura Nr. EX56759/2017  del 11/12/2017 (di cui Split per euro 77,85) - Servizio di fornitura Gas Naturale - scuola via XXV APRILE;171;1;3;2;5;6
ENERGETIC S.P.A.;18/01/2018;Gas;364,16;Liquidazione Fattura Nr. EX56750/2017  del 11/12/2017 (di cui Split per euro 65,67) - Servizio di fornitura Gas Naturale - Magazzino Comunale;168;1;3;2;5;6
ENERGETIC S.P.A.;18/01/2018;Gas;293,61;Liquidazione Fattura Nr. EX56754/2017  del 11/12/2017 (di cui Split per euro 52,95) - Servizio di fornitura Gas Naturale - scuola via Giusti;171;1;3;2;5;6
ENERGETIC S.P.A.;18/01/2018;Gas;1.240,31;Liquidazione Fattura Nr. EX56753/2017  del 11/12/2017 (di cui Split per euro 223,66) - Servizio di fornitura Gas Naturale scuola infanzia Sovigliana;169;1;3;2;5;6
ENERGETIC S.P.A.;18/01/2018;Gas;402,28;Liquidazione Fattura Nr. EX56752/2017  del 11/12/2017 (di cui Split per euro 72,54) - Servizio di fornitura Gas Naturale - uffici Spicchio;168;1;3;2;5;6
ENERGETIC S.P.A.;18/01/2018;Gas;507,39;Liquidazione Fattura Nr. EX56751/2017  del 11/12/2017 (di cui Split per euro 91,50) - Servizio di fornitura Gas Naturale - Asilo Nido;173;1;3;2;5;6
SINTESI S.R.L. - SISTEMI INTEGRATI PER UFFICIO;18/01/2018;Apparati di telecomunicazione;691,13;Liquidazione Fattura Nr. 48/E  del 27/11/2017 (di cui Split per euro 124,63) - ACQUISTO ATTREZZATURE INFORMATICHE - MEPA;167;2;2;1;7;4
ENERGETIC S.P.A.;18/01/2018;Gas;357,27;Liquidazione Fattura Nr. EX56756/2017  del 11/12/2017 (di cui Split per euro 64,42) - Servizio di fornitura Gas Naturale - Palasport;172;1;3;2;5;6
PRIMETECH S.R.L. UNIPERSONALE;18/01/2018;Servizi per i sistemi e relativa manutenzione;1.107,76;Liquidazione Fattura Nr. 000033/PA  del 15/12/2017 (di cui Split per euro 199,76) - Riparazione UPS e stipula contratto di assistenza 2018;163;1;3;2;19;5
CRISTOFORO SOC.COOP. SOCIALE ONLUS;18/01/2018;Altri servizi diversi n.a.c.;10.328,90;Liquidazione Fattura Nr. 709. 20006/ 2017  del 20/11/2017 (di cui Split per euro 938,99) - SERVIZIO ACCOMPAGNAMENTO SCUOLABUS MESE DI OTTOBRE 2017;177;1;3;2;99;999
BNP PARIBAS LEASE GROUP SA;18/01/2018;Noleggi di hardware;137,32;Liquidazione Fattura Nr. BKF75217  del 23/12/2017 (di cui Split per euro 24,76) - Fornitura generica;165;1;3;2;7;4
PRIMETECH S.R.L. UNIPERSONALE;18/01/2018;Servizi per i sistemi e relativa manutenzione;854,00;Liquidazione Fattura Nr. 000033/PA  del 15/12/2017 (di cui Split per euro 154,00) - Riparazione UPS e stipula contratto di assistenza 2018;164;1;3;2;19;5
CRISTOFORO SOC.COOP. SOCIALE ONLUS;18/01/2018;Altri servizi diversi n.a.c.;1.251,76;Liquidazione Fattura Nr. 710. 20006/ 2017  del 20/11/2017 (di cui Split per euro 113,80) - SERVIZIO PRESCUOLA MESE DI OTTOBRE 2017;177;1;3;2;99;999
C.I.S.  INTELLIGENT SYSTEM S.R.L.;18/01/2018;Servizi per i sistemi e relativa manutenzione;1.112,03;Liquidazione Fattura Nr. 128/PA  del 23/11/2017 (di cui Split per euro 200,53) - DETERMINAZIONE  N.123 DEL 21/09/2017 SETTORE 2, IMPEGNO N.DS02123/1 E/2 DEL 21/09/2017;163;1;3;2;19;5
ACQUE S.P.A.;22/01/2018;Acqua;24,97;Liquidazione Fattura Nr. 6017012000015716  del 13/12/2017 (di cui Split per euro 2,27) - FORNITURA ACQUA FONTANELLO VIA PIETRAMARINA;184;1;3;2;5;5
ACQUE S.P.A.;22/01/2018;Acqua;6,44;Liquidazione Fattura Nr. 6017012000016137  del 20/12/2017 (di cui Split per euro 0,59) - Fornitura ACQUA PALAZZO COMUNALE;181;1;3;2;5;5
ACQUE S.P.A.;22/01/2018;Acqua;6,44;Liquidazione Fattura Nr. 6017012000016133  del 20/12/2017 (di cui Split per euro 0,59) - Fornitura ACQUA UFF.COMUNALE VIA TORRE;181;1;3;2;5;5
ACQUE S.P.A.;22/01/2018;Acqua;22,01;Liquidazione Fattura Nr. 6017012000016128  del 20/12/2017 (di cui Split per euro 2,00) - Fornitura acqua biblioteca comunale;183;1;3;2;5;5
ACQUE S.P.A.;22/01/2018;Acqua;5,63;Liquidazione Fattura Nr. 6017012000016127  del 20/12/2017 (di cui Split per euro 0,51) - Fornitura acqua Palazzo Comunale;181;1;3;2;5;5
ACQUE S.P.A.;22/01/2018;Acqua;0,65;Liquidazione Fattura Nr. 6017012000015717  del 13/12/2017 (di cui Split per euro 0,06) - FORNITURA ACQUA IDRANTE VIA SOTTOBOSCO;184;1;3;2;5;5
ACQUE S.P.A.;22/01/2018;Acqua;186,20;Liquidazione Fattura Nr. 6017012000015648  del 12/12/2017 (di cui Split per euro 16,93) - FORNITURA ACQUA POTABILE FONTANELLO VIA MARMUGI;184;1;3;2;5;5
ACQUE S.P.A.;22/01/2018;Acqua;77,83;Liquidazione Fattura Nr. 6017012000015861  del 15/12/2017 (di cui Split per euro 7,08) - FORNITURA ACQUA VILLA REGHINI;187;1;3;2;5;5
ACQUE S.P.A.;22/01/2018;Acqua;7,51;Liquidazione Fattura Nr. 6017012000016156  del 20/12/2017 (di cui Split per euro 0,68) - Fornitura acqua fontanello;184;1;3;2;5;5
ACQUE S.P.A.;22/01/2018;Acqua;4,33;Liquidazione Fattura Nr. 6017012000016158  del 20/12/2017 (di cui Split per euro 0,39) - Fornitura acqua area camper;185;1;3;2;5;5
ACQUE S.P.A.;22/01/2018;Acqua;11,68;Liquidazione Fattura Nr. 6017012000016246  del 22/12/2017 (di cui Split per euro 1,06) - Fornitura acqua locali ex macelli;181;1;3;2;5;5
ACQUE S.P.A.;22/01/2018;Acqua;31,13;Liquidazione Fattura Nr. 6017012000015801  del 14/12/2017 (di cui Split per euro 2,83) - FORNITURA ACQUA FONTANELLO PARCO DEI MILLE;184;1;3;2;5;5
ACQUE S.P.A.;22/01/2018;Acqua;30,60;Liquidazione Fattura Nr. 6017012000015649  del 12/12/2017 (di cui Split per euro 2,78) - FORNITURA ACQUA POTABILE FONTANA VIA TOGLIATTI;184;1;3;2;5;5
ACQUE S.P.A.;22/01/2018;Acqua;17,50;Liquidazione Fattura Nr. 6017012000015462  del 07/12/2017 al netto di Nota: N. 6017012000009210 del 09/08/2017 di 564,75 (di cui Split per euro 1,59) - FORNITURA ACQUA POTABILE SCUOLA PRIMARIA DI VINCI;182;1;3;2;5;5
ACQUE S.P.A.;22/01/2018;Acqua;142,76;Liquidazione Fattura Nr. 6017012000016069  del 20/12/2017 (di cui Split per euro 12,98) - Fornitura acqua per bagni pubblici;185;1;3;2;5;5
ACQUE S.P.A.;22/01/2018;Acqua;750,39;Liquidazione Fattura Nr. 6017012000016350  del 27/12/2017 (di cui Split per euro 68,22) - Fornitura ACQUA ASILO NIDO;186;1;3;2;5;5
ACQUE S.P.A.;22/01/2018;Acqua;6,06;Liquidazione Fattura Nr. 6017012000016322  del 22/12/2017 (di cui Split per euro 0,55) - Fornitura acqua fontanello;184;1;3;2;5;5
ACQUE S.P.A.;22/01/2018;Acqua;31,13;Liquidazione Fattura Nr. 6017012000015505  del 07/12/2017 (di cui Split per euro 2,83) - FORNITURA ACQUA POTABILE font. via bixio;184;1;3;2;5;5
ACQUE S.P.A.;22/01/2018;Acqua;6,92;Liquidazione Fattura Nr. 6017012000015506  del 07/12/2017 (di cui Split per euro 0,63) - FORNITURA ACQUA POTABILE FONTANELLO VIA N. SAURO;184;1;3;2;5;5
ACQUE S.P.A.;22/01/2018;Acqua;0,87;Liquidazione Fattura Nr. 6017012000015897  del 15/12/2017 (di cui Split per euro 0,08) - FORNITURA ACQUA IDRANTE;184;1;3;2;5;5
ACQUE S.P.A.;22/01/2018;Acqua;42,79;Liquidazione Fattura Nr. 6017012000015504  del 07/12/2017 (di cui Split per euro 3,89) - FORNITURA ACQUA POTABILE UFFICI COMUNALI;181;1;3;2;5;5
ACQUE S.P.A.;22/01/2018;Acqua;252,07;Liquidazione Fattura Nr. 6017012000015896  del 15/12/2017 (di cui Split per euro 22,92) - FORNITURA ACQUA PER MAGAZZINO COMUNALE;181;1;3;2;5;5
PERSONALE DIPENDENTE SEDE;23/01/2018;Rimborso per viaggio e trasloco;332,80;stipendio 01;198;1;3;2;2;1
AMMINISTRATORI COMUNALI;23/01/2018;Organi istituzionali dell'amministrazione - indennit�;8.330,37;stipendio 01;226;1;3;2;1;1
COMUNE DI VINCI- CONTI CORRENTI POSTALI VARI;24/01/2018;Commissioni per servizi finanziari;94,98;SPESE SU CCP POSTALI DELL'ENTE 4 TRIMESTRE 2017. NIDO;302;1;3;2;17;1
COMUNE DI VINCI- CONTI CORRENTI POSTALI VARI;24/01/2018;Commissioni per servizi finanziari;45,00;SPESE SU CCP POSTALI DELL'ENTE 4 TRIMESTRE 2017. ICI;302;1;3;2;17;1
COMUNE DI VINCI- CONTI CORRENTI POSTALI VARI;24/01/2018;Commissioni per servizi finanziari;53,16;SPESE SU CCP POSTALI DELL'ENTE 4 TRIMESTRE 2017. IMPOSTA PUBLICITA';302;1;3;2;17;1
COMUNE DI VINCI- CONTI CORRENTI POSTALI VARI;24/01/2018;Commissioni per servizi finanziari;46,36;SPESE SU CCP POSTALI DELL'ENTE 4 TRIMESTRE 2017. ONERI;302;1;3;2;17;1
COMUNE DI VINCI- CONTI CORRENTI POSTALI VARI;24/01/2018;Commissioni per servizi finanziari;45,34;SPESE SU CCP POSTALI DELL'ENTE 4 TRIMESTRE 2017. POLIZIA MUNICIPALE;302;1;3;2;17;1
COMUNE DI VINCI- CONTI CORRENTI POSTALI VARI;24/01/2018;Commissioni per servizi finanziari;46,36;SPESE SU CCP POSTALI DELL'ENTE 4 TRIMESTRE 2017. SANZIONI AMM.VE;302;1;3;2;17;1
COMUNE DI VINCI- CONTI CORRENTI POSTALI VARI;24/01/2018;Commissioni per servizi finanziari;106,20;SPESE SU CCP POSTALI DELL'ENTE 4 TRIMESTRE 2017. TESORERIA;302;1;3;2;17;1
COMUNE DI VINCI- CONTI CORRENTI POSTALI VARI;24/01/2018;Commissioni per servizi finanziari;60,64;SPESE SU CCP POSTALI DELL'ENTE 4 TRIMESTRE 2017. TOSAP;302;1;3;2;17;1
COMUNE DI VINCI- CONTI CORRENTI POSTALI VARI;24/01/2018;Commissioni per servizi finanziari;74,92;SPESE SU CCP POSTALI DELL'ENTE 4 TRIMESTRE 2017. TRASPORTO;302;1;3;2;17;1
NEOPOST ITALIA - AFFRANCAPOSTA;25/01/2018;Spese postali;1.250,00;VERSAMENTO SU CONTO POSTALE PER AFFRANCATRICE NEOPOST N. MART. CP5W;306;1;3;2;16;2
LENSI MARZIO E AMMANNATI GIANNA PAOLA;25/01/2018;Locazione di beni immobili;6.375,00;CANONE LOCAZIONE IMMOBILE ARCHIVIO VIA ROMA 1� TRIM. 2018;307;1;3;2;7;1
MINISTERO DELL'INTERNO DIREZIONE CENTRALE PER I SERVIZI DEMOGRAFICI;25/01/2018;Trasferimenti correnti a Ministeri;1.410,36;COMUNE DI VINCI, CORRISPETTIVO PER IL RILASCIO DI N. 84 CARTE D�IDENTIT� ELETTRONICHE 1/15 .01.2018;305;1;4;1;1;1
ALIA SERVIZI AMBIENTALI S.P.A.;26/01/2018;Contratti di servizio per la raccolta rifiuti;179.528,61;Liquidazione Fattura Nr. 0000132655  del 31/12/2017 (di cui Split per euro 16.320,78) - SERVIZIO INTEGRATO RACCOLTA, SPAZZAMENTO E SMALTIMENTO DEI RIFIUTI URBANI E RIFIUTI SPECIALI ASSIMILATI AI RIFIUTI URBANI - AFFIDAMENTO A ALIA SERVIZI A;308;1;3;2;15;4
SCOGNAMIGLIO ANGELA;29/01/2018;Altri trasferimenti a famiglie n.a.c.;150,00;"DIRITTO ALLO STUDIO - ""PACCHETTO SCUOLA"" A.S. 2017/2018 PER PARRINI ALESSANDRO";312;1;4;2;5;999
SANCEBUCHE EDLYN;29/01/2018;Altri trasferimenti a famiglie n.a.c.;280,00;"DIRITTO ALLO STUDIO - ""PACCHETTO SCUOLA"" A.S. 2017/2018 PER PINEDA AIZEL JEDLYN";312;1;4;2;5;999
RAI LAKHPAT;29/01/2018;Altri trasferimenti a famiglie n.a.c.;190,00;"DIRITTO ALLO STUDIO - ""PACCHETTO SCUOLA"" A.S. 2017/2018 PER RAI DIVYA";312;1;4;2;5;999
SCOGNAMIGLIO ANGELA;29/01/2018;Altri trasferimenti a famiglie n.a.c.;190,00;"DIRITTO ALLO STUDIO - ""PACCHETTO SCUOLA"" A.S. 2017/2018 PER PARRINI ANDREA";312;1;4;2;5;999
SABRI NADIA;29/01/2018;Altri trasferimenti a famiglie n.a.c.;170,00;"DIRITTO ALLO STUDIO - ""PACCHETTO SCUOLA"" A.S. 2017/2018 PER ZEROUAL IMANE";312;1;4;2;5;999
REZMIVES SEVER;29/01/2018;Altri trasferimenti a famiglie n.a.c.;280,00;"DIRITTO ALLO STUDIO - ""PACCHETTO SCUOLA"" A.S. 2017/2018 PER REZMIVES DEVIS";312;1;4;2;5;999
SADIK HAKIMA;29/01/2018;Altri trasferimenti a famiglie n.a.c.;280,00;"DIRITTO ALLO STUDIO - ""PACCHETTO SCUOLA"" A.S. 2017/2018 PER SAADI ASIIA";312;1;4;2;5;999
RAFIE EL HASSANE;29/01/2018;Altri trasferimenti a famiglie n.a.c.;150,00;"DIRITTO ALLO STUDIO - ""PACCHETTO SCUOLA"" A.S. 2017/2018 PER RAFIE MOHAMED";312;1;4;2;5;999
PACLEB MYRNA;29/01/2018;Altri trasferimenti a famiglie n.a.c.;190,00;"DIRITTO ALLO STUDIO - ""PACCHETTO SCUOLA"" A.S. 2017/2018 PER BILGERA ASHLEY WINSLET";312;1;4;2;5;999
OUAZINE SAMIRA;29/01/2018;Altri trasferimenti a famiglie n.a.c.;150,00;"DIRITTO ALLO STUDIO - ""PACCHETTO SCUOLA"" A.S. 2017/2018 PER MIFTAH RIHAB";312;1;4;2;5;999
PANNINI TAMARA;29/01/2018;Altri trasferimenti a famiglie n.a.c.;210,00;"DIRITTO ALLO STUDIO - ""PACCHETTO SCUOLA""  A.S. 2017/2018 PER PANNINI JOEL";312;1;4;2;5;999
PIECHOWIAK PATRYCJA ANNA;29/01/2018;Altri trasferimenti a famiglie n.a.c.;210,00;"DIRITTO ALLO STUDIO - ""PACCHETTO SCUOLA"" A.S. 2017/2018 PER BALSAMELLO AURORA";312;1;4;2;5;999
SUSANU MARINA MANUELA;29/01/2018;Altri trasferimenti a famiglie n.a.c.;280,00;"DIRITTO ALLO STUDIO - ""PACCHETTO SCUOLA"" A.S. 2017/2018 PER SUSANU MARINA ROBERTA";312;1;4;2;5;999
RAFIE EL HASSANE;29/01/2018;Altri trasferimenti a famiglie n.a.c.;170,00;"DIRITTO ALLO STUDIO - ""PACCHETTO SCUOLA"" A.S. 2017/2018 PER RAFIE HASNAA";312;1;4;2;5;999
POLITO PATRIZIA;29/01/2018;Altri trasferimenti a famiglie n.a.c.;280,00;"DIRITTO ALLO STUDIO - ""PACCHETTO SCUOLA"" A.S. 2017/2018 PER BERTELLI NICCOLO'";312;1;4;2;5;999
POLITO PATRIZIA;29/01/2018;Altri trasferimenti a famiglie n.a.c.;170,00;"DIRITTO ALLO STUDIO - ""PACCHETTO SCUOLA"" A.S. 2017/2018 PER BERTELLI THOMAS";312;1;4;2;5;999
POLITO PATRIZIA;29/01/2018;Altri trasferimenti a famiglie n.a.c.;190,00;"DIRITTO ALLO STUDIO - ""PACCHETTO SCUOLA"" A.S. 2017/2018 PER BERTELLI VALERY";312;1;4;2;5;999
SPORTIELLO GIANNA;29/01/2018;Altri trasferimenti a famiglie n.a.c.;150,00;"DIRITTO ALLO STUDIO - ""PACCHETTO SCUOLA"" A.S. 2017/2018 PER D'AMBROSIO MARCO";312;1;4;2;5;999
ZAOUAL FATIMA;29/01/2018;Altri trasferimenti a famiglie n.a.c.;280,00;"DIRITTO ALLO STUDIO - ""PACCHETTO SCUOLA"" A.S. 2017/2018 PER KASSASS AYMANE";312;1;4;2;5;999
DAMAZ S.R.L. - INGROSSO CASALINGHI;29/01/2018;Altri beni e materiali di consumo n.a.c.;265,89;Liquidazione Fattura Nr. 12608P  del 27/11/2017 (di cui Split per euro 47,95) - Ordine n. 6 - 1� consegna - determina n. 65 - 2017 - settore 1;314;1;3;1;2;999
ASSOCIAZIONE PORTE APERTE  APS-ONLUS;29/01/2018;Trasferimenti correnti a Istituzioni Sociali Private ;6.000,00;contributo Luglio soviglianese 2017;313;1;4;4;1;1
INDUSTRIA GRAFICA NUOVA STAMPA SRL;29/01/2018;Carta, cancelleria e stampati;195,20;Liquidazione Fattura Nr. PA0000003 del 30/09/2017 - STAMPA VOLANTINO INFORMATIVO PER IL MUSEO LEONARDIANO. AFFIDAMENTO DIRETTO;319;1;3;1;2;1
COOPERATIVA SOCIALE ZOE S.C.A.R.L.;29/01/2018;Servizi di pulizia e lavanderia;794,46;Liquidazione Fattura Nr. FATTPA 317_17  del 31/10/2017 (di cui Split per euro 143,26) - PULIZIA PALESTRE E RSA OTTOBRE 2017;316;1;3;2;13;2
DAMAZ S.R.L. - INGROSSO CASALINGHI;29/01/2018;Altri beni e materiali di consumo n.a.c.;62,37;Liquidazione Fattura Nr. 12607P  del 27/11/2017 (di cui Split per euro 11,25) - Ordine n. 1 - Garage determina n. 180 - 2017 - settore 1;315;1;3;1;2;999
SCAPPINI  ALESSANDRO;29/01/2018;Spese per commissioni e comitati dell'Ente;107,58;LIQUIDAZIONE FATTURA NR. 1PA/2017  DEL 28/11/2017 (DI CUI SPLIT PER EURO 19,40) - PRESTAZIONE PROFESSIONALE RELATIVAMENTE ALLA PARTECIPAZIONE SEDUTE COMMISSIONE EDILIZIA -COMUNE DI VINCI-P.ZZA LEONARDO DA VINCI 29;311;1;3;2;99;5
ORTEGA QUISPE YOVANNA MILAGROS;29/01/2018;Altri trasferimenti a famiglie n.a.c.;280,00;"DIRITTO ALLO STUDIO - ""PACCHETTO SCUOLA"" A.S. 2017/2018 PER TINEO ORTEGA ANGELO MALECI";312;1;4;2;5;999
CENTRO  FORMAZIONE E CULTURA MUSICALE;29/01/2018;Trasferimenti correnti a Istituzioni Sociali Private ;1.000,00;CONTRIBUTO FESTA DELLA MUSICA 2017;313;1;4;4;1;1
BITICINO S.P.A.;29/01/2018;Manutenzione ordinaria e riparazioni di macchine per ufficio ;366,00;Liquidazione Fattura Nr. I17/120396  del 30/11/2017 (di cui Split per euro 66,00) - AFFIDAMENTO PER VERIFICA TECNICA DEL GRUPPO UPS COMUNALE -;309;1;3;2;9;6
TAFA SHAHE;29/01/2018;Altri trasferimenti a famiglie n.a.c.;280,00;"DIRITTO ALLO STUDIO - ""PACCHETTO SCUOLA"" A.S. 2017/2018 PER TAFA CATERINA";312;1;4;2;5;999
ULIVELLI ELISA;29/01/2018;Altri trasferimenti a famiglie n.a.c.;150,00;"DIRITTO ALLO STUDIO - ""PACCHETTO SCUOLA"" A.S. 2017/2018 PER DI VENEZIA MARTINA";312;1;4;2;5;999
TURCEA NADIA NICOLETA;29/01/2018;Altri trasferimenti a famiglie n.a.c.;210,00;"DIRITTO ALLO STUDIO - ""PACCHETTO SCUOLA"" A.S. 2017/2018 PER BADULESCU ALEXIA MARIA";312;1;4;2;5;999
TURCEA NADIA NICOLETA;29/01/2018;Altri trasferimenti a famiglie n.a.c.;190,00;"DIRITTO ALLO STUDIO - ""PACCHETTO SCUOLA"" A.S. 2017/2018 PER BADULESCU LUIS FLORIN";312;1;4;2;5;999
VEZI MARINELA;29/01/2018;Altri trasferimenti a famiglie n.a.c.;210,00;"DIRITTO ALLO STUDIO - ""PACCHETTO SCUOLA"" A.S. 2017/2018 PER VEZI KEVIN";312;1;4;2;5;999
CONVERGE S.P.A.;29/01/2018;Noleggi di hardware;634,89;Liquidazione Fattura Nr. 205057  del 31/12/2017 (di cui Split per euro 114,49) - NOLEGGIO DI DUE MACCHINE MULTIFUNZIONE MEDIANTE ADESIONE A CONVENZIONE CONSIP - DETERMINA DI AFFIDAMENTO;310;1;3;2;7;4
VEZI MARINELA;29/01/2018;Altri trasferimenti a famiglie n.a.c.;170,00;"DIRITTO ALLO STUDIO - ""PACCHETTO SCUOLA"" A.S. 2017/2018 PER VEZI LORENZO";312;1;4;2;5;999
CITTA' METROPOLITANA DI FIRENZE;29/01/2018;Altri servizi diversi n.a.c.;358,58;RIVERSAMENTO TEFA TRASFERIMENTO MIUR;317;1;3;2;99;999
NO� MULTIMEDIA SRL;29/01/2018;Altri beni e materiali di consumo n.a.c.;207,40;Liquidazione Fattura Nr. 8/E del 13/09/2017 - REALIZZAZIONE ELEMENTI DI SEGNALETICA INFORMATIVA INTERNA PER PERCORSO DI VISITA MUSEO LEONARDIANO. AFFIDAMENTO TRAMITE START E IMPEGNO DI SPESA;319;1;3;1;2;999
OSA RIVERA NELTIS;29/01/2018;Altri trasferimenti a famiglie n.a.c.;170,00;"DIRITTO ALLO STUDIO - ""PACCHETTO SCUOLA"" A.S. 2017/2018 PER MICHELI ALESSANDRO";312;1;4;2;5;999
ULIVELLI ELISA;29/01/2018;Altri trasferimenti a famiglie n.a.c.;150,00;"DIRITTO ALLO STUDIO - ""PACCHETTO SCUOLA"" A.S. 2017/2018 PER DI VENEZIA ANDREA";312;1;4;2;5;999
FALCO GIUSEPPE;29/01/2018;Altri trasferimenti a famiglie n.a.c.;190,00;"DIRITTO ALLO STUDIO - ""PACCHETTO SCUOLA"" A.S. 2017/2018 PER FALCO FEDERICA";312;1;4;2;5;999
CULLHAJ ROZETA;29/01/2018;Altri trasferimenti a famiglie n.a.c.;280,00;"DIRITTO ALLO STUDIO - ""PACCHETTO SCUOLA"" A.S. 2017/2018 PER CULLHAJ ERIS";312;1;4;2;5;999
CHAND AMRIK;29/01/2018;Altri trasferimenti a famiglie n.a.c.;170,00;"DIRITTO ALLO STUDIO - ""PACCHETTO SCUOLA"" A.S. 2017/2018 PER PAUL MANICH";312;1;4;2;5;999
CHAND AMRIK;29/01/2018;Altri trasferimenti a famiglie n.a.c.;190,00;"DIRITTO ALLO STUDIO - ""PACCHETTO SCUOLA"" A.S. 2017/2018 PER PAUL AMIR";312;1;4;2;5;999
CECCONI STEFANO;29/01/2018;Altri trasferimenti a famiglie n.a.c.;190,00;"DIRITTO ALLO STUDIO - ""PACCHETTO SCUOLA"" A.S. 2017/2018 PER CECCONI LISA";312;1;4;2;5;999
CAPPELLINI CATIUSCIA;29/01/2018;Altri trasferimenti a famiglie n.a.c.;190,00;"DIRITTO ALLO STUDIO - ""PACCHETTO SCUOLA"" A.S. 2017/2018 PER GUARGUAGLINI NICCOLO'";312;1;4;2;5;999
CAPOANO MARGHERITA;29/01/2018;Altri trasferimenti a famiglie n.a.c.;280,00;"DIRITTO ALLO STUDIO - ""PACCHETTO SCUOLA"" A.S. 2017/2018 PER FIORE GIOVANNI";312;1;4;2;5;999
CULLHAJ ROZETA;29/01/2018;Altri trasferimenti a famiglie n.a.c.;150,00;"DIRITTO ALLO STUDIO - ""PACCHETTO SCUOLA"" A.S. 2017/2018 PER CULLHAJ JESSICA";312;1;4;2;5;999
DEGL'INNOCENTI JESSICA;29/01/2018;Altri trasferimenti a famiglie n.a.c.;150,00;"DIRITTO ALLO STUDIO - ""PACCHETTO SCUOLA"" A.S. 2017/2018 PER ESPOSITO MATILDE";312;1;4;2;5;999
EZZAHIDY  ZOHRA;29/01/2018;Altri trasferimenti a famiglie n.a.c.;190,00;"DIRITTO ALLO STUDIO - ""PACCHETTO SCUOLA"" A.S. 2017/2018 PER TABET ZAKARIA";312;1;4;2;5;999
FALCHI PICCHINESI ELEONORA;29/01/2018;Altri trasferimenti a famiglie n.a.c.;190,00;"DIRITTO ALLO STUDIO - ""PACCHETTO SCUOLA""  A.S. 2017/2018 PER PINZANI NICCOLO'";312;1;4;2;5;999
FALCHI PICCHINESI ELEONORA;29/01/2018;Altri trasferimenti a famiglie n.a.c.;190,00;"DIRITTO ALLO STUDIO - ""PACCHETTO SCUOLA""  A.S. 2017/2018 PER PINZANI MATILDE";312;1;4;2;5;999
D'ONOFRIO CARMELA;29/01/2018;Altri trasferimenti a famiglie n.a.c.;150,00;"DIRITTO ALLO STUDIO - ""PACCHETTO SCUOLA""  A.S. 2017/2018 PER MAIONE SALVATORE";312;1;4;2;5;999
DI MICHELE PAOLA;29/01/2018;Altri trasferimenti a famiglie n.a.c.;150,00;"DIRITTO ALLO STUDIO - ""PACCHETTO SCUOLA"" A.S. 2017/2018 PER BONGIOVANNI CHIARA";312;1;4;2;5;999
NERI MICHELA;29/01/2018;Altri trasferimenti a famiglie n.a.c.;150,00;"DIRITTO ALLO STUDIO - ""PACCHETTO SCUOLA"" A.S. 2017/2018 PER FRANCALANCI ARIANNA";312;1;4;2;5;999
DIONISIO VALERIA;29/01/2018;Altri trasferimenti a famiglie n.a.c.;150,00;"DIRITTO ALLO STUDIO - ""PACCHETTO SCUOLA"" A.S. 2017/2018 PER ARMENTO LUCA";312;1;4;2;5;999
DIONISIO VALERIA;29/01/2018;Altri trasferimenti a famiglie n.a.c.;190,00;"DIRITTO ALLO STUDIO - ""PACCHETTO SCUOLA"" A.S. 2017/2018 PER ARMENTO GIULIA";312;1;4;2;5;999
CANNIZZARO  CARMELA;29/01/2018;Altri trasferimenti a famiglie n.a.c.;150,00;"DIRITTO ALLO STUDIO - ""PACCHETTO SCUOLA"" A.S. 2017/2018 PER LUPICA TONDO MARTINA";312;1;4;2;5;999
CANNIZZARO  CARMELA;29/01/2018;Altri trasferimenti a famiglie n.a.c.;150,00;"DIRITTO ALLO STUDIO - ""PACCHETTO SCUOLA"" A.S. 2017/2018 PER LUPICA TONDO ALESSIO ";312;1;4;2;5;999
BARTOLESI ALBERTA;29/01/2018;Altri trasferimenti a famiglie n.a.c.;190,00;"DIRITTO ALLO STUDIO - ""PACCHETTO SCUOLA""  A.S. 2017/2018 PER CINELLI FILIPPO";312;1;4;2;5;999
BARBIERI JESSICA;29/01/2018;Altri trasferimenti a famiglie n.a.c.;150,00;"DIRITTO ALLO STUDIO - ""PACCHETTO SCUOLA""  A.S. 2017/2018 PER NANNETTI MIRCO";312;1;4;2;5;999
BARBERA GIANFRANCO;29/01/2018;Altri trasferimenti a famiglie n.a.c.;150,00;"DIRITTO ALLO STUDIO - ""PACCHETTO SCUOLA""  A.S. 2017/2018 PER BARBERA AZZURRA";312;1;4;2;5;999
APRILE GAETANO;29/01/2018;Altri trasferimenti a famiglie n.a.c.;210,00;"DIRITTO ALLO STUDIO - ""PACCHETTO SCUOLA"" A.S. 2017/2018 PER APRILE AURORA";312;1;4;2;5;999
ANTOCI VALERICA;29/01/2018;Altri trasferimenti a famiglie n.a.c.;190,00;"DIRITTO ALLO STUDIO - ""PACCHETTO SCUOLA"" A.S. 2017/2018 PER ANTOCI LORI ANDREI";312;1;4;2;5;999
ANTOCI VALERICA;29/01/2018;Altri trasferimenti a famiglie n.a.c.;280,00;"DIRITTO ALLO STUDIO - ""PACCHETTO SCUOLA"" A.S. 2017/2018 PER ANTOCI ELISA ANDREIA";312;1;4;2;5;999
ANTOCI VALERICA;29/01/2018;Altri trasferimenti a famiglie n.a.c.;190,00;"DIRITTO ALLO STUDIO - ""PACCHETTO SCUOLA"" A.S. 2017/2018 PER ANTOCI ADINA CATALINA";312;1;4;2;5;999
BARTOLESI ALBERTA;29/01/2018;Altri trasferimenti a famiglie n.a.c.;150,00;"DIRITTO ALLO STUDIO - ""PACCHETTO SCUOLA""  A.S. 2017/2018 PER CINELLI CATERINA";312;1;4;2;5;999
BERCHIELLI ALBA;29/01/2018;Altri trasferimenti a famiglie n.a.c.;190,00;"DIRITTO ALLO STUDIO - ""PACCHETTO SCUOLA""  A.S. 2017/2018 PER BERTELLI STEFANO";312;1;4;2;5;999
CALO' LAURA;29/01/2018;Altri trasferimenti a famiglie n.a.c.;150,00;"DIRITTO ALLO STUDIO - ""PACCHETTO SCUOLA"" A.S. 2017/2018 PER MAZZOLA SAMUEL KAROL";312;1;4;2;5;999
BUCALOSSI ROBERTO;29/01/2018;Altri trasferimenti a famiglie n.a.c.;150,00;"DIRITTO ALLO STUDIO - ""PACCHETTO SCUOLA""  A.S. 2017/2018 PER BUCALOSSI ELENA";312;1;4;2;5;999
CALCAGNO PATRIZIA;29/01/2018;Altri trasferimenti a famiglie n.a.c.;150,00;"DIRITTO ALLO STUDIO - ""PACCHETTO SCUOLA"" A.S. 2017/2018 PER SCALESE VANESSA";312;1;4;2;5;999
CALCAGNO PATRIZIA;29/01/2018;Altri trasferimenti a famiglie n.a.c.;280,00;"DIRITTO ALLO STUDIO - ""PACCHETTO SCUOLA"" A.S. 2017/2018 PER SCALESE ILARIA";312;1;4;2;5;999
BORGIOLI MARIA GRAZIA;29/01/2018;Altri trasferimenti a famiglie n.a.c.;190,00;"DIRITTO ALLO STUDIO - ""PACCHETTO SCUOLA"" A.S. 2017/2018 PER POLICICCHIO NICOLETTA";312;1;4;2;5;999
BILANGO  CESAR;29/01/2018;Altri trasferimenti a famiglie n.a.c.;280,00;"DIRITTO ALLO STUDIO - ""PACCHETTO SCUOLA"" A.S. 2017/2018 PER BILANGO ANGELINA";312;1;4;2;5;999
BORGIOLI MARIA GRAZIA;29/01/2018;Altri trasferimenti a famiglie n.a.c.;190,00;"DIRITTO ALLO STUDIO - ""PACCHETTO SCUOLA"" A.S. 2017/2018 PER POLICICCHIO DOMENICO";312;1;4;2;5;999
BONI  PAMELA;29/01/2018;Altri trasferimenti a famiglie n.a.c.;150,00;"DIRITTO ALLO STUDIO - ""PACCHETTO SCUOLA"" A.S. 2017/2018 PER STEFANACCI SARA";312;1;4;2;5;999
BILANGO  CESAR;29/01/2018;Altri trasferimenti a famiglie n.a.c.;190,00;"DIRITTO ALLO STUDIO - ""PACCHETTO SCUOLA"" A.S. 2017/2018 PER BILANGO MAUREEN JENN";312;1;4;2;5;999
FALCO GIUSEPPE;29/01/2018;Altri trasferimenti a famiglie n.a.c.;190,00;"DIRITTO ALLO STUDIO - ""PACCHETTO SCUOLA"" A.S. 2017/2018 PER FALCO CAMILLA";312;1;4;2;5;999
RAI LAKHPAT;29/01/2018;Altri trasferimenti a famiglie n.a.c.;150,00;"DIRITTO ALLO STUDIO - ""PACCHETTO SCUOLA"" A.S. 2017/2018 PER RAI RAHUL";312;1;4;2;5;999
MARCELLI DANTE;29/01/2018;Altri trasferimenti a famiglie n.a.c.;280,00;"DIRITTO ALLO STUDIO - ""PACCHETTO SCUOLA""  A.S. 2017/2018 PER MARCELLI DAFNE";312;1;4;2;5;999
LUKU NAFIE;29/01/2018;Altri trasferimenti a famiglie n.a.c.;210,00;"DIRITTO ALLO STUDIO - ""PACCHETTO SCUOLA"" A.S. 2017/2018 PER LUKU IMELIA";312;1;4;2;5;999
LOTTI LORELLA;29/01/2018;Altri trasferimenti a famiglie n.a.c.;190,00;"DIRITTO ALLO STUDIO - ""PACCHETTO SCUOLA""  A.S. 2017/2018 PER PANTERA DUCCIO";312;1;4;2;5;999
LOPARDO RAFFAELLA;29/01/2018;Altri trasferimenti a famiglie n.a.c.;190,00;"DIRITTO ALLO STUDIO - ""PACCHETTO SCUOLA"" A.S. 2017/2018 PER DA NAZARET CATERINA";312;1;4;2;5;999
LAMSSAKHER  RAHHAL;29/01/2018;Altri trasferimenti a famiglie n.a.c.;170,00;"DIRITTO ALLO STUDIO - ""PACCHETTO SCUOLA"" A.S. 2017/2018 PER LAMSSKHER AYOUB";312;1;4;2;5;999
LAMSSAKHER  RAHHAL;29/01/2018;Altri trasferimenti a famiglie n.a.c.;280,00;"DIRITTO ALLO STUDIO - ""PACCHETTO SCUOLA"" A.S. 2017/2018 PER LAMSSACHER IKRMA";312;1;4;2;5;999
KARAFILI BLERINA;29/01/2018;Altri trasferimenti a famiglie n.a.c.;210,00;"DIRITTO ALLO STUDIO - ""PACCHETTO SCUOLA"" A.S. 2017/2018 PER KARAFILI KLARA";312;1;4;2;5;999
KAMARI ZINEB;29/01/2018;Altri trasferimenti a famiglie n.a.c.;280,00;"DIRITTO ALLO STUDIO - ""PACCHETTO SCUOLA"" A.S. 2017/2018 PER MANAR IMAD";312;1;4;2;5;999
KADIJA PRANDVERA;29/01/2018;Altri trasferimenti a famiglie n.a.c.;150,00;"DIRITTO ALLO STUDIO - ""PACCHETTO SCUOLA"" A.S. 2017/2018 PER KADIJA JURGEN";312;1;4;2;5;999
GORINI MARCO;29/01/2018;Altri trasferimenti a famiglie n.a.c.;280,00;"DIRITTO ALLO STUDIO - ""PACCHETTO SCUOLA""  A.S. 2017/2018 PER GORINI ANDREA";312;1;4;2;5;999
GIUNTINI ELISA;29/01/2018;Altri trasferimenti a famiglie n.a.c.;190,00;"DIRITTO ALLO STUDIO - ""PACCHETTO SCUOLA"" A.S. 2017/2018 PER ARAMINI ASIA";312;1;4;2;5;999
MANZARI IMMACOLATA;29/01/2018;Altri trasferimenti a famiglie n.a.c.;210,00;"DIRITTO ALLO STUDIO - ""PACCHETTO SCUOLA""  A.S. 2017/2018 PER MORI LEONARDO";312;1;4;2;5;999
MARCELLI DANTE;29/01/2018;Altri trasferimenti a famiglie n.a.c.;150,00;"DIRITTO ALLO STUDIO - ""PACCHETTO SCUOLA""  A.S. 2017/2018 PER MARCELLI ENEA";312;1;4;2;5;999
GANA SULTANA;29/01/2018;Altri trasferimenti a famiglie n.a.c.;190,00;"DIRITTO ALLO STUDIO -  ""PACCHETTO SCUOLA"" A.S. 2017/2018 PER BENANI AHMED";312;1;4;2;5;999
MOULHAM RACHIDA;29/01/2018;Altri trasferimenti a famiglie n.a.c.;150,00;"DIRITTO ALLO STUDIO - ""PACCHETTO SCUOLA"" A.S. 2017/2018 PER HARRAT OMEMA";312;1;4;2;5;999
NACUCCHIO ANNA;29/01/2018;Altri trasferimenti a famiglie n.a.c.;190,00;"DIRITTO ALLO STUDIO - ""PACCHETTO SCUOLA"" A.S. 2017/2018 PER NOVELLINO PANCRAZIO";312;1;4;2;5;999
NACUCCHIO ANNA;29/01/2018;Altri trasferimenti a famiglie n.a.c.;150,00;"DIRITTO ALLO STUDIO - ""PACCHETTO SCUOLA"" A.S. 2017/2018 PER NOVELLINO MARTINA";312;1;4;2;5;999
MUGRI  LAURA;29/01/2018;Altri trasferimenti a famiglie n.a.c.;210,00;"DIRITTO ALLO STUDIO - ""PACCHETTO SCUOLA"" A.S. 2017/2018 PER GIORDANO TOMMASO";312;1;4;2;5;999
MOULHAM RACHIDA;29/01/2018;Altri trasferimenti a famiglie n.a.c.;280,00;"DIRITTO ALLO STUDIO - ""PACCHETTO SCUOLA"" A.S. 2017/2018 PER HARRAT RAHIANA";312;1;4;2;5;999
MOULHAM RACHIDA;29/01/2018;Altri trasferimenti a famiglie n.a.c.;190,00;"DIRITTO ALLO STUDIO - ""PACCHETTO SCUOLA"" A.S. 2017/2018 PER HARRAT AYOUB";312;1;4;2;5;999
MECACCI KATIA;29/01/2018;Altri trasferimenti a famiglie n.a.c.;170,00;"DIRITTO ALLO STUDIO - ""PACCHETTO SCUOLA""  A.S. 2017/2018 PER BERNARDI DENISE";312;1;4;2;5;999
MOCKA  KRISTAQ;29/01/2018;Altri trasferimenti a famiglie n.a.c.;150,00;"DIRITTO ALLO STUDIO - ""PACCHETTO SCUOLA"" A.S. 2017/2018 PER MOCKA BENEDETTA";312;1;4;2;5;999
MILITELLO SERENA;29/01/2018;Altri trasferimenti a famiglie n.a.c.;280,00;"DIRITTO ALLO STUDIO - ""PACCHETTO SCUOLA"" A.S. 2017/2018 PER BARRANCA GABRIELE";312;1;4;2;5;999
MEZLINI TAHAR;29/01/2018;Altri trasferimenti a famiglie n.a.c.;170,00;"DIRITTO ALLO STUDIO - ""PACCHETTO SCUOLA"" A.S. 2017/2018 PER MEZLINI NADIA";312;1;4;2;5;999
MEZGUI HOUDA;29/01/2018;Altri trasferimenti a famiglie n.a.c.;190,00;"DIRITTO ALLO STUDIO - ""PACCHETTO SCUOLA"" A.S. 2017/2018 PER KAMAL ILYASS";312;1;4;2;5;999
MEZGUI HOUDA;29/01/2018;Altri trasferimenti a famiglie n.a.c.;150,00;"DIRITTO ALLO STUDIO - ""PACCHETTO SCUOLA"" A.S. 2017/2018 PER KAMAL DOHA";312;1;4;2;5;999
GIOVANNONI PATRIZIA;29/01/2018;Altri trasferimenti a famiglie n.a.c.;280,00;"DIRITTO ALLO STUDIO - ""PACCHETTO SCUOLA"" A.S. 2017/2018 PER VIGNOZZI SARA";312;1;4;2;5;999
GUO SUGUANG;29/01/2018;Altri trasferimenti a famiglie n.a.c.;280,00;"DIRITTO ALLO STUDIO - ""PACCHETTO SCUOLA"" A.S. 2017/2018 PER GUO MICHELA";312;1;4;2;5;999
FIORAVANTI FRANCESCA;29/01/2018;Altri trasferimenti a famiglie n.a.c.;210,00;"DIRITTO ALLO STUDIO - ""PACCHETTO SCUOLA"" A.S. 2017/2018 PER GIACOMELLI NICCOLO'";312;1;4;2;5;999
NESTI FABIO;30/01/2018;Manutenzione ordinaria e riparazioni di mezzi di trasporto ad uso civile, di sicurezza e ordine pubblico;45,02;PAGAMENTO BUONO ECONOMALE NR. 200099 - MANUT.E RIP.VEICOLI SERVIZI SPORTIVI ACQUISTO CATENE DA NEVE PER VEICOLO;323;1;3;2;9;1
PAN-EL OFFICINE ELETTRICHE S.R.L.;30/01/2018;Attrezzature n.a.c.;177,65;IVA Liquidazione Fattura Nr. 1/PA  del 13/11/2017 - fornitura protezione per grande gru del museo leonardiano e relativi interventi di riparazione;326;2;2;1;5;999
VETRERIA POLI FABRIZIO;30/01/2018;Altri beni e materiali di consumo n.a.c.;100,00;PAGAMENTO BUONO ECONOMALE NR. 200103 - ACQUISTO BENI PER MANUT.SEDI ISTITUZIONALI -SOSTITUZIONE URGENTE VETRO ROTTO;320;1;3;1;2;999
PAN-EL OFFICINE ELETTRICHE S.R.L.;30/01/2018;Attrezzature n.a.c.;807,50;Liquidazione Fattura Nr. 1/PA  del 13/11/2017 - fornitura protezione per grande gru del museo leonardiano e relativi interventi di riparazione;326;2;2;1;5;999
POSTE ITALIANE SPA SOCIETA' CON SOCIO UNICO;30/01/2018;Spese postali;66,01;PAGAMENTO BUONO ECONOMALE NR. 200109 - SPEDIZIONI POSTALI URGENTI - INVIATE 7 RACCOMANDATE A1 PER NOTIFICA TRASFERIMENTO AI DIPENDENTI P.M.;322;1;3;2;16;2
UNICOOP FIRENZE SOC. COOPERATIVA A RESPONSABILIT� LIMITATA;30/01/2018;Altri beni e materiali di consumo n.a.c.;6,00;PAGAMENTO BUONO ECONOMALE NR. 200107 - SPESE MINUTE E URGENTI PER MATERIALE VARIO PER UFFICI-ACQUISTO MATERIALE DI CANCELLERIA PER NATALE IN BIBLIOTECA;325;1;3;1;2;999
IMPRESA COSTRUZIONI E RESTAURI DIDDI SRL;30/01/2018;Fabbricati ad uso scolastico;39.590,56;Liquidazione Fattura Nr. FATTPA 42_17  del 20/12/2017 (di cui Split per euro 3.599,14) - Lavori messa sicurezza solai tramite presidi antisfondellamento presso il plesso scolastico di Piazza Garibaldi in Vinci Blocco A;327;2;2;1;9;3
COOP. CULTURALE LIBRERIA RINASCITA;30/01/2018;Carta, cancelleria e stampati;24,55;PAGAMENTO BUONO ECONOMALE NR. 200106 - ACQUISTI URGENTI DI MATERIALE PER BIBLIOTECA-ACQUISTO  TRE LIBRI SCONTATI PER RICHIESTE ;324;1;3;1;2;1
B & B UFFICIO SRL;30/01/2018;Carta, cancelleria e stampati;76,00;PAGAMENTO BUONO ECONOMALE NR. 200100 - ACQUISTO FORMULARI PER LO SMALTIMENTO PER IL C.O.C.-ACQUISTATI N.10 BLOCCHI FORMULARI;321;1;3;1;2;1
BAZAR CINELLI DI CINELLI ILARIA E PAOLO;30/01/2018;Carta, cancelleria e stampati;6,00;PAGAMENTO BUONO ECONOMALE NR. 200101 - ASSEGNAZIONE PER ACQUISTI URGENTI DI MATERIALE VARIO DI CANCELLERIA-ACQUISTATI TRE PENNARELLI PUNTA FINE E LAPIS;321;1;3;1;2;1
POSTE ITALIANE SPA SOCIETA' CON SOCIO UNICO;30/01/2018;Spese postali;7,85;PAGAMENTO BUONO ECONOMALE NR. 200104 - SPEDIZIONI POSTALI URGENTI-RACCOMANDATA ALLA FONDAZIONE CASSA RISPARMIO FIRENZE;322;1;3;2;16;2
M.G.M. DI MAINARDI MARIA GRAZIA;30/01/2018;Carta, cancelleria e stampati;5,20;PAGAMENTO BUONO ECONOMALE NR. 200105 - ASSEGNAZIONE PER ACQUISTI URGENTI DI MATERIALE VARIO DI CANCELLERIA;321;1;3;1;2;1
SOPRINTENDENZA SBEAP DI PARMA E PIACENZA ARCHIVIO FOTOGRAFICO;30/01/2018;Carta, cancelleria e stampati;8,00;PAGAMENTO BUONO ECONOMALE NR. 200102 - ACQUISTI URGENTI DI MATERIALE PER BIBLIOTECA- ACQUISTO IMMAGINE PER LA LEONARDIANA;324;1;3;1;2;1
COOP. CULTURALE LIBRERIA RINASCITA;30/01/2018;Carta, cancelleria e stampati;23,63;PAGAMENTO BUONO ECONOMALE NR. 200108 - ACQUISTI URGENTI DI MATERIALE PER BIBLIOTECA-ACQUISTO LIBRI PER RICHIESTE IN BIBLIOTECA;324;1;3;1;2;1
ANGELINO S.R.L.;31/01/2018;Contratti di servizio di trasporto scolastico;36.379,38;Liquidazione Fattura Nr. 00478P  del 30/11/2017 (di cui Split per euro 3.307,22) - SERVIZIO TRASPORTO SCOLASTICO MESE DI NOVEMBRE 2017;328;1;3;2;15;2
GENERALI ITALIA SPA;01/02/2018;Spese per risarcimento danni;1.010,00;LIQUIDAZIONE QUOTE FRANCHIGIE A CARICO DELL'ENTE PER SINISTRI LIQUIDATI NEL 4� TRIMESTRE 2017;330;1;10;5;2;1
COOP. CULTURALE LIBRERIA RINASCITA;06/02/2018;Pubblicazioni;10.464,64;Liquidazione Fattura Nr. 71/PA  del 27/12/2017 - FORNITURA LIBRI DI TESTO PER CEDOLE LIBRARIE ELEMENTARI;333;1;3;1;1;2
ANGELINO S.R.L.;06/02/2018;Contratti di servizio di trasporto scolastico;23.231,40;Liquidazione Fattura Nr. 00501P  del 27/12/2017 (di cui Split per euro 2.111,95) - SERVIZIO TRASPORTO SCOLASTICO MESE DI DICEMBRE 2017;334;1;3;2;15;2
ARCA - COOPERATIVA SOCIALE A R.L.;06/02/2018;Contratti di servizio di asilo nido;4.951,37;Liquidazione Fattura Nr. E-1324  del 06/12/2017 (di cui Split per euro 235,78) - SERVIZIO REFEZIONE NIDO COMUNALE MESE DI NOVEMBRE 2017;335;1;3;2;15;10
ARCA - COOPERATIVA SOCIALE A R.L.;06/02/2018;Contratti di servizio di asilo nido;34.914,74;Liquidazione Fattura Nr. E-1323  del 06/12/2017 (di cui Split per euro 1.662,61) - SERVIZIO EDUCATIVO NIDO COMUNALE MESE DI NOVEMBRE 2017;335;1;3;2;15;10
MINISTERO DELL'INTERNO DIREZIONE CENTRALE PER I SERVIZI DEMOGRAFICI;06/02/2018;Trasferimenti correnti a Ministeri;1.662,21;COMUNE DI VINCI - CORRISPETTIVO PER IL RILASCIO DI N. 99 CARTE DI IDENTIT� ELETTRONICHE - PERIODO 16/31.01.2018;331;1;4;1;1;1
POSTE ITALIANE SPA SOCIETA' CON SOCIO UNICO;06/02/2018;Spese postali;20,53;Liquidazione Fattura Nr. 8718006388  del 17/01/2018 - CAN e CAD mese di novembre 2017 - Rendiconto 2095495786 - causale del pagamento B=028718871800638845;332;1;3;2;16;2
EDISON ENERGIA S.P.A.;08/02/2018;Energia elettrica;2.079,43;Liquidazione Fattura Nr. 5750518384  del 10/01/2018 (di cui Split per euro 374,98) - IT001E04919528 - FORNITURA ENERGIA ELETTRICA MESE DI DICEMBRE 2017 PALAZZINA UZIELLI ;365;1;3;2;5;4
EDISON ENERGIA S.P.A.;08/02/2018;Energia elettrica;415,76;Liquidazione Fattura Nr. 5750517207  del 10/01/2018 (di cui Split per euro 74,97) - IT001E04919535 - FORNITURA ENERGIA ELETTRICA MESE DI DICEMBRE 2017 SCUOLA INFANZIA VINCI;357;1;3;2;5;4
EDISON ENERGIA S.P.A.;08/02/2018;Energia elettrica;516,24;Liquidazione Fattura Nr. 5750517411  del 10/01/2018 (di cui Split per euro 93,09) - IT001E04919534 - FORNITURA ENERGIA ELETTRICA MESE DI DICEMBRE 2017 RESIDENZA PER ANZIANI;381;1;3;2;5;4
EDISON ENERGIA S.P.A.;08/02/2018;Energia elettrica;337,50;Liquidazione Fattura Nr. 5750517009  del 10/01/2018 (di cui Split per euro 60,86) - IT001E04919525 - FORNITURA ENERGIA ELETTRICA MESE DI DICEMBRE 2017 UFF. TURISTICO NUOVO;371;1;3;2;5;4
STUDIO TECNICO CIONI;08/02/2018;Spese per commissioni e comitati dell'Ente;535,78;LIQUIDAZIONE FATTURA NR. 1/E  DEL 20/12/2017 (DI CUI SPLIT PER EURO 96,61) - COMPENSI COMMISSIONE EDILIZIA ANNO 2016 E 2017;394;1;3;2;99;5
STUDIO TECNICO SALVAGGIO MICHELE & MARCHETTI DANIELE;08/02/2018;Fabbricati ad uso scolastico;3.968,64;"LIQUIDAZIONE FATTURA NR. 12/PA  DEL 22/12/2017 (DI CUI SPLIT PER EURO 715,66) - ACCONTO N1 (PROGETTAZIONE ESECUTIVA IMPIANTO ELETTRICO) RIF. SCUOLA PRIMARIA SIBILLA ALERAMO ""RIQUALIFICAZIONE CORPI B E C"": INCARICO PER PROGETTAZIONE ESECUTI";395;2;2;1;9;3
EDISON ENERGIA S.P.A.;08/02/2018;Energia elettrica;380,44;Liquidazione Fattura Nr. 5750517138  del 10/01/2018 (di cui Split per euro 68,60) - IT001E04919544 - FORNITURA ENERGIA ELETTRICA MESE DI DICEMBRE 2017 NIDO COMUNALE;373;1;3;2;5;4
EDISON ENERGIA S.P.A.;08/02/2018;Energia elettrica;342,87;Liquidazione Fattura Nr. 5750517043  del 10/01/2018 (di cui Split per euro 61,83) - IT001E04919524 - FORNITURA ENERGIA ELETTRICA MESE DI DICEMBRE 2017 MAGAZZINO COMUNALE;353;1;3;2;5;4
EDISON ENERGIA S.P.A.;08/02/2018;Energia elettrica;245,04;Liquidazione Fattura Nr. 5750517564  del 10/01/2018 (di cui Split per euro 44,19) - IT001E41412665 - FORNITURA ENERGIA ELETTRICA MESE DI DICEMBRE 2017 PALASPORT ;369;1;3;2;5;4
EDISON ENERGIA S.P.A.;08/02/2018;Energia elettrica;1.318,30;Liquidazione Fattura Nr. 5750518141  del 10/01/2018 (di cui Split per euro 237,73) - IT001E04919523 - FORNITURA ENERGIA ELETTRICA MESE DI DICEMBRE 2017 EDIFICIO COMUNALE ;353;1;3;2;5;4
EDISON ENERGIA S.P.A.;08/02/2018;Energia elettrica;960,35;Liquidazione Fattura Nr. 5750517940  del 10/01/2018 (di cui Split per euro 173,18) - IT001E04919516 - FORNITURA ENERGIA ELETTRICA MESE DI DICEMBRE 2017 SCUOLA PRIMARIA SPICCHIO;360;1;3;2;5;4
EDISON ENERGIA S.P.A.;08/02/2018;Energia elettrica;939,02;Liquidazione Fattura Nr. 5750517910  del 10/01/2018 (di cui Split per euro 169,33) - IT001E40886806 - FORNITURA ENERGIA ELETTRICA MESE DI DICEMBRE 2017 SCUOLA SEC. 1� GRADO DI SOVIGLIANA;363;1;3;2;5;4
EDISON ENERGIA S.P.A.;08/02/2018;Energia elettrica;437,90;Liquidazione Fattura Nr. 5750517864  del 10/01/2018 (di cui Split per euro 78,97) - IT001E04919520 - FORNITURA ENERGIA ELETTRICA MESE DI DICEMBRE 2017 SCUOLA PRIMARIA E SEC. 1� GRADO VINCI;360;1;3;2;5;4
EDISON ENERGIA S.P.A.;08/02/2018;Energia elettrica;437,90;Liquidazione Fattura Nr. 5750517864  del 10/01/2018 (di cui Split per euro 78,96) - IT001E04919520 - FORNITURA ENERGIA ELETTRICA MESE DI DICEMBRE 2017 SCUOLA PRIMARIA E SEC. 1� GRADO VINCI;363;1;3;2;5;4
EDISON ENERGIA S.P.A.;08/02/2018;Energia elettrica;740,48;Liquidazione Fattura Nr. 5750517746  del 10/01/2018 (di cui Split per euro 133,53) - IT001E04919521 - FORNITURA ENERGIA ELETTRICA MESE DI DICEMBRE 2017 BIBLIOTECA;364;1;3;2;5;4
EDISON ENERGIA S.P.A.;08/02/2018;Energia elettrica;672,79;Liquidazione Fattura Nr. 5750517656  del 10/01/2018 (di cui Split per euro 121,32) - IT001E04919538 - FORNITURA ENERGIA ELETTRICA MESE DI DICEMBRE 2017 ESCUOLA INFANZIA SOVIGLIANA;357;1;3;2;5;4
EDISON ENERGIA S.P.A.;08/02/2018;Energia elettrica;367,56;Liquidazione Fattura Nr. 5750517564  del 10/01/2018 (di cui Split per euro 66,28) - IT001E41412665 - FORNITURA ENERGIA ELETTRICA MESE DI DICEMBRE 2017 PALASPORT ;369;1;3;2;5;4
EDISON ENERGIA S.P.A.;08/02/2018;Energia elettrica;341,72;Liquidazione Fattura Nr. 5750517032  del 10/01/2018 (di cui Split per euro 61,62) - IT001E04919536 - FORNITURA ENERGIA ELETTRICA MESE DI DICEMBRE 2017 UFFICI COMUNALI VIA BATTISTI;353;1;3;2;5;4
EDISON ENERGIA S.P.A.;08/02/2018;Energia elettrica;288,38;Liquidazione Fattura Nr. 5750516890  del 10/01/2018 (di cui Split per euro 52,00) - IT001E04919519 - FORNITURA ENERGIA ELETTRICA MESE DI DICEMBRE 2017 URP VIA FUCINI;354;1;3;2;5;4
EDISON ENERGIA S.P.A.;08/02/2018;Energia elettrica;1.627,14;Liquidazione Fattura Nr. 5750518260  del 10/01/2018 (di cui Split per euro 293,42) - IT001E04919531 - FORNITURA ENERGIA ELETTRICA MESE DI DICEMBRE 2017 MUSEO LEONARDIANO;365;1;3;2;5;4
EDISON ENERGIA S.P.A.;08/02/2018;Energia elettrica;55,55;Liquidazione Fattura Nr. 5750516027  del 10/01/2018 (di cui Split per euro 10,02) - IT001E04919527 - FORNITURA ENERGIA ELETTRICA MESE DI DICEMBRE 2017 ARCHIVIO COMUNALE;354;1;3;2;5;4
EDISON ENERGIA S.P.A.;08/02/2018;Energia elettrica;69,70;Liquidazione Fattura Nr. 5750516199  del 10/01/2018 (di cui Split per euro 12,57) - IT001E04919543 - FORNITURA ENERGIA ELETTRICA MESE DI DICEMBRE 2017 MERCATO SETTIMANALE E IMPIANTO IRRIGAZIONE;370;1;3;2;5;4
EDISON ENERGIA S.P.A.;08/02/2018;Energia elettrica;60,21;Liquidazione Fattura Nr. 5750516091  del 10/01/2018 (di cui Split per euro 10,86) - IT001E04919518 - FORNITURA ENERGIA ELETTRICA MESE DI DICEMBRE 2017 PILOMAT ;370;1;3;2;5;4
EDISON ENERGIA S.P.A.;08/02/2018;Energia elettrica;53,56;Liquidazione Fattura Nr. 5750515991  del 10/01/2018 (di cui Split per euro 9,66) - IT001E41398842 - FORNITURA ENERGIA ELETTRICA MESE DI DICEMBRE 2017 FONTANELLO PARCO MILLE;372;1;3;2;5;4
EDISON ENERGIA S.P.A.;08/02/2018;Energia elettrica;80,91;Liquidazione Fattura Nr. 5750516274  del 10/01/2018 (di cui Split per euro 14,59) - IT001E43263124 - FORNITURA ENERGIA ELETTRICA MESE DI DICEMBRE 2017 FONTANELLO VINCI;372;1;3;2;5;4
EDISON ENERGIA S.P.A.;08/02/2018;Energia elettrica;49,86;Liquidazione Fattura Nr. 5750515911  del 10/01/2018 (di cui Split per euro 8,99) - IT001E04919530 - FORNITURA ENERGIA ELETTRICA MESE DI DICEMBRE 2017 EX SCUOLA ANCHIANO;353;1;3;2;5;4
EDISON ENERGIA S.P.A.;08/02/2018;Energia elettrica;29,59;Liquidazione Fattura Nr. 5750515087  del 10/01/2018 (di cui Split per euro 2,69) - IT001E41741369 - FORNITURA ENERGIA ELETTRICA MESE DI DICEMBRE 2017 ALLOGGI PETROIO;353;1;3;2;5;4
EDISON ENERGIA S.P.A.;08/02/2018;Energia elettrica;25,14;Liquidazione Fattura Nr. 5750514491  del 10/01/2018 (di cui Split per euro 4,53) - IT001E04919533 - FORNITURA ENERGIA ELETTRICA MESE DI DICEMBRE 2017 UFF. DISMESSO VIA TORRE, 3;353;1;3;2;5;4
EDISON ENERGIA S.P.A.;08/02/2018;Energia elettrica;75,35;Liquidazione Fattura Nr. 5750516246  del 10/01/2018 (di cui Split per euro 13,59) - IT001E04919532 - FORNITURA ENERGIA ELETTRICA MESE DI DICEMBRE 2017 UFF. COMUNALI VIA TORRE, 9;353;1;3;2;5;4
EDISON ENERGIA S.P.A.;08/02/2018;Energia elettrica;25,00;Liquidazione Fattura Nr. 5750514438  del 10/01/2018 (di cui Split per euro 4,51) - IT001E40889318 - FORNITURA ENERGIA ELETTRICA MESE DI DICEMBRE 2017 CASA COMPARINI ;353;1;3;2;5;4
STUDIO TECNICO CIONI;08/02/2018;Spese per commissioni e comitati dell'Ente;253,19;LIQUIDAZIONE FATTURA NR. 1/E  DEL 20/12/2017 (DI CUI SPLIT PER EURO 45,66) - COMPENSI COMMISSIONE EDILIZIA ANNO 2016 E 2017;393;1;3;2;99;5
EDISON ENERGIA S.P.A.;08/02/2018;Energia elettrica;25,00;Liquidazione Fattura Nr. 5750514421  del 10/01/2018 (di cui Split per euro 4,51) - IT001E04919522 - FORNITURA ENERGIA ELETTRICA MESE DI DICEMBRE 2017 LOCALI EX MACELLI;353;1;3;2;5;4
ACQUE S.P.A.;08/02/2018;Acqua;2,76;Liquidazione Fattura Nr. 6017012000016134  del 20/12/2017 al netto di Nota: N. 6017012000016155 del 20/12/2017 di 11,46 (di cui Split per euro 0,25) - Fornitura generica;388;1;3;2;5;5
EDISON ENERGIA S.P.A.;08/02/2018;Energia elettrica;234,92;Liquidazione Fattura Nr. 5750516733  del 10/01/2018 (di cui Split per euro 42,36) - IT001E04919540 - FORNITURA ENERGIA ELETTRICA MESE DI DICEMBRE 2017 VILLA REGHINI;376;1;3;2;5;4
EDISON ENERGIA S.P.A.;08/02/2018;Energia elettrica;7,17;Liquidazione Fattura Nr. 5750512744  del 10/01/2018 (di cui Split per euro 1,29) - IT001E04919526 - FORNITURA ENERGIA ELETTRICA MESE DI DICEMBRE 2017 BAGNI PUBBLICI;371;1;3;2;5;4
EDISON ENERGIA S.P.A.;08/02/2018;Energia elettrica;375,76;Liquidazione Fattura Nr. 5750517125  del 10/01/2018 (di cui Split per euro 67,76) - IT001E04919529 - FORNITURA ENERGIA ELETTRICA MESE DI DICEMBRE 2017 CASA NATALE LEONARDO;365;1;3;2;5;4
EDISON ENERGIA S.P.A.;08/02/2018;Energia elettrica;190,55;Liquidazione Fattura Nr. 5750516633  del 10/01/2018 (di cui Split per euro 34,36) - IT001E04919515 - FORNITURA ENERGIA ELETTRICA MESE DI DICEMBRE 2017 SCUOLA INFANZIA SPICCHIO;357;1;3;2;5;4
EDISON ENERGIA S.P.A.;08/02/2018;Energia elettrica;107,21;Liquidazione Fattura Nr. 5750516379  del 10/01/2018 (di cui Split per euro 19,33) - IT001E04919517 - FORNITURA ENERGIA ELETTRICA MESE DI DICEMBRE 2017 CASSA ESPANSIONE PICCARATICO;370;1;3;2;5;4
UFFICIO TECNICA  SAS;08/02/2018;Altre spese per servizi amministrativi;222,00;Liquidazione Fattura Nr. 6/P  del 04/12/2017 (di cui Split per euro 40,03) - FORNITURA COPIE ELIOGRAFICHE PER L'UFFICIO TECNICO _ DETERMINA A CONTRARRE E AFFIDAMENTO DITTA UFFICIO TECNICA SAS;386;1;3;2;16;999
UTAFF SAS DI LOLLI LUCIANO & C.;08/02/2018;Strumenti tecnico-specialistici non sanitari;219,60;Liquidazione Fattura Nr. 4  del 04/12/2017 (di cui Split per euro 39,60) - DETERMINAZIONE N.288 DEL 09/11/2017 - RIPARAZIONE DELL'ATTREZZATURA DESTINATA AD INTERVENTI DI FALEGNAMERIA ;382;1;3;1;2;8
EDISON ENERGIA S.P.A.;08/02/2018;Energia elettrica;474,14;Liquidazione Fattura Nr. 5750517309  del 10/01/2018 (di cui Split per euro 85,50) - IT001E40889726 - FORNITURA ENERGIA ELETTRICA MESE DI DICEMBRE 2017 TEATRO MISERICORDIA ;366;1;3;2;5;4
SELMI DI SELMI ANDREA & SELMI FRANCESCO S.N.C.;08/02/2018;Altri beni e materiali di consumo n.a.c.;90,53;IVA - Liquidazione Fattura Nr. 4  del 30/11/2017 (di cui Split per euro 90,53) - DET 123 DEL 30/05/2017 - FORNITURA MATERIALE PER INTERVENTI DI FALEGNAMERIA;390;1;3;1;2;999
TOTALERG SPA;08/02/2018;Carburanti, combustibili e lubrificanti ;348,53;Liquidazione Fattura Nr. I8021047  del 31/12/2017 (di cui Split per euro 62,85) - FORNITURA DI CARBURANTE PER AUTOTRAZIONE MEDIANTE FUEL CARD E DEI SERVIZI CONNESSI PER LE PUBBLICHE AMMINISTRAZIONI - dicembre 2017;398;1;3;1;2;2
LATINI  CLAUDIO;08/02/2018;Altre prestazioni professionali e specialistiche n.a.c.;249,60;LIQUIDAZIONE FATTURA NR. 000012-2017-PA  DEL 12/12/2017 (DI CUI SPLIT PER EURO 45,01) - PRESTAZIONE PROFESSIONALE REDAZIONE DUVRI  LAVORI STRADE COMUNALI;384;1;3;2;11;999
SELMI DI SELMI ANDREA & SELMI FRANCESCO S.N.C.;08/02/2018;Altri beni e materiali di consumo n.a.c.;411,50;Liquidazione Fattura Nr. 4  del 30/11/2017 - DET 123 DEL 30/05/2017 - FORNITURA MATERIALE PER INTERVENTI DI FALEGNAMERIA;390;1;3;1;2;999
TOTALERG SPA;08/02/2018;Carburanti, combustibili e lubrificanti ;610,52;Liquidazione Fattura Nr. I8021047  del 31/12/2017 (di cui Split per euro 110,10) - FORNITURA DI CARBURANTE PER AUTOTRAZIONE MEDIANTE FUEL CARD E DEI SERVIZI CONNESSI PER LE PUBBLICHE AMMINISTRAZIONI - dicembre 2017;400;1;3;1;2;2
TOTALERG SPA;08/02/2018;Carburanti, combustibili e lubrificanti ;453,36;Liquidazione Fattura Nr. I8021047  del 31/12/2017 (di cui Split per euro 81,75) - FORNITURA DI CARBURANTE PER AUTOTRAZIONE MEDIANTE FUEL CARD E DEI SERVIZI CONNESSI PER LE PUBBLICHE AMMINISTRAZIONI - dicembre 2017;399;1;3;1;2;2
VETRERIA POLI FABRIZIO;08/02/2018;Manutenzione ordinaria e riparazioni di beni immobili;118,80;IVA _ Liq. Fattura Nr. 3/PA  del 12/12/2017 (di cui Split per euro 118,80) - SOSTITUZIONE DEI VETRI ROTTI PRESSO IL PALASPORT FALCONE E BORSELLINO _ DET. A CONTRARRE E AFFIDAMENTO DITTA VETRERIA POLI FABRIZIO 60% Fattura Nr. 3/PA del 12-12-;392;1;3;2;9;8
SELMI DI SELMI ANDREA & SELMI FRANCESCO S.N.C.;08/02/2018;Altri beni e materiali di consumo n.a.c.;111,36;IVA - Liquidazione Fattura Nr. 4  del 30/11/2017 (di cui Split per euro 111,36) - DET 123 DEL 30/05/2017 - FORNITURA MATERIALE PER INTERVENTI DI FALEGNAMERIA;391;1;3;1;2;999
MAZZANTI MONICA IN QUALITA' DI AGENTE CONTABILE - ECONOMO COMUNALE;08/02/2018;Carta, cancelleria e stampati;14,80;PAGAMENTO BUONO ECONOMALE NR. 200001 - ACQUISTI URGENTI DI MATERIALE VARIO PER GLI UFFICI - SPEDITE 2 RACCOMANDATE A.R. URGENTI ALLE ASSICURAZIONI PER CAUSA LEGALE GIANI;351;1;3;1;2;1
ENERGETIC S.P.A.;08/02/2018;Gas;447,42;Liquidazione Fattura Nr. EX00365/2018  del 11/01/2018 al netto di Nota: N. EX42285/2017 del 14/09/2017 di 83,23 (di cui Split per euro 80,68) - fornitura Gas Naturale Scuola Infanzia Vinci;356;1;3;2;5;6
ENERGETIC S.P.A.;08/02/2018;Gas;706,04;Liquidazione Fattura Nr. EX00364/2018  del 11/01/2018 (di cui Split per euro 127,32) - fornitura Gas Naturale scuola primaria e secondaria Vinci;362;1;3;2;5;6
VETRERIA POLI FABRIZIO;08/02/2018;Manutenzione ordinaria e riparazioni di beni immobili;79,20;IVA - Liq.Fattura Nr. 3/PA  del 12/12/2017 (di cui Split per euro 79,20) - SOSTITUZIONE DEI VETRI ROTTI PALASPORT FALCONE E BORSELLINO _ DET. A CONTRARRE E AFFIDAMENTO DITTA VETRERIA POLI FABRIZIO 40% Fattura Nr. 3/PA del 12-12-2017;392;1;3;2;9;8
VETRERIA POLI FABRIZIO;08/02/2018;Manutenzione ordinaria e riparazioni di beni immobili;1.207,80;Liquidazione Fattura Nr. 1/PA  del 22/11/2017 (di cui Split per euro 217,80) - SOSTITUZIONE DEI VETRI ROTTI PRESSO LA PALESTRA DI VINCI _ DETERMINA A CONTRARRE E AFFIDAMENTO DITTA VETRERIA POLI FABRIZIO;392;1;3;2;9;8
ENERGETIC S.P.A.;08/02/2018;Gas;1.973,71;Liquidazione Fattura Nr. EX00363/2018  del 11/01/2018 (di cui Split per euro 355,91) - fornitura Gas Naturale scuola primaria;359;1;3;2;5;6
VETRERIA POLI FABRIZIO;08/02/2018;Manutenzione ordinaria e riparazioni di beni immobili;360,00;Liquidazione Fattura Nr. 3/PA  del 12/12/2017 - SOSTITUZIONE DEI VETRI ROTTI PRESSO IL PALASPORT FALCONE E BORSELLINO _ DETERMINA A CONTRARRE E AFFIDAMENTO DITTA VETRERIA POLI FABRIZIO 40%;392;1;3;2;9;8
ACQUE S.P.A.;08/02/2018;Acqua;8,27;Liquidazione Fattura Nr. 6017012000016263  del 22/12/2017 al netto di Nota: N. 6017012000016265 del 22/12/2017 di 62,23 (di cui Split per euro 0,75) - Fornitura acqua fontanello;388;1;3;2;5;5
SCOTTI S.P.A.;08/02/2018;Manutenzione ordinaria e riparazioni di mezzi di trasporto ad uso civile, di sicurezza e ordine pubblico;311,58;Liquidazione Fattura Nr. 1 / 5000  del 13/12/2017 (di cui Split per euro 56,19) - DET.N.322 DEL 05/12/2017 - INTEGR.INTERVENTO DI RIPARAZIONE DOBLO' TG.DJ304DC;387;1;3;2;9;1
ACQUE S.P.A.;08/02/2018;Acqua;11,18;Liquidazione Fattura Nr. 6017012000015802  del 14/12/2017 al netto di Nota: N. 6017012000016070 del 20/12/2017 di 31,89 (di cui Split per euro 1,02) - Fornitura acqua scuola Vinci;389;1;3;2;5;5
ACQUE S.P.A.;08/02/2018;Acqua;5,88;Liquidazione Fattura Nr. 6017012000015802  del 14/12/2017 al netto di Nota: N. 6017012000016070 del 20/12/2017 di 31,89 (di cui Split per euro 0,53) - Fornitura acqua scuola Vinci;389;1;3;2;5;5
SOCIETA' IMPIANTI TECNOLOGICI SNC DI RUGGIERO C. & C.;08/02/2018;Manutenzione ordinaria e riparazioni di impianti e macchinari;486,78;Liquidazione Fattura Nr. 000010-2017-PA  del 11/12/2017 (di cui Split per euro 87,78) - LAVORI DI MANUTENZIONE ORDINARIA DELLA RETE IDRANTI DEL MAGAZZINO COMUNALE _ DETERMINA A CONTRARRE E AFFIDAMENTO SOCIETA' IMPIANTI TECNOLOGICI SNC;383;1;3;2;9;4
SELMI DI SELMI ANDREA & SELMI FRANCESCO S.N.C.;08/02/2018;Altri beni e materiali di consumo n.a.c.;506,20;Liquidazione Fattura Nr. 4  del 30/11/2017 - DET 123 DEL 30/05/2017 - FORNITURA MATERIALE PER INTERVENTI DI FALEGNAMERIA;391;1;3;1;2;999
SELMI DI SELMI ANDREA & SELMI FRANCESCO S.N.C.;08/02/2018;Attrezzature n.a.c.;1.134,60;Liquidazione Fattura Nr. 3  del 30/11/2017 (di cui Split per euro 204,60) - DET. 266 DEL 25/10/2017;396;2;2;1;5;999
UTAFF SAS DI LOLLI LUCIANO & C.;08/02/2018;Attrezzature n.a.c.;694,18;Liquidazione Fattura Nr. 5  del 04/12/2017 (di cui Split per euro 125,18) - ACQUISTO ATTREZZATURA NECESSARIA AD ESEGUIRE VARI INTERVENTI DI FALEGNAMERIA - DETERMINA 301 del 22/11/2017;397;2;2;1;5;999
AUTOGAMMA SNC DI LETTIERI FABIO & C.;08/02/2018;Altre prestazioni professionali e specialistiche n.a.c.;756,89;Liquidazione Fattura Nr. 18  del 13/12/2017 (di cui Split per euro 136,49) - FORNITURA DPI - DET.70 DEL 06/04/2017;385;1;3;2;11;999
VETRERIA POLI FABRIZIO;08/02/2018;Manutenzione ordinaria e riparazioni di beni immobili;540,00;Liquidazione Fattura Nr. 3/PA  del 12/12/2017 - SOSTITUZIONE DEI VETRI ROTTI PRESSO IL PALASPORT FALCONE E BORSELLINO _ DETERMINA A CONTRARRE E AFFIDAMENTO DITTA VETRERIA POLI FABRIZIO 60%;392;1;3;2;9;8
ENERGETIC S.P.A.;08/02/2018;Gas;706,04;Liquidazione Fattura Nr. EX00364/2018  del 11/01/2018 (di cui Split per euro 127,32) - fornitura Gas Naturale scuola primaria e secondaria Vinci;359;1;3;2;5;6
SELMI DI SELMI ANDREA & SELMI FRANCESCO S.N.C.;08/02/2018;Altri beni e materiali di consumo n.a.c.;390,00;Liquidazione Fattura Nr. 2  del 30/11/2017 (di cui Split per euro 70,33) - DET. 133 DEL 12/06/2017 - ACQUISTO SACCHETTI DELL'IMMONDIZIA;391;1;3;1;2;999
ENERGETIC S.P.A.;08/02/2018;Gas;409,57;Liquidazione Fattura Nr. EX00360/2018  del 11/01/2018 al netto di Nota: N. EX47258/2017 del 11/10/2017 di 30,14 (di cui Split per euro 49,15) - fornitura Gas Naturale Scuola Infanzia Spicchio;356;1;3;2;5;6
ENERGETIC S.P.A.;08/02/2018;Gas;1.331,32;Liquidazione Fattura Nr. EX00359/2018  del 11/01/2018 (di cui Split per euro 240,07) - fornitura Gas Naturale scuola dell'infanzia;356;1;3;2;5;6
ENERGETIC S.P.A.;08/02/2018;Gas;603,91;Liquidazione Fattura Nr. EX00358/2018  del 11/01/2018 (di cui Split per euro 108,90) - fornitura Gas Naturale sedi istituzionali;352;1;3;2;5;6
ENERGETIC S.P.A.;08/02/2018;Gas;448,70;Liquidazione Fattura Nr. EX00357/2018  del 11/01/2018 (di cui Split per euro 80,91) - fornitura Gas Naturale Nido Infanzia;375;1;3;2;5;6
ENERGETIC S.P.A.;08/02/2018;Gas;344,86;Liquidazione Fattura Nr. EX00357/2018  del 11/01/2018 (di cui Split per euro 62,19) - fornitura Gas Naturale Nido Infanzia;374;1;3;2;5;6
ENERGETIC S.P.A.;08/02/2018;Gas;201,20;Liquidazione Fattura Nr. EX00356/2018  del 11/01/2018 al netto di Nota: N. EX21641/2017 del 11/05/2017 di 545,01 (di cui Split per euro 36,16) - fornitura Gas Naturale magazzino comunale;352;1;3;2;5;6
ENERGETIC S.P.A.;08/02/2018;Gas;535,51;Liquidazione Fattura Nr. EX00355/2018  del 11/01/2018 al netto di Nota: N. EX47664/2017 del 11/10/2017 di 13,20 (di cui Split per euro 96,56) - fornitura Gas Naturale Villa Reghini;378;1;3;2;5;6
ENERGETIC S.P.A.;08/02/2018;Gas;222,85;Liquidazione Fattura Nr. EX00355/2018  del 11/01/2018 al netto di Nota: N. EX47664/2017 del 11/10/2017 di 13,20 (di cui Split per euro 29,37) - fornitura Gas Naturale Villa Reghini;377;1;3;2;5;6
ENERGETIC S.P.A.;08/02/2018;Gas;1.080,54;Liquidazione Fattura Nr. EX00354/2018  del 11/01/2018 (di cui Split per euro 194,04) -  fornitura Gas Naturale Residenza Anziani;380;1;3;2;5;6
ENERGETIC S.P.A.;08/02/2018;Gas;914,75;Liquidazione Fattura Nr. EX00353/2018  del 11/01/2018 (di cui Split per euro 164,95) - fornitura Gas Naturale scuola secondaria di primo grado;361;1;3;2;5;6
ENERGETIC S.P.A.;08/02/2018;Gas;688,55;Liquidazione Fattura Nr. EX00353/2018  del 11/01/2018 (di cui Split per euro 124,16) - fornitura Gas Naturale scuola secondaria di primo grado;362;1;3;2;5;6
ENERGETIC S.P.A.;08/02/2018;Gas;265,64;Liquidazione Fattura Nr. EX00359/2018  del 11/01/2018 (di cui Split per euro 47,90) - fornitura Gas Naturale scuola dell'infanzia;355;1;3;2;5;6
ENERGETIC S.P.A.;08/02/2018;Gas;521,06;Liquidazione Fattura Nr. EX00354/2018  del 11/01/2018 (di cui Split per euro 93,96) -  fornitura Gas Naturale Residenza Anziani;379;1;3;2;5;6
ENERGETIC S.P.A.;08/02/2018;Gas;666,04;Liquidazione Fattura Nr. EX00362/2018  del 11/01/2018 (di cui Split per euro 120,11) - fornitura Gas Naturale Palasport;368;1;3;2;5;6
ENERGETIC S.P.A.;08/02/2018;Gas;444,04;Liquidazione Fattura Nr. EX00362/2018  del 11/01/2018 (di cui Split per euro 80,07) - fornitura Gas Naturale Palasport;368;1;3;2;5;6
ENERGETIC S.P.A.;08/02/2018;Gas;132,02;Liquidazione Fattura Nr. EX00362/2018  del 11/01/2018 (di cui Split per euro 23,81) - fornitura Gas Naturale Palasport;367;1;3;2;5;6
ENERGETIC S.P.A.;08/02/2018;Gas;157,64;Liquidazione Fattura Nr. EX00363/2018  del 11/01/2018 (di cui Split per euro 28,43) - fornitura Gas Naturale scuola primaria;358;1;3;2;5;6
ENERGETIC S.P.A.;08/02/2018;Gas;88,01;Liquidazione Fattura Nr. EX00362/2018  del 11/01/2018 (di cui Split per euro 15,87) - fornitura Gas Naturale Palasport;367;1;3;2;5;6
ENERGETIC S.P.A.;08/02/2018;Gas;917,94;Liquidazione Fattura Nr. EX00361/2018  del 11/01/2018 al netto di Nota: N. EX47692/2017 del 11/10/2017 di 26,43 (di cui Split per euro 143,87) - fornitura Gas Naturale per palazzo comunale;352;1;3;2;5;6
REGIONE TOSCANA CONTRIBUTI SISMICA - SERVIZIO TESORERIA;09/02/2018;Altre spese per servizi amministrativi;25,00;L.R.1/05 ART. 105 QUINQUIES-ZONE SISMICHE-CONTRIBUTO PER SPESE ISTRUTTORIA E CONSERVAZIONE PROGETTI PLESSO SCOLASTICO DI PIAZZA GARIBALDI VINCI;401;1;3;2;16;999
COMANDO PROVINCIALE VIGILI DEL FUOCO;09/02/2018;Altre spese per servizi amministrativi;200,00;NIDO D'INFANZIA VITOLINI-PREVENZIONE INCENDI-VALUTAZIONE PROGETTO;401;1;3;2;16;999
COMANDO PROVINCIALE VIGILI DEL FUOCO;09/02/2018;Altre spese per servizi amministrativi;900,00;ISTANZA DI DEROGA ATT.65.1.B-72.1.C - VILLA REGHINI A SOVIGLIANA;401;1;3;2;16;999
ERARIO DELLO STATO PER PAGAMENTO I.V.A.;12/02/2018;Versamenti IVA a debito per le gestioni commerciali;4.699,05;LIQUIDAZIONE IVA MESE DI GENNAIO 2018;403;1;10;3;1;1
ERARIO DELLO STATO PER PAGAMENTO I.V.A.;12/02/2018;Versamenti IVA a debito per le gestioni commerciali;2.156,25;SALDO IVA MESE DI DICEMBRE 2017 -INTEGRAZIONI;402;1;10;3;1;1
DELL S.P.A.;13/02/2018;Postazioni di lavoro;1.207,80;Liquidazione Fattura Nr. 1402664711  del 02/01/2018 (di cui Split per euro 217,80) - FORNITURA MATERIALE INFORMATICO;431;2;2;1;7;2
ARNO MANETTI ASCENSORI S.R.L.;13/02/2018;Manutenzione ordinaria e riparazioni di impianti e macchinari;338,55;Liquidazione Fattura Nr. 4286  del 18/12/2017 (di cui Split per euro 61,05) - Manut. imp. ascensore sedi istituzionali, scuole, villa Reghini, RSA, Palasport per 40% uso istituzionale-2� SEM. 2017;415;1;3;2;9;4
TIM S.P.A. DIREZIONE E COORDINAMENTO VIVENDI SA;13/02/2018;Servizi di rete per trasmissione dati e VoIP e relativa manutenzione;82,96;Liquidazione Fattura Nr. 8L00985895  del 06/12/2017 (di cui Split per euro 14,96) - 1BIM 2018 - 057113045291 -  P.zza GIUSEPPE GARIBALDI, 10 - 50059 VINCI FI;447;1;3;2;19;4
ILES  S.R.L.;13/02/2018;Manutenzione ordinaria e riparazioni di impianti e macchinari;5.099,27;Liquidazione Fattura Nr. 143E/2017  del 29/11/2017 (di cui Split per euro 919,54) - ACQUISTO MEPA TRATTATIVA N.246574 MODIFICHE E RIPARAZIONE IMPIANTI SEMAFORICI IN VINCI, VIA SAURO-VIA SANZIO E VIA GIOVANNI XXIII-VIA MATTEOTTI;418;1;3;2;9;4
TIM S.P.A. DIREZIONE E COORDINAMENTO VIVENDI SA;13/02/2018;Servizi di rete per trasmissione dati e VoIP e relativa manutenzione;225,36;Liquidazione Fattura Nr. 8L00987692  del 06/12/2017 (di cui Split per euro 40,64) - 1BIM 2018 - 057113301930 - P.za  LEONARDO da Vinci 29 - 50059 VINCI;443;1;3;2;19;4
TIM S.P.A. DIREZIONE E COORDINAMENTO VIVENDI SA;13/02/2018;Servizi di rete per trasmissione dati e VoIP e relativa manutenzione;124,66;Liquidazione Fattura Nr. 8L00987108  del 06/12/2017 (di cui Split per euro 22,48) - 1BIM 2018 - 057113046158 Via GIUSTI GIUSEPPE 56 - 50059 VINCI FI;446;1;3;2;19;4
TIM S.P.A. DIREZIONE E COORDINAMENTO VIVENDI SA;13/02/2018;Servizi di rete per trasmissione dati e VoIP e relativa manutenzione;124,66;Liquidazione Fattura Nr. 8L00986706  del 06/12/2017 (di cui Split per euro 22,48) - 1BIM 2018 - 057113046156 Via VENTICINQUE APRILE 3 - 50059 VINCI FI - Asilo Staccia Buratta;446;1;3;2;19;4
AGENZIA PER LO SVILUPPO  EMPOLESE VALDESA S.P.A.;13/02/2018;Organizzazione e partecipazione a manifestazioni e convegni;107,22;Liquidazione Fattura Nr. 146/03 del 13/12/2017 - SERVIZIO DI POSIZIONAMENTO ONLINE DEL PROGRAMMA DELLE CELEBRAZIONI LEONARDIANE 2017 VERSIONE DIGITALE;440;1;3;2;2;5
CONVERGE S.P.A.;13/02/2018;Noleggi di hardware;338,38;Liquidazione Fattura Nr. 200399  del 24/01/2018 (di cui Split per euro 61,02) - NOLEGGIO DI DUE MACCHINE MULTIFUNZIONE MEDIANTE ADESIONE A CONVENZIONE CONSIP - DETERMINA DI AFFIDAMENTO;458;1;3;2;7;4
TIM S.P.A. DIREZIONE E COORDINAMENTO VIVENDI SA;13/02/2018;Servizi di rete per trasmissione dati e VoIP e relativa manutenzione;225,36;Liquidazione Fattura Nr. 8L00986764  del 06/12/2017 (di cui Split per euro 40,64) - 1BIM 2018 - 057113301214  Via BATTISTI CESARE 38 - 50059 VINCI;443;1;3;2;19;4
TIM S.P.A. DIREZIONE E COORDINAMENTO VIVENDI SA;13/02/2018;Servizi di rete per trasmissione dati e VoIP e relativa manutenzione;124,66;Liquidazione Fattura Nr. 8L00987009  del 06/12/2017 (di cui Split per euro 22,48) - 1BIM 2018 - 057113046759 P.zza LEONARDO 29 - 50059 VINCI - FREE WIFI;443;1;3;2;19;4
ARNO MANETTI ASCENSORI S.R.L.;13/02/2018;Manutenzione ordinaria e riparazioni di impianti e macchinari;338,55;Liquidazione Fattura Nr. 4286  del 18/12/2017 (di cui Split per euro 61,05) - Manut. imp. ascensore sedi istituzionali, scuole, villa Reghini, RSA, Palasport per 40% uso istituzionale-2� SEM. 2017;414;1;3;2;9;4
DELL S.P.A.;13/02/2018;Postazioni di lavoro;6.573,36;Liquidazione Fattura Nr. 1402662798  del 22/12/2017 (di cui Split per euro 1.185,36) - FORNITURA MATERIALE INFOMATICO;431;2;2;1;7;2
ARNO MANETTI ASCENSORI S.R.L.;13/02/2018;Manutenzione ordinaria e riparazioni di impianti e macchinari;225,70;Liquidazione Fattura Nr. 4286  del 18/12/2017 (di cui Split per euro 40,70) - Manut. imp. ascensore sedi istituzionali, scuole, villa Reghini, RSA, Palasport per 40% uso istituzionale-2� SEM. 2017;413;1;3;2;9;4
ARNO MANETTI ASCENSORI S.R.L.;13/02/2018;Manutenzione ordinaria e riparazioni di impianti e macchinari;225,70;Liquidazione Fattura Nr. 4286  del 18/12/2017 (di cui Split per euro 40,70) - Manut. imp. ascensore sedi istituzionali, scuole, villa Reghini, RSA, Palasport per 40% uso istituzionale-2� SEM. 2017;422;1;3;2;9;4
TAMBURINI  GIONNI;13/02/2018;Altre prestazioni professionali e specialistiche n.a.c.;850,00;"LIQUIDAZIONE FATTURA NR. FATTPA 40_17  DEL 22/12/2017 - AFFIDAMENTO DEL SERVIZIO PER LO SVOLGIMENTO DELLE ATTIVITA' DI ""MEDICO COMPETENTE"" AI SENSI DEL D.LGS. 81/2008 - ANNI 2015-2016.2017.";412;1;3;2;11;999
CEROFOLINI S.R.L.;13/02/2018;Fabbricati ad uso scolastico;2.484,49;Liquidazione Fattura Nr. 6/28  del 20/12/2017 (di cui Split per euro 448,02) - PULIZIA STRAORDINARIA PLESSO SCOLASTICO VINCI A SEGUITO LAVORI ;424;2;2;1;9;3
CEROFOLINI S.R.L.;13/02/2018;Fabbricati ad uso scolastico;1.468,31;Liquidazione Fattura Nr. 6/28  del 20/12/2017 (di cui Split per euro 264,78) - PULIZIA STRAORDINARIA PLESSO SCOLASTICO VINCI A SEGUITO LAVORI ;423;2;2;1;9;3
STUDIO PICCHI ASSOCIATO;13/02/2018;Altre prestazioni professionali e specialistiche n.a.c.;2.431,78;LIQUIDAZIONE FATTURA NR. 000042-2017-FATTURE  DEL 12/12/2017 (DI CUI SPLIT PER EURO 438,52) - ELABORAZIONE CEDOLINI NOVEMBRE E DICEMBRE 2017;455;1;3;2;11;999
ARNO MANETTI ASCENSORI S.R.L.;13/02/2018;Manutenzione ordinaria e riparazioni di impianti e macchinari;225,70;Liquidazione Fattura Nr. 4286  del 18/12/2017 (di cui Split per euro 40,70) - Manut. imp. ascensore sedi istituzionali, scuole, villa Reghini, RSA, Palasport per 40% uso istituzionale-2� SEM. 2017;421;1;3;2;9;4
T.T. TECNOSISTEMI S.P.A.;13/02/2018;Server;2.354,60;Liquidazione Fattura Nr. 50/E  del 19/01/2018 (di cui Split per euro 424,60) - DETERMINAZIONE SETTORE 2 N170DEL 20/12/2017 IMPEGNO DS02170/1 DEL 20/12/2017;431;2;2;1;7;1
TIM S.P.A. DIREZIONE E COORDINAMENTO VIVENDI SA;13/02/2018;Servizi di rete per trasmissione dati e VoIP e relativa manutenzione;125,78;Liquidazione Fattura Nr. 8L00988882  del 06/12/2017 (di cui Split per euro 22,48) - 1BIM 2018 - 057113046758 Via DELLA COSTITUENTE 14 - 50059 VINCI FI;446;1;3;2;19;4
CENTRO STUDI ENTI LOCALI S.R.L.;13/02/2018;Altre prestazioni professionali e specialistiche n.a.c.;750,00;Liquidazione Fattura Nr. 656/AE  del 31/12/2017 (di cui Split per euro 135,25) - Saldo servizio assistenza fiscale anno 2017;456;1;3;2;11;999
ETRURIA P.A. SRL;13/02/2018;Licenze d'uso per software;6.405,00;"Liquidazione Fattura Nr. 87/00000  del 24/01/2018 (di cui Split per euro 1.155,00) - ACQUISTO MODULI PER ""ANAGRAFE CERTIFICAZIONI ONLINE"" E ""SERVIZI INDIVIDUALI ONLINE (SCUOLA)"" - MEPA";429;1;3;2;7;6
AGENZIA PER LO SVILUPPO  EMPOLESE VALDESA S.P.A.;13/02/2018;Acquisto di servizi per altre spese per formazione e addestramento n.a.c.;160,00;"Liquidazione Fattura Nr. 134/03  del 07/12/2017 - PERCORSO DI AGGIORNAMENTO IN MATERIA DI GESTIONE DEL PERSONALE	";454;1;3;2;4;999
AGENZIA PER LO SVILUPPO  EMPOLESE VALDESA S.P.A.;13/02/2018;Acquisto di servizi per altre spese per formazione e addestramento n.a.c.;320,00;"Liquidazione Fattura Nr. 1/03  del 22/01/2018 - PARTECIPAZIONE AL CORSO DI FORMAZIONE ""PERCORSO DI AGGIORNAMENTO IN MATERIA DI GESTIONE DEL PERSONALE DEGLI ENTI LOCALI"" AUTORIZZAZIONE ALLA DIPENDENTE ELISABETTA LICCIONE ED IMPEGNI DI SPESA.";428;1;3;2;4;999
ARNO MANETTI ASCENSORI S.R.L.;13/02/2018;Manutenzione ordinaria e riparazioni di impianti e macchinari;163,48;Liquidazione Fattura Nr. 4286  del 18/12/2017 (di cui Split per euro 29,48) - Manut. imp. ascensore sedi istituzionali, scuole, villa Reghini, RSA, Palasport per 40% uso istituzionale-2� SEM. 2017;417;1;3;2;9;4
ARNO MANETTI ASCENSORI S.R.L.;13/02/2018;Manutenzione ordinaria e riparazioni di impianti e macchinari;695,40;Liquidazione Fattura Nr. 4286  del 18/12/2017 (di cui Split per euro 125,40) - Manut. imp. ascensore sedi istituzionali, scuole, villa Reghini, RSA, Palasport per 40% uso istituzionale-2� SEM. 2017;411;1;3;2;9;4
ARNO MANETTI ASCENSORI S.R.L.;13/02/2018;Manutenzione ordinaria e riparazioni di impianti e macchinari;245,22;Liquidazione Fattura Nr. 4285  del 18/12/2017 (di cui Split per euro 44,22) - Manut. imp. ascensore Museo, Casa Natale, Palazzina, Nido, Palasport per il 60% extrascolastico-2� SEM. 2017;417;1;3;2;9;4
ARNO MANETTI ASCENSORI S.R.L.;13/02/2018;Manutenzione ordinaria e riparazioni di impianti e macchinari;225,70;Liquidazione Fattura Nr. 4285  del 18/12/2017 (di cui Split per euro 40,70) - Manut. imp. ascensore Museo, Casa Natale, Palazzina, Nido, Palasport per il 60% extrascolastico-2� SEM. 2017;420;1;3;2;9;4
ARNO MANETTI ASCENSORI S.R.L.;13/02/2018;Manutenzione ordinaria e riparazioni di impianti e macchinari;677,10;Liquidazione Fattura Nr. 4285  del 18/12/2017 (di cui Split per euro 122,10) - Manut. imp. ascensore Museo, Casa Natale, Palazzina, Nido, Palasport per il 60% extrascolastico-2� SEM. 2017;416;1;3;2;9;4
TIM S.P.A. DIREZIONE E COORDINAMENTO VIVENDI SA;13/02/2018;Servizi di rete per trasmissione dati e VoIP e relativa manutenzione;473,67;Liquidazione Fattura Nr. 6820171220001475  del 12/12/2017 (di cui Split per euro 85,42) - FATTURAZIONE CONTRATTO RETE DATI RTRT3 - 4' TRIMESTRE 2017 - RIF.PROROGA TECNICA N. ADOZIONE 7360 DEL 23/05/17;443;1;3;2;19;4
COOP. CULTURALE LIBRERIA RINASCITA;13/02/2018;Pubblicazioni;136,62;Liquidazione Fattura Nr. 74/PA del 28/12/2017 - FORNITURA DI MATERIALE BIBLIOGRAFICO A STAMPA DI CASE EDITRICI ITALIANE PER LA BIBLIOTECA LEONARDIANA DI VINCI ;437;1;3;1;1;2
TIM S.P.A. DIREZIONE E COORDINAMENTO VIVENDI SA;13/02/2018;Servizi di rete per trasmissione dati e VoIP e relativa manutenzione;112,24;Liquidazione Fattura Nr. 8L00984802  del 06/12/2017 (di cui Split per euro 20,24) - 1BIM 2018 - ASILO NIDO - 057113045437 - V. DELLA LIBERTA' 20 - 50059 VINCI;453;1;3;2;19;4
TIM S.P.A. DIREZIONE E COORDINAMENTO VIVENDI SA;13/02/2018;Servizi di rete per trasmissione dati e VoIP e relativa manutenzione;124,66;Liquidazione Fattura Nr. 8L00988587  del 06/12/2017 (di cui Split per euro 22,48) - 1BIM 2018 - 057113046159 Via PALMIRO TOGLIATTI, 51 - 50059 VINCI FI;450;1;3;2;19;4
AGENZIA PER LO SVILUPPO  EMPOLESE VALDESA S.P.A.;13/02/2018;Organizzazione e partecipazione a manifestazioni e convegni;23,59;Liquidazione Fattura Nr. 146/03  del 13/12/2017 - SERVIZIO DI POSIZIONAMENTO ONLINE DEL PROGRAMMA DELLE CELEBRAZIONI LEONARDIANE 2017 VERSIONE DIGITALE;440;1;3;2;2;5
TIM S.P.A. DIREZIONE E COORDINAMENTO VIVENDI SA;13/02/2018;Servizi di rete per trasmissione dati e VoIP e relativa manutenzione;124,66;Liquidazione Fattura Nr. 8L00989109  del 06/12/2017 (di cui Split per euro 22,48) - 1BIM 2018 - 057113046157 Via LEONARDO DA VINCI, 2 - 50059 VINCI FI - Villa Reghini;451;1;3;2;19;4
CO&SO EMPOLI - CONS. DI COOP. SOCIALI - SOCIETA' COOPERATIVA;13/02/2018;Altre spese per contratti di servizio pubblico;5.064,58;Liquidazione Fattura Nr. 001131-2C0 del 30/11/2017 - Fattura per servizi front-office e didattica presso Biblioteca Leonardiana e sedi distaccate;405;1;3;2;15;999
TIM S.P.A. DIREZIONE E COORDINAMENTO VIVENDI SA;13/02/2018;Servizi di rete per trasmissione dati e VoIP e relativa manutenzione;82,96;Liquidazione Fattura Nr. 8L00989199  del 06/12/2017 (di cui Split per euro 14,96) - 1BIM 2018 - 057113045436  Via VAL DI SOLE, 4 - 50059 VINCI FI;448;1;3;2;19;4
CALOS ITALIA DI CASTELLI ANTONIO;13/02/2018;Carta, cancelleria e stampati;240,26;Liquidazione Fattura Nr. 77/PA del 27/12/2017 - Rif. vs determinazione nr. 143 del 14/11/2017;436;1;3;1;2;1
CALOS ITALIA DI CASTELLI ANTONIO;13/02/2018;Carta, cancelleria e stampati;52,86;IVA Liquidazione Fattura Nr. 77/PA  del 27/12/2017 - Rif. vs determinazione nr. 143 del 14/11/2017;436;1;3;1;2;1
SOCIETA' IMPIANTI TECNOLOGICI SNC DI RUGGIERO C. & C.;13/02/2018;Beni immobili n.a.c.;3.562,40;Liquidazione Fattura Nr. 000013-2017-PA  del 28/12/2017 (di cui Split per euro 642,40) - Sostituzione caldaia Villa Reghini;425;2;2;1;9;999
CO&SO EMPOLI - CONS. DI COOP. SOCIALI - SOCIETA' COOPERATIVA;13/02/2018;Altre spese per contratti di servizio pubblico;3.453,63;Liquidazione Fattura Nr. 001145-2C0  del 30/11/2017 - SERVIZI INFANZIA ED EXTRASCOLASTICI VILLA REGHINI DAL 24 OTTOBRE 2017 AL 30 NOVEMBRE 2017;410;1;3;2;15;999
TIM S.P.A. DIREZIONE E COORDINAMENTO VIVENDI SA;13/02/2018;Telefonia mobile;175,13;Liquidazione Fattura Nr. 7X05447355  del 15/12/2017 (di cui Split per euro 8,30) - 1BIM 2018 - CONVENZIONE PA 6 Telefonia mobile;444;1;3;2;5;2
CO&SO EMPOLI - CONS. DI COOP. SOCIALI - SOCIETA' COOPERATIVA;13/02/2018;Altre spese per contratti di servizio pubblico;1.119,96;Liquidazione Fattura Nr. 001134-2C0  del 30/11/2017 (di cui Split per euro 201,96) - pulizie mese novembre 2017 - regime reverse charge;404;1;3;2;15;999
CO&SO EMPOLI - CONS. DI COOP. SOCIALI - SOCIETA' COOPERATIVA;13/02/2018;Altre spese per contratti di servizio pubblico;780,68;Liquidazione Fattura Nr. 001133-2C0  del 30/11/2017 (di cui Split per euro 140,78) - servizi ufficio turistico mese novembre 2017 - regime sciss.pag.;406;1;3;2;15;999
OFFICE DEPOT ITALIA SRL;13/02/2018;Carta, cancelleria e stampati;915,21;Liquidazione Fattura Nr. 1579665  del 28/12/2017 (di cui Split per euro 165,04) - ACQUISTO MATERIALE VARIO DI CANCELLERIA PER GLI UFFICI MEDIANTE AFFIDAMENTO DIRETTO;457;1;3;1;2;1
OFFICE DEPOT ITALIA SRL;13/02/2018;Carta, cancelleria e stampati;14,88;Liquidazione Fattura Nr. 1579882  del 29/12/2017 (di cui Split per euro 2,68) - ACQUISTO MATERIALE VARIO DI CANCELLERIA PER GLI UFFICI MEDIANTE AFFIDAMENTO DIRETTO;457;1;3;1;2;1
STUDIO MANNUCCI DOTTORI COMMERCIALISTI ASSOCIATI;13/02/2018;Compensi agli organi istituzionali di revisione, di controllo ed altri incarichi istituzionali dell'amministrazione;9.409,42;LIQUIDAZIONE FATTURA NR. 3/01  DEL 15/01/2018 (DI CUI SPLIT PER EURO 1.696,78) - COMPENSO REVISORE UNICO E RIMBORSO SPESE VIAGGIO PERIODO 01/01/2017 -14/02/2018 ;426;1;3;2;1;8
ANGELINO S.R.L.;13/02/2018;Contratti di servizio di trasporto scolastico;32.151,52;Liquidazione Fattura Nr. 00017P  del 31/01/2018 (di cui Split per euro 2.922,87) - SERV.SCOLASTICO 2017-2018- MESE DI GENNAIO 2018;407;1;3;2;15;2
TIM S.P.A. DIREZIONE E COORDINAMENTO VIVENDI SA;13/02/2018;Telefonia mobile;845,89;Liquidazione Fattura Nr. 7X05447355  del 15/12/2017 (di cui Split per euro 27,16) - 1BIM 2018 - CONVENZIONE PA 6 Telefonia mobile;445;1;3;2;5;2
STUDIO MANNUCCI DOTTORI COMMERCIALISTI ASSOCIATI;13/02/2018;Compensi agli organi istituzionali di revisione, di controllo ed altri incarichi istituzionali dell'amministrazione;1.223,50;LIQUIDAZIONE FATTURA NR. 3/01  DEL 15/01/2018 (DI CUI SPLIT PER EURO 220,63) - COMPENSO REVISORE UNICO E RIMBORSO SPESE VIAGGIO PERIODO 01/01/2017 -14/02/2018 ;427;1;3;2;1;8
TIM S.P.A. DIREZIONE E COORDINAMENTO VIVENDI SA;13/02/2018;Telefonia mobile;20,77;Liquidazione Fattura Nr. 7X05447355  del 15/12/2017 (di cui Split per euro 17,02) - 1BIM 2018 - CONVENZIONE PA 6 Telefonia mobile;442;1;3;2;5;2
CIR FOOD S.C. DIVISIONE EUDANIA;13/02/2018;Contratti di servizio per le mense scolastiche;28.450,81;Liquidazione Fattura Nr. 5200033249  del 30/11/2017 (di cui Split per euro 1.094,26) - Destinatario:0000100288,COMUNE DI VINCI,Piazza Leonardo 29,VINCI,50059,FI Trattenute DPR RIT 0,5 % ART. 4 C.3 DPR 207/2010 di 137,47- RIF2: SER.RIST.SCOL;408;1;3;2;15;6
TOSCANA ENERGIA GREEN S.P.A.;13/02/2018;Trasferimenti correnti a altre imprese;6.621,03;Liquidazione Fattura Nr. VP0000059  del 28/07/2017 (di cui Split per euro 689,71) - CORRISPETTIVO PER FOTOVOLTAICO VIA GUIDUCCI;419;1;4;3;99;999
TOSCANA ENERGIA GREEN S.P.A.;13/02/2018;Trasferimenti correnti a altre imprese;5.150,77;Liquidazione Fattura Nr. VP0000081  del 19/12/2017 (di cui Split per euro 536,56) - CORRISPETTIVO PER FOTOVOLTAICO VIA GUIDUCCI;419;1;4;3;99;999
TIPOGRAFIA MODERNA DI ROBBIO PIER CARLO & C. SNC;13/02/2018;Carta, cancelleria e stampati;294,02;Liquidazione Fattura Nr. 363/2017  del 29/12/2017 (di cui Split per euro 53,02) - ACQUISTO BUSTE A SACCO FORMATO A 4 E BUSTE FORMATO COMMERCIALE CON FINESTRA PER GLI UFFICI CON STAMPA INTESTAZIONE E LOGO DELL'ENTE;457;1;3;1;2;1
OFFICE DEPOT ITALIA SRL;13/02/2018;Carta, cancelleria e stampati;22,63;Liquidazione Fattura Nr. 1582790  del 08/01/2018 (di cui Split per euro 4,08) - ACQUISTO MATERIALE VARIO DI CANCELLERIA PER GLI UFFICI MEDIANTE AFFIDAMENTO DIRETTO;457;1;3;1;2;1
CO&SO EMPOLI - CONS. DI COOP. SOCIALI - SOCIETA' COOPERATIVA;13/02/2018;Altre spese per contratti di servizio pubblico;17.155,80;Liquidazione Fattura Nr. 001132-2C0  del 30/11/2017 - servizi museali mese novembre 2017;404;1;3;2;15;999
STUDIO MANNUCCI DOTTORI COMMERCIALISTI ASSOCIATI;13/02/2018;Compensi agli organi istituzionali di revisione, di controllo ed altri incarichi istituzionali dell'amministrazione;406,42;LIQUIDAZIONE FATTURA NR. 3/01  DEL 15/01/2018 (DI CUI SPLIT PER EURO 73,29) - COMPENSO REVISORE UNICO E RIMBORSO SPESE VIAGGIO PERIODO 01/01/2017 -14/02/2018 ;426;1;3;2;1;8
ART DEFENDER SRL;13/02/2018;Servizi di sorveglianza, e custodia e accoglienza;7.581,43;Liquidazione Fattura Nr. 000000446  del 06/12/2017 (di cui Split per euro 1.367,14) - AFFIDAMENTO DIRETTO AI SENSI DELL'ART. 36 COMMA 2 LETT. A) D.LGS. 50/2016 DEL SERVIZIO DI DEPOSITO, CUSTODIA E MOVIMENTAZIONE DEI MODELLI DELLA COLLEZIONE;439;1;3;2;13;1
FRATERNITA MISERICORDIA DI VINCI;13/02/2018;Altri servizi ausiliari n.a.c.;3.208,32;Liquidazione Fattura Nr. FATTPA 2_18  del 11/01/2018 - servizio custodia sorveglianza e pulizie Teatro quarto trimestre 2017;435;1;3;2;13;999
GIUNTI EDITORE S.P.A.;13/02/2018;Stampa e rilegatura;3.399,84;Liquidazione Fattura Nr. 2017145315  del 27/12/2017 - det. 180/2016 imp. DS05180 sub 1 cap. 3270/5 CIG Z351C94E7D;438;1;3;2;13;4
OPERA LABORATORI FIORENTINI S.P.A.;13/02/2018;Servizi di sorveglianza, e custodia e accoglienza;2.589,60;Liquidazione Fattura Nr. 139/0P  del 31/12/2017 (di cui Split per euro 466,98) - Fattura vendita Split Paym. PA;439;1;3;2;13;1
TIM S.P.A. DIREZIONE E COORDINAMENTO VIVENDI SA;13/02/2018;Telefonia fissa;1.464,10;Liquidazione Fattura Nr. 4220618800029734  del 06/12/2017 (di cui Split per euro 264,01) - 1BIM 2018 - Consip 4 telefonia fissa e dati;442;1;3;2;5;1
TIM S.P.A. DIREZIONE E COORDINAMENTO VIVENDI SA;13/02/2018;Telefonia fissa;363,26;Liquidazione Fattura Nr. 4220618800029734  del 06/12/2017 (di cui Split per euro 65,51) - 1BIM 2018 - Consip 4 telefonia fissa e dati;449;1;3;2;5;1
TIM S.P.A. DIREZIONE E COORDINAMENTO VIVENDI SA;13/02/2018;Telefonia fissa;35,39;Liquidazione Fattura Nr. 8L00990309  del 06/12/2017 (di cui Split per euro 6,38) - 1BIM 2018 - 0571568036 Via DELLA TORRE, 11 - 50059 VINCI FI;452;1;3;2;5;1
CO&SO EMPOLI - CONS. DI COOP. SOCIALI - SOCIETA' COOPERATIVA;13/02/2018;Altre spese per contratti di servizio pubblico;18.804,33;Liquidazione Fattura Nr. 001130-2C0  del 30/11/2017 (di cui Split per euro 895,44) - SERVIZIO SOSTEGNO H NELL'AMBITO SCOLASTICO MESE DI NOVEMBRE 2017;409;1;3;2;15;999
TIM S.P.A. DIREZIONE E COORDINAMENTO VIVENDI SA;13/02/2018;Servizi di rete per trasmissione dati e VoIP e relativa manutenzione;124,66;Liquidazione Fattura Nr. 8L00990426  del 06/12/2017 (di cui Split per euro 22,48) - 1BIM 2018 - 057113046155 - V. GUIDUCCI GUIDO 9 - 50059 VINCI FI;447;1;3;2;19;4
BARTALUCCI SAS DI BARTALUCCI ELENA E BARTALUCCI MONICA;14/02/2018;Altri servizi ausiliari n.a.c.;86,36;Liquidazione Fattura Nr. 499/P  del 28/11/2017 (di cui Split per euro 15,57) - Trascrizione CC del 14/12/2016 - 171 minuti;470;1;3;2;13;999
DAMAZ S.R.L. - INGROSSO CASALINGHI;14/02/2018;Altri beni e materiali di consumo n.a.c.;598,80;Liquidazione Fattura Nr. 12883P  del 19/12/2017 (di cui Split per euro 107,98) - ordine per musei det. 202/2017;472;1;3;1;2;999
BARTALUCCI SAS DI BARTALUCCI ELENA E BARTALUCCI MONICA;14/02/2018;Altri servizi ausiliari n.a.c.;65,15;Liquidazione Fattura Nr. 539/P  del 18/12/2017 (di cui Split per euro 11,75) - Consiglio del 30 maggio 2017 - 129 minuti;470;1;3;2;13;999
DAMAZ S.R.L. - INGROSSO CASALINGHI;14/02/2018;Altri beni e materiali di consumo n.a.c.;782,78;Liquidazione Fattura Nr. 12884P  del 19/12/2017 (di cui Split per euro 141,16) - ordine edifici comunali det. 65/2017 - ultimo;471;1;3;1;2;999
PANTANELLI PIERPAOLO;14/02/2018;Patrocinio legale;2.536,70;LIQUIDAZIONE FATTURA NR. 00002/01  DEL 16/11/2017 (DI CUI SPLIT PER EURO 436,78) - SALDO SPESE LEGALI ATTIVIT� DEFENSIONALE MEDIAZIONE N. 1887/2016 OCF DI FIRENZE;469;1;3;2;11;6
PANTANELLI PIERPAOLO;14/02/2018;Patrocinio legale;2.997,54;LIQUIDAZIONE FATTURA NR. 00001/01  DEL 16/11/2017 (DI CUI SPLIT PER EURO 540,54) - ACCONDO-SALDO PER SPESE LEGALI CONSULENZA STRAGIUDIZIONE - RIF. PREVENTIVO DEL 14/06/2017 - PARERE PIGNORAMENTO  EQUITALIA;469;1;3;2;11;6
BAZAR CINELLI DI CINELLI ILARIA E PAOLO;14/02/2018;Pubblicazioni;6.194,18;Liquidazione Fattura Nr. 0018FE  del 31/12/2017 - rimborso cedole librarie scuola primaria del comune di Vinci anno scolastico 2017-18;473;1;3;1;1;2
"FILARMONICA""LEONARDO DA VINCI"" - ASSOCIAZIONE PER L'EDUCAZIONE MUSICALE";14/02/2018;Organizzazione e partecipazione a manifestazioni e convegni;500,20;Liquidazione Fattura Nr. FATTPA 1_17  del 05/12/2017 (di cui Split per euro 90,20) - SERVIZI MUSICALI PER CERIMONIE 2017;466;1;3;2;2;5
EDICOLA ADOLFO E ALESSIO FOSSI SNC;14/02/2018;Pubblicazioni;143,91;Liquidazione Fattura Nr. 000004-2017-FattPA  del 30/12/2017 - FORNITURA LIBRI DI TESTO PER CEDOLE LIBRARIE ELEMENTARI;473;1;3;1;1;2
CRISTOFORO SOC.COOP. SOCIALE ONLUS;14/02/2018;Altri servizi diversi n.a.c.;9.331,41;Liquidazione Fattura Nr. 797. 20006/ 2017  del 15/12/2017 al netto di Nota: N. 117. 20006/ 2018 del 30/01/2018 di 54,22 (di cui Split per euro 848,31) - SERVIZIO ACCOMPAGNAMENTO SCUOLABUS MESE DI NOVEMBRE 2017;474;1;3;2;99;999
DAMAZ S.R.L. - INGROSSO CASALINGHI;14/02/2018;Altri beni e materiali di consumo n.a.c.;599,90;Liquidazione Fattura Nr. 12882P  del 19/12/2017 (di cui Split per euro 108,18) - ordine edifici comunali det. 202/2017;471;1;3;1;2;999
L'ABBRACCIO SNC DI CONTI SIMONA E AMATUCCI VALENTINA;14/02/2018;Altri servizi diversi n.a.c.;472,00;"Liquidazione Fattura Nr. 2/PA  del 11/01/2018 - POSTO BAMBINO PEDANIA ENIA MESE DI OTTOBRE 2017 EURO 236.00 E NOVEMBRE 2017 EURO 236,00
DECRETO DIRIGENZIALE N.5331 DEL 26/04/2017 DELLA REGIONE TOSCANA";477;1;3;2;99;999
MEDICEA  ASSOCIAZIONE CULTURALE;14/02/2018;Altri servizi diversi n.a.c.;1.674,68;Liquidazione Fattura Nr. 39  del 31/12/2016 al netto di Nota: N. 51 del 31/12/2016 di 76,29 (di cui Split per euro 315,75) - servizio attacchinaggio manifesti cig ZF217D076E IMPEGNO SPESA PPAA;460;1;3;2;99;999
IL SOLE 24 ORE S.P.A.;14/02/2018;Pubblicazione bandi di gara;414,80;Liquidazione Fattura Nr. 3410005624  del 31/12/2017 (di cui Split per euro 74,80) - PUBBLICAZIONE ESITO DI GARA - APPALTO DEL SERVIZIO DI ASSISTENZA SPECIALISTICA ALLA DISABILITA' IN AMBITO SCOLASTICO E PER LE ATTIVITA' DEL CENTRO DI AGGREG;459;1;3;2;16;1
SOCIETA' PUBBLICITA' EDITORIALE S.P.A.;14/02/2018;Pubblicazione bandi di gara;292,80;Liquidazione Fattura Nr. 2017/E44000048865  del 31/12/2017 (di cui Split per euro 52,80) - PUBBLICAZIONE ESITO DI GARA - APPALTO DEL SERVIZIO DI ASSISTENZA SPECIALISTICA ALLA DISABILITA' IN AMBITO SCOLASTICO E PER LE ATTIVITA' DEL CENTRO DI;459;1;3;2;16;1
L'ABBRACCIO SNC DI CONTI SIMONA E AMATUCCI VALENTINA;14/02/2018;Trasferimenti correnti a Istituzioni Sociali Private ;250,00;CONTRIBUTO PROGETTO 2016;467;1;4;4;1;1
CENTRO STUDI DISCIPLINE ORIENTALI;14/02/2018;Trasferimenti correnti a Istituzioni Sociali Private ;1.000,00;LIQUIDAZIONE CONTRIBUTO;462;1;4;4;1;1
ASSOCIAZIONE VINCI NEL CUORE LI OMINI BONI DESIDERANO SAPERE;14/02/2018;Trasferimenti correnti a Istituzioni Sociali Private ;700,00;contributo premio comunicazione 2017;468;1;4;4;1;1
CRISTOFORO SOC.COOP. SOCIALE ONLUS;14/02/2018;Altri servizi diversi n.a.c.;1.131,38;Liquidazione Fattura Nr. 798. 20006/ 2017  del 15/12/2017 al netto di Nota: N. 118. 20006/ 2018 del 30/01/2018 di 6,58 (di cui Split per euro 102,85) - SERVIZIO PRESCUOLA MESE DI NOVEMBRE 2017;474;1;3;2;99;999
ASSOCIAZIONE DA VINCI ART PROJECT;14/02/2018;Trasferimenti correnti a Istituzioni Sociali Private ;1.000,00;contributo da vinci baroque festival 2017;468;1;4;4;1;1
ASSOCIAZIONE AGRADO;14/02/2018;Trasferimenti correnti a Istituzioni Sociali Private ;450,00;contributo iniziativa campo londa 2017;468;1;4;4;1;1
MEDICEA  ASSOCIAZIONE CULTURALE;14/02/2018;Altri servizi diversi n.a.c.;906,86;Liquidazione Fattura Nr. 35 del 31/12/2017 - servizio attacchinaggio manifesti cig Z371CAF4A1 IMPEGNO SPESA PPAA;461;1;3;2;99;999
ASSOCIAZIONE AGRADO;14/02/2018;Altri servizi diversi n.a.c.;921,42;Liquidazione Fattura Nr. 2/2  del 30/09/2017 (di cui Split per euro 166,16) - REALIZZAZIONE DI UN MINI CAMPO ESTIVO PER IL GEMELLAGGIO VINCI / AMBOISE;476;1;3;2;99;999
CIRCONDARIO EMPOLESE VALDELSA - UFF. RAGIONERIA;14/02/2018;Pubblicazione bandi di gara;3.763,68;rimborso spese pubblicazione bado gara procedura aperta affidamento gestione asilo nido Piccino Picci� e servizio assist specialistica disabilit� scolastica;459;1;3;2;16;1
ETRURIA P.A. SRL;14/02/2018;Stampa e rilegatura;291,58;Liquidazione Fattura Nr. 99/00000  del 24/01/2018 (di cui Split per euro 52,58) - STAMPA DI MATERIALE INFORMATIVO PER MUSEO LEONARDIANO E UFFICIO TURISTICO - AFFIDAMENTO TRAMITE START E IMPEGNO DI SPESA;465;1;3;2;13;4
"PENSIONE PER CANI E GATTI ""CERTOSA"" S.R.L.";14/02/2018;Contratti di servizio per la lotta al randagismo ;812,52;Liquidazione Fattura Nr. FATTPA 3_18  del 08/01/2018 (di cui Split per euro 146,52) - AGGIUDICAZIONE DEFINITIVA ED EFFICACE DELL'APPALTO DEL SERVIZIO DI RICOVERO, CUSTODIA, MANTENIMENTO E CURA DI CANI ABBANDONATI E FERITI AI SENSI DELLA LEG;464;1;3;2;15;11
ESKIMO COOP. SOCIALE ONLUS;14/02/2018;Altre spese per contratti di servizio pubblico;9.848,12;Liquidazione Fattura Nr. FATTPA 126_17  del 30/11/2017 - SERVIZIO CONCESSIONE SERVIZI EDUCATIVI PER L'INFANZIA E SERVIZI EXTRASCOLASTICI DAL VILLA REGHINI 24/10/17 AL 30/11/17;478;1;3;2;15;999
ANTICIMEX SRL;14/02/2018;Altri acquisti di servizi sanitari n.a.c.;563,54;Liquidazione Fattura Nr. 2342/PA  del 31/12/2017 (di cui Split per euro 101,62) - servizi di derattizzazione e antilarvali svolti nei mesi di novembre e dicembre 2017;463;1;3;2;18;999
STUDIO NOTARILE LAZZERONI AVV. CESARE LAZZERONI AVV. FILIPPO LAZZERONI;14/02/2018;Spese notarili;3.761,34;LIQUIDAZIONE FATTURA NR. 1/E  DEL 17/01/2018 (DI CUI SPLIT PER EURO 215,46) - VENDITA;459;1;3;2;16;4
EREDI LEPORATTI S.A.S.;14/02/2018;Contratti di servizio di trasporto pubblico;1.325,23;Liquidazione Fattura Nr. 18/E  del 30/11/2017 (di cui Split per euro 120,48) - FATTURA TPL MENSILITA' NOVEMBRE2017;475;1;3;2;15;1
NEOPOST ITALIA - AFFRANCAPOSTA;15/02/2018;Spese postali;1.000,00;VERSAMENTO SU CONTO POSTALE AFFRANCATRICE NEOPOST IS-420 n. matr. CP5W ;479;1;3;2;16;2
ERARIO DELLO STATO PER PAGAMENTO I.V.A.;16/02/2018;Versamenti IVA a debito per le gestioni commerciali;0,03;PAGAMENTO IVA SU SERVIZI COMMERCIALI ESERCIZIO 2018- INTEGRAZ. LIQ. GENNAIO;480;1;10;3;1;1
GIGLIOLI PIATTAFORME DI GIGLIOLI ANTONIO & C. S.A.S.;19/02/2018;Manutenzione ordinaria e riparazioni di beni immobili;796,05;Liquidazione Fattura Nr. 8/E/2017  del 21/12/2017 (di cui Split per euro 143,55) - NOLEGGIO PIATTAFORMA AEREA AUTOCARRATA MT. 14 SENZA OPERATORE _ DETERMINA A CONTRARRE E AFFIDAMENTO DITTA GIGLIOLI PIATTAFORME DI GIGLIOLI ANTONIO E C. SAS;506;1;3;2;9;8
FANTINI & FANCELLI SRL;19/02/2018;Manutenzione ordinaria e riparazioni di impianti e macchinari;530,70;Liquidazione Fattura Nr. FATTPA 4_17  del 18/12/2017 (di cui Split per euro 95,70) - SERVIZIO DI MANUTENZIONE DELLA CALDAIA A PELLET INSTALLATA PRESSO LA CASA NATALE DI ANCHIANO _ DETERMINA A CONTRARRE E AFFIDAMENTO DITTA FANTINI & FANCELLI;505;1;3;2;9;4
CRISTOFORO SOC.COOP. SOCIALE ONLUS;19/02/2018;Altri servizi diversi n.a.c.;443,49;Liquidazione Fattura Nr. 620. 20006/ 2017  del 18/10/2017 al netto di Nota: N. 111. 20006/ 2018 del 26/01/2018 di 554,46 (di cui Split per euro 40,32) - servizio accompagnamento scuolabus novembre 2017;501;1;3;2;99;999
CRISTOFORO SOC.COOP. SOCIALE ONLUS;19/02/2018;Altri servizi diversi n.a.c.;6.047,31;Liquidazione Fattura Nr. 620. 20006/ 2017  del 18/10/2017 al netto di Nota: N. 111. 20006/ 2018 del 26/01/2018 di 554,46 (di cui Split per euro 549,75) - servizio accompagnamento scuolabus novembre 2017;501;1;3;2;99;999
ROMANI DISINFESTAZIONI SRL;19/02/2018;Fabbricati ad uso strumentale;1.689,50;Liquidazione Fattura Nr. 15/002  del 18/12/2017 (di cui Split per euro 304,66) - INSTALLAZIONE DI SISTEMI DISSUASORI DI VOLATILI PRESSO LA SEDE DEL COMANDO DEI VIGILI URBANI DI SOVIGLIANA E LA BIBLIOTECA LEONARDIANA DI VINCI _ DETERMINA A C;508;2;2;1;9;19
STEME OFFICINA MECCANICA DI ROBERTO DESIDERI,ENZO LEPORATTI & C. S.A.S.;19/02/2018;Attrezzature n.a.c.;2.764,52;Liquidazione Fattura Nr. FATTPA 6_17  del 21/12/2017 (di cui Split per euro 498,52) - FORNITURA DELL'ATTREZZATURA NECESSARIA AD EFFETTUARE INTERVENTI DI MANUTENZIONE DELLE AREE A VERDE _ DETERMINA A CONTRARRE E AFFIDAMENTO DITTA STEME OFFIC;510;2;2;1;5;999
ROMANI DISINFESTAZIONI SRL;19/02/2018;Manutenzione ordinaria e riparazioni di beni immobili;1.879,00;Liquidazione Fattura Nr. 15/002  del 18/12/2017 (di cui Split per euro 338,84) - INSTALLAZIONE DI SISTEMI DISSUASORI DI VOLATILI PRESSO LA SEDE DEL COMANDO DEI VIGILI URBANI DI SOVIGLIANA E LA BIBLIOTECA LEONARDIANA DI VINCI _ DETERMINA A C;502;1;3;2;9;8
ROMANI DISINFESTAZIONI SRL;19/02/2018;Fabbricati ad uso strumentale;1.939,80;Liquidazione Fattura Nr. 15/002  del 18/12/2017 (di cui Split per euro 349,80) - INSTALLAZIONE DI SISTEMI DISSUASORI DI VOLATILI PRESSO LA SEDE DEL COMANDO DEI VIGILI URBANI DI SOVIGLIANA E LA BIBLIOTECA LEONARDIANA DI VINCI _ DETERMINA A C;508;2;2;1;9;19
VALDELSA STUDIO SERVICE SNC DI CAMPATELLI NIDIACI  E VICIANI;19/02/2018;Attrezzature n.a.c.;95,16;Liquidazione Fattura Nr. 07-PA  del 14/12/2017 (di cui Split per euro 17,16) - DETERMINAZIONE NR. 148 DEL 24/11/2017 - Fornitura lampade per teatro 1.000 W. GX 9.5;500;2;2;1;5;999
MATERIALI EDILI BALDACCI DI BALDACCI RENATO E C. SNC;19/02/2018;Attrezzature n.a.c.;497,76;Liquidazione Fattura Nr. 2189  del 14/12/2017 (di cui Split per euro 89,76) - ACQUISTO N 2 SCALEI PER INTERVENTI SU VIABILITA' E PUBBLICA ILLUMINAZIONE;509;2;2;1;5;999
COOPERATIVA SOCIALE MIMOSA ONLUS;19/02/2018;Manutenzione ordinaria e riparazioni di beni immobili;2.770,42;Liquidazione Fattura Nr. 000022-2017-FE  del 30/11/2017 (di cui Split per euro 499,58) - AFFIDAMENTO DIRETTO AI SENSI DELL'ART. 36 D.LGS. 50/2011 IN APPALTO DEL SERVIZIO DI PULIZIA DEL VERDE PUBBLICO  DAL 13.03.2017 AL 31.12.2017;507;1;3;2;9;8
MATERIALI EDILI BALDACCI DI BALDACCI RENATO E C. SNC;19/02/2018;Altri beni e materiali di consumo n.a.c.;377,43;Liquidazione Fattura Nr. 2190  del 14/12/2017 (di cui Split per euro 68,06) - FORNITURA MATERIALI EDILI FINALIZZATI ALL'ESECUZIONE DI MANUTENZIONE EDIFICI SCOLASTICI-INFANZIA;504;1;3;1;2;999
CENTRO RIPARAZIONI AGRICOLE E GIARDINAGGIO DI PERUZZI FABIO;19/02/2018;Manutenzione ordinaria e riparazioni di mezzi di trasporto ad uso civile, di sicurezza e ordine pubblico;859,00;Liquidazione Fattura Nr. 000003-2017-PA  del 20/12/2017 - INTERVENTO DI RIPARAZIONE DEL MEZZO MOD. LAMBORGINI 880 � S AGILE TARGATO AR588P _ DETERMINA A CONTRARRE E AFFIDAMENTO DITTA CENTRO RIPARAZIONI AGRICOLE E GIARDINAGGIO PERUZZI DI PER;503;1;3;2;9;1
A.N.A.C. - AUTORITA' NAZIONALE ANTICORRUZIONE;19/02/2018;Trasferimenti correnti a altre Amministrazioni Centrali n.a.c.;600,00;CONTRIBUTO ANAC QUADRIMESTRE SETTEMBRE/DICEMBRE 2017;481;1;4;1;1;999
GALLERIE DEGLI UFFIZI MINISTERO DEI BENI E DELLE ATTIVIT� CULTURALI E DEL TURISM;20/02/2018;Altri beni e materiali di consumo n.a.c.;102,00;LIQUIDAZIONE FATTURA NR. 50/18 DEL 16/02/2018 - FORNITURA IMMAGINE E AUTORIZZAZIONE ALL'UTILIZZO CON PAGAMENTO DEL CANONE ;511;1;3;1;2;999
PERSONALE DIPENDENTE SEDE;22/02/2018;indennit� di missione e di trasferta;42,40;stipendio 02;547;1;3;2;2;2
PERSONALE DIPENDENTE SEDE;22/02/2018;indennit� di missione e di trasferta;18,00;stipendio 02;532;1;3;2;2;2
PERSONALE DIPENDENTE SEDE;22/02/2018;indennit� di missione e di trasferta;86,60;stipendio 02;540;1;3;2;2;2
AMMINISTRATORI COMUNALI;22/02/2018;Organi istituzionali dell'amministrazione - indennit�;8.330,37;stipendio 02;554;1;3;2;1;1
PERSONALE DIPENDENTE SEDE;22/02/2018;Rimborso per viaggio e trasloco;166,40;stipendio 02;521;1;3;2;2;1
AMMINISTRATORI COMUNALI;22/02/2018;Organi istituzionali dell'amministrazione - Rimborsi ;45,70;Stipendio 02;555;1;3;2;1;2
AMMINISTRATORI COMUNALI;22/02/2018;Organi istituzionali dell'amministrazione - Rimborsi ;87,65;Stipendio 02;556;1;3;2;1;2
PERSONALE DIPENDENTE SEDE;22/02/2018;indennit� di missione e di trasferta;37,40;stipendio 02;526;1;3;2;2;2
PERSONALE DIPENDENTE SEDE;22/02/2018;indennit� di missione e di trasferta;19,00;stipendio 02;524;1;3;2;2;2
AZIENDA USL TOSCANA CENTRO;27/02/2018;Manutenzione ordinaria e riparazioni di mezzi di trasporto ad uso civile, di sicurezza e ordine pubblico;280,50;LIQUIDAZIONE FATTURA NR. P32/2017/61  DEL 05/10/2017 - VERIFICHE PERIODICHE GRU MATR. FI/200065/12 E MATR. FI/200228/05 - DET. 204 DELL' 8/8/17;637;1;3;2;9;1
C.I.S.  INTELLIGENT SYSTEM S.R.L.;27/02/2018;Tablet e dispositivi di telefonia fissa e mobile;1.299,30;Liquidazione Fattura Nr. 10/PA  del 29/01/2018 (di cui Split per euro 234,30) - DETERMINZIONE N.176 DEL SETTORE 2 DEL 22/12/2017 - IMPEGNO N.DS02176/1 DEL 22/12/2017;653;2;2;1;7;5
ACQUE S.P.A.;27/02/2018;Acqua;45,34;Liquidazione Fattura Nr. 6017012000016132  del 20/12/2017 (di cui Split per euro 4,12) - Fornitura acqua fontanello via Giovanni XXIII;641;1;3;2;5;5
C.I.S.  INTELLIGENT SYSTEM S.R.L.;27/02/2018;Manutenzione ordinaria e riparazioni di beni immobili;311,71;Liquidazione Fattura Nr. 149/PA  del 28/12/2017 (di cui Split per euro 56,21) - RIPRISTINO DELLA FUNZIONALITA' DI RETE PRESSO LA SEDE COMUNALE DI SOVIGLIANA;635;1;3;2;9;8
COOPERATIVA SOCIALE MIMOSA ONLUS;27/02/2018;Manutenzione ordinaria e riparazioni di beni immobili;2.770,42;Liquidazione Fattura Nr. 000024-2017-FE  del 31/12/2017 (di cui Split per euro 499,58) - AFFIDAMENTO DIRETTO AI SENSI DELL'ART. 36 D.LGS. 50/2011 IN APPALTO DEL SERVIZIO DI PULIZIA DEL VERDE PUBBLICO  DAL 13.03.2017 AL 31.12.2017;642;1;3;2;9;8
L'ELETTRICA S.P.A.;27/02/2018;Attrezzature n.a.c.;530,70;"Liquidazione Fattura Nr. 0000842PA  del 29/12/2017 (di cui Split per euro 95,70) -  fornitura fari esterni teatro di Vinci - *D.D.T. n.  31156/S21 Del 29.12.17 Operazione soggetta alla ""Scissione Pagamenti"" Art.17-ter,DPR N.633/72 Imposta d";655;2;2;1;5;999
ELCOM  SRL;27/02/2018;Attrezzature n.a.c.;1.176,08;Liquidazione Fattura Nr. 10 del 09/01/2018 - Fornitura generica;654;2;2;1;5;999
ACQUE S.P.A.;27/02/2018;Acqua;36,37;Liquidazione Fattura Nr. 6018012000000515  del 24/01/2018 (di cui Split per euro 3,31) - Fornitura acqua fontanello via N.Sauro;640;1;3;2;5;5
ACQUE S.P.A.;27/02/2018;Acqua;276,63;Liquidazione Fattura Nr. 6018012000000551  del 25/01/2018 (di cui Split per euro 25,15) - Fornitura ACQUA SCUOLA PRIMARIA;638;1;3;2;5;5
ACQUE S.P.A.;27/02/2018;Acqua;31,13;Liquidazione Fattura Nr. 6017012000015803  del 14/12/2017 (di cui Split per euro 2,83) - FORNITURA ACQUA FONTANELLO VIA SANZIO;641;1;3;2;5;5
SANMINIATESE STRADE S.R.L.;27/02/2018;Opere per la sistemazione del suolo;16.928,37;Liquidazione Fattura Nr. 04  del 09/02/2018 (di cui Split per euro 1.538,94) - Determinazione n. 255 del 05.10.2017 - capitolo di spesa 13102 anno 2017 - CIG Z742024164  CUP J77H17000460006;643;2;2;1;9;14
AZIENDA USL TOSCANA CENTRO;27/02/2018;Manutenzione ordinaria e riparazioni di mezzi di trasporto ad uso civile, di sicurezza e ordine pubblico;216,94;LIQUIDAZIONE FATTURA NR. P32/2017/61  DEL 05/10/2017 - VERIFICHE PERIODICHE GRU MATR. FI/200065/12 E MATR. FI/200228/05 - DET. 204 DELL' 8/8/17;636;1;3;2;9;1
AZIENDA USL TOSCANA CENTRO;27/02/2018;Manutenzione ordinaria e riparazioni di mezzi di trasporto ad uso civile, di sicurezza e ordine pubblico;61,71;IVA-LIQUIDAZIONE FATTURA NR. P32/2017/61  DEL 05/10/2017 (DI CUI SPLIT PER EURO 61,71) - VERIFICHE PERIODICHE GRU MATR. FI/200065/12 E MATR. FI/200228/05 - DET. 204 DELL' 8/8/17;637;1;3;2;9;1
AZIENDA USL TOSCANA CENTRO;27/02/2018;Manutenzione ordinaria e riparazioni di mezzi di trasporto ad uso civile, di sicurezza e ordine pubblico;47,73;IVA-LIQUIDAZIONE FATTURA NR. P32/2017/61  DEL 05/10/2017 (DI CUI SPLIT PER EURO 47,73) - VERIFICHE PERIODICHE GRU MATR. FI/200065/12 E MATR. FI/200228/05 - DET. 204 DELL' 8/8/17;636;1;3;2;9;1
ACQUE S.P.A.;27/02/2018;Acqua;384,60;Liquidazione Fattura Nr. 6018012000000551  del 25/01/2018 (di cui Split per euro 34,96) - Fornitura ACQUA SCUOLA PRIMARIA;639;1;3;2;5;5
CENTRO L.I.F.E.;27/02/2018;Altri servizi diversi n.a.c.;3.553,19;Liquidazione Fattura Nr. 000004-2018-1PA  del 30/01/2018 (di cui Split per euro 640,74) - SPORTELLO LAVORO PRIMA ACCOGLIENZA SERVIZI PER L' IMPIEGO 2017;656;1;3;2;99;999
AGENZIA PER LO SVILUPPO  EMPOLESE VALDESA S.P.A.;27/02/2018;Acquisto di servizi per altre spese per formazione e addestramento n.a.c.;410,00;Liquidazione Fattura Nr. 17/03  del 31/01/2018 - FORMAZIONE GENERALE: PARTECIPAZIONE A NR. 02 CORSI DI AGGIORNAMENTO  INDETTI DA ASEV EMPOLI SU BILANCIO E TRIBUTI.;645;1;3;2;4;999
ALIA SERVIZI AMBIENTALI S.P.A.;27/02/2018;Contratti di servizio per la raccolta rifiuti;178.793,23;Liquidazione Fattura Nr. 0000132010  del 31/01/2018 (di cui Split per euro 16.253,93) - SERVIZIO INTEGRATO RACCOLTA, SPAZZAMENTO E SMALTIMENTO DEI RIFIUTI URBANI E RIFIUTI SPECIALI ASSIMILATI AI RIFIUTI URBANI -  IMPEGNO DI SPESA;658;1;3;2;15;4
TIM S.P.A. DIREZIONE E COORDINAMENTO VIVENDI SA;27/02/2018;Telefonia fissa;78,54;Liquidazione Fattura Nr. 4220618800029734  del 06/12/2017 (di cui Split per euro 14,16) - 1BIM 2018 - Consip 4 telefonia fissa e dati;650;1;3;2;5;1
TIM S.P.A. DIREZIONE E COORDINAMENTO VIVENDI SA;27/02/2018;Telefonia fissa;121,95;Liquidazione Fattura Nr. 4220618800029734  del 06/12/2017 (di cui Split per euro 21,99) - 1BIM 2018 - Consip 4 telefonia fissa e dati;648;1;3;2;5;1
TIM S.P.A. DIREZIONE E COORDINAMENTO VIVENDI SA;27/02/2018;Telefonia fissa;125,73;Liquidazione Fattura Nr. 4220618800029734  del 06/12/2017 (di cui Split per euro 22,67) - 1BIM 2018 - Consip 4 telefonia fissa e dati;647;1;3;2;5;1
TIM S.P.A. DIREZIONE E COORDINAMENTO VIVENDI SA;27/02/2018;Telefonia fissa;229,52;Liquidazione Fattura Nr. 4220618800029734  del 06/12/2017 (di cui Split per euro 41,39) - 1BIM 2018 - Consip 4 telefonia fissa e dati;649;1;3;2;5;1
TIM S.P.A. DIREZIONE E COORDINAMENTO VIVENDI SA;27/02/2018;Telefonia fissa;305,32;Liquidazione Fattura Nr. 4220618800029734  del 06/12/2017 (di cui Split per euro 55,06) - 1BIM 2018 - Consip 4 telefonia fissa e dati;652;1;3;2;5;1
BONANSEGNA  GIOVANNI;27/02/2018;Incarichi professionali per la realizzazione di investimenti;2.144,27;LIQUIDAZIONE FATTURA NR. FATTPA 7_17  DEL 29/12/2017 (DI CUI SPLIT PER EURO 386,67) - RIFACIMENTO BAGNI E CONTROSOFFITTI PRESSO LA SCUOLA PRIMARIA SIBILLA ALERAMO - INCARICO REQUISITI ACUSTICI PASSIVI DEGLI EDIFICI E MIGLIORAMENTO DEL TEMPO;644;2;2;3;5;1
EREDI LEPORATTI S.A.S.;27/02/2018;Contratti di servizio di trasporto pubblico;1.325,20;Liquidazione Fattura Nr. 20/E  del 28/12/2017 (di cui Split per euro 120,47) - FATTURA TPL MENSILITA' DICEMBRE 17;657;1;3;2;15;1
CALOS ITALIA DI CASTELLI ANTONIO;27/02/2018;Carta, cancelleria e stampati;17,34;IVA LIQUIDAZIONE FATTURA NR. 5/PA  DEL 30/01/2018 (DI CUI SPLIT PER EURO 17,34) - RIF. VS ORDINE ECONOMALE DEL 30/01/2018;646;1;3;1;2;1
GIANI MILA SNC;27/02/2018;Carta, cancelleria e stampati;38,54;IVA LIQUIDAZIONE FATTURA NR. PA  000010  DEL 31/01/2018 (DI CUI SPLIT PER EURO 38,54) - C/VENDITA;646;1;3;1;2;1
TIM S.P.A. DIREZIONE E COORDINAMENTO VIVENDI SA;27/02/2018;Telefonia fissa;38,53;Liquidazione Fattura Nr. 4220618800029734  del 06/12/2017 (di cui Split per euro 6,95) - 1BIM 2018 - Consip 4 telefonia fissa e dati;651;1;3;2;5;1
MANCINI  DINO;02/03/2018;Terreni edificabili;6.500,00;Acquisto terreno foglio di mappa 51 particelle 481 e 421;659;2;2;2;1;2
COMUNE DI GAMBASSI TERME;08/03/2018;Organizzazione e partecipazione a manifestazioni e convegni;14,00;AFFISSIONE PER 58^ LETTURA VINCIANA;661;1;3;2;2;5
GIALLOMARE MINIMAL TEATRO;08/03/2018;Altri servizi diversi n.a.c.;3.000,00;Liquidazione Fattura Nr. FATTPA 20_17  del 29/12/2017 - AFFIDAMENTO DEL SERVIZIO DI LABORATORIO TEATRALE NELLE SCUOLE PRIMARIE DAL 15 SETTEMBRE 2016 AL 31.12.2017- IMPEGNO DI SPESA;671;1;3;2;99;999
CIR FOOD S.C. DIVISIONE EUDANIA;08/03/2018;Contratti di servizio per le mense scolastiche;17.802,32;Liquidazione Fattura Nr. 5200035589  del 31/12/2017 (di cui Split per euro 684,70) - Destinatario:0000100288,COMUNE DI VINCI,Piazza Leonardo 29,VINCI,50059,FI Trattenute DPR RIT 0,5 % ART. 4 C.3 DPR 207/2010 di 86,02- RIF2: SER.RIST.SCOLAST;673;1;3;2;15;6
LATINI  CLAUDIO;08/03/2018;Servizi per i sistemi e relativa manutenzione;507,52;LIQUIDAZIONE FATTURA NR. 000005-2018-PA  DEL 06/02/2018 (DI CUI SPLIT PER EURO 91,52) - REDAZIONE DUVRI PER VALUTAZIONE AFFIDAMENTO PER ASSISTENZA E MANUTENZIONE MACCHINE MULTIFUNZIONE DELL'ENTE;680;1;3;2;19;5
COMUNE DI MONTECATINI TERME;08/03/2018;Organizzazione e partecipazione a manifestazioni e convegni;34,00;AFFISSIONE PER 58^ LETTURA VINCIANA;661;1;3;2;2;5
COMUNE DI SANTA CROCE SULL'ARNO;08/03/2018;Organizzazione e partecipazione a manifestazioni e convegni;27,00;AFFISSIONE PER 58^ LETTURA VINCIANA;661;1;3;2;2;5
COMUNE DI SAN MINIATO;08/03/2018;Organizzazione e partecipazione a manifestazioni e convegni;33,00;RIF. 29 M - AFFISSIONE PER 58^ LETTURA VINCIANA;661;1;3;2;2;5
COMUNE DI MONTESPERTOLI;08/03/2018;Organizzazione e partecipazione a manifestazioni e convegni;26,00;AFFISSIONE PER 58^ LETTURA VINCIANA;661;1;3;2;2;5
BARTALUCCI SAS DI BARTALUCCI ELENA E BARTALUCCI MONICA;08/03/2018;Altri servizi ausiliari n.a.c.;91,41;Liquidazione Fattura Nr. 576/P  del 30/12/2017 (di cui Split per euro 16,48) - Consiglio del 28/04/2017 - 181 minuti;667;1;3;2;13;999
COOPERATIVA SOCIALE ZOE S.C.A.R.L.;08/03/2018;Servizi di pulizia e lavanderia;77,64;Liquidazione Fattura Nr. FATTPA 431_17  del 31/12/2017 (di cui Split per euro 14,00) - VARIANTE PULIZIE DICEMBRE 2017;668;1;3;2;13;2
LASER S.N.C. DI MARRUGANTI ALESSIO & C.;08/03/2018;Manutenzione ordinaria e riparazioni di macchine per ufficio ;2.519,30;Liquidazione Fattura Nr. 12  del 29/12/2017 (di cui Split per euro 454,30) - SERV. ASS. MANUT. MULTIFUNZIONI C/COPIA RDO 1454642 CIG Z8F1CA95B6;679;1;3;2;9;6
COOPERATIVA SOCIALE ZOE S.C.A.R.L.;08/03/2018;Servizi di pulizia e lavanderia;158,89;Liquidazione Fattura Nr. FATTPA 430_17  del 31/12/2017 (di cui Split per euro 28,65) - PULIZIA BIBLIOTECHE DICEMBRE 2017;669;1;3;2;13;2
COOPERATIVA SOCIALE ZOE S.C.A.R.L.;08/03/2018;Servizi di pulizia e lavanderia;146,89;Liquidazione Fattura Nr. FATTPA 429_17  del 31/12/2017 (di cui Split per euro 26,49) - PULIZIA NUOVO UFFICIO TURISTICO DICEMBRE 2017;670;1;3;2;13;2
COOPERATIVA SOCIALE ZOE S.C.A.R.L.;08/03/2018;Servizi di pulizia e lavanderia;1.032,80;Liquidazione Fattura Nr. FATTPA 427_17  del 31/12/2017 (di cui Split per euro 186,24) - PULIZIA EDIFICI COMUNALI (GENERALE) DICEMBRE 2017;668;1;3;2;13;2
COMUNE DI MONTAIONE;08/03/2018;Organizzazione e partecipazione a manifestazioni e convegni;18,00;AFFISSIONE PER 58^ LETTURA VINCIANA;661;1;3;2;2;5
COMUNE DI CASTELFIORENTINO;08/03/2018;Organizzazione e partecipazione a manifestazioni e convegni;33,00;DPA N25 70X100 DAL 28/03/18 PER 15GG - AFFISSIONE PER 58^ LETTURA VINCIANA;661;1;3;2;2;5
COMUNE DI CERTALDO;08/03/2018;Organizzazione e partecipazione a manifestazioni e convegni;31,00;AFFISSIONE PER 58^ LETTURA VINCIANA;661;1;3;2;2;5
ICA SRL IMPOSTA COMUNALE AFFINI;08/03/2018;Organizzazione e partecipazione a manifestazioni e convegni;18,00;AFFISSIONE PER 58^ LETTURA VINCIANA PER IL COMUNE DI LAMPORECCHIO;661;1;3;2;2;5
GIALLOMARE MINIMAL TEATRO;08/03/2018;Altri servizi diversi n.a.c.;9.999,00;Liquidazione Fattura Nr. FATTPA 20_17  del 29/12/2017 - AFFIDAMENTO DEL SERVIZIO DI LABORATORIO TEATRALE NELLE SCUOLE PRIMARIE DAL 15 SETTEMBRE 2016 AL 31.12.2017- IMPEGNO DI SPESA;672;1;3;2;99;999
FRATERNITA MISERICORDIA DI VINCI;08/03/2018;Contratti di servizio per il trasporto di disabili e anziani;3.690,00;Liquidazione Fattura Nr. FATTPA 1_18  del 11/01/2018 - SERVIZIO DI TRASPORTO SCOLASTICO ALUNNI CON HANDICAP RESIDENTI NEL COMUNE DI VINCI E FREQUENTANTI LE SCUOLE SUPERIORI A.S. 2016-2017 (dal 15/09/16 al 10/06/17). AFFIDAMENTO DIRETTO AI S;675;1;3;2;15;3
CO&SO EMPOLI - CONS. DI COOP. SOCIALI - SOCIETA' COOPERATIVA;08/03/2018;Altre spese per contratti di servizio pubblico;3.537,76;Liquidazione Fattura Nr. 001210-2C0  del 31/12/2017 (di cui Split per euro 637,96) - Fatt. servizio turistico mese dicembre 2017 - regime sciss.pag.;665;1;3;2;15;999
VENERELLA JOHN GREGORY;08/03/2018;Interpretariato e traduzioni;244,00;LIQUIDAZIONE FATTURA NR. 1 / PA  DEL 02/02/2018 (DI CUI SPLIT PER EURO 44,00) - SERVIZIO DI TRADUZIONE DOCUMENTAZIONE PER USO DIDATTICO RELATIVA AL MUSEO LEONARDIANO. AFFIDAMENTO DIRETTO;663;1;3;2;11;1
ASSOCIAZIONE CULTURALE IL PONTE;08/03/2018;Altre spese per contratti di servizio pubblico;22,78;Liquidazione Fattura Nr. 51  del 29/12/2017 - ONERI DI INTERFERENZA NON SOGGETTI A RIBASSO DAL 24/10/17 AL 31/12/17;677;1;3;2;15;999
CO&SO EMPOLI - CONS. DI COOP. SOCIALI - SOCIETA' COOPERATIVA;08/03/2018;Altre spese per contratti di servizio pubblico;18.605,70;Liquidazione Fattura Nr. 001205-2C0  del 31/12/2017 - servizi museali mese dicembre 2017;664;1;3;2;15;999
CO&SO EMPOLI - CONS. DI COOP. SOCIALI - SOCIETA' COOPERATIVA;08/03/2018;Altre spese per contratti di servizio pubblico;1.157,29;Liquidazione Fattura Nr. 001206-2C0  del 31/12/2017 (di cui Split per euro 208,69) - Fatt. pulizie dicembre 2017 - regime reverse charge;664;1;3;2;15;999
FRATERNITA MISERICORDIA DI VINCI;08/03/2018;Contratti di servizio per il trasporto di disabili e anziani;2.310,00;Liquidazione Fattura Nr. FATTPA 1_18  del 11/01/2018 - SERVIZIO DI TRASPORTO SCOLASTICO ALUNNI CON HANDICAP RESIDENTI NEL COMUNE DI VINCI E FREQUENTANTI LE SCUOLE SUPERIORI A.S. 2016-2017 (dal 15/09/16 al 10/06/17). AFFIDAMENTO DIRETTO AI S;674;1;3;2;15;3
OPERA LABORATORI FIORENTINI S.P.A.;08/03/2018;Attrezzature n.a.c.;3.806,40;Liquidazione Fattura Nr. 101/0P del 31/10/2017 - Fattura vendita Split Paym. PA;666;2;2;1;5;999
ARTESMECHANICAE DI ALEXANDER NEUWAHL;08/03/2018;Attrezzature n.a.c.;3.000,00;Liquidazione Fattura Nr. 1/81  del 24/11/2017 - INTERVENTI DI RESTAUTRO E MANUTENZIONE SUI MODELLI DELLA COLLEZIONE IN DEPOSITO DEL MUSEO LEONARDIANO;666;2;2;1;5;999
CASALINI LIBRI S.P.A.;08/03/2018;Pubblicazioni;33,30;Liquidazione Fattura Nr. 18-02748 del 19/01/2018 - Acquisto risorse librarie;662;1;3;1;1;2
L'ABBRACCIO SNC DI CONTI SIMONA E AMATUCCI VALENTINA;08/03/2018;Altri servizi diversi n.a.c.;236,00;"Liquidazione Fattura Nr. 4/PA  del 24/01/2018 - POSTO BAMBINO PEDANI ENIA MESE DI DICEMBRE 2017 EURO 236,00
DECRETO DIRIGENZIALE N.5331 DEL 26/04/2017 DELLA REGIONE TOSCANA";676;1;3;2;99;999
ICA SRL IMPOSTA COMUNALE AFFINI;08/03/2018;Organizzazione e partecipazione a manifestazioni e convegni;18,00;AFFISSIONE PER 58^ LETTURA VINCIANA PER IL COMUNE DI LARCIANO;661;1;3;2;2;5
CASALINI LIBRI S.P.A.;08/03/2018;Pubblicazioni;26,64;Liquidazione Fattura Nr. 17-51561 del 22/12/2017 - Acquisto risorse librarie;662;1;3;1;1;2
ANCITEL S.P.A.;08/03/2018;Accesso a banche dati e a pubblicazioni on line;1.462,78;Liquidazione Fattura Nr. 395  del 01/02/2018 (di cui Split per euro 263,78) - VERSAMENTO IVA A VS CARICO EX DPR 633/72 ART. 17-TER;678;1;3;2;5;3
LASER S.N.C. DI MARRUGANTI ALESSIO & C.;08/03/2018;Gestione e manutenzione applicazioni;2.161,61;Liquidazione Fattura Nr. 1  del 09/01/2018 (di cui Split per euro 389,80) - COPIE ECCEDENTI CIG: Z8F1CA95B6;680;1;3;2;19;1
C.I.S.  INTELLIGENT SYSTEM S.R.L.;08/03/2018;Servizi di rete per trasmissione dati e VoIP e relativa manutenzione;957,09;Liquidazione Fattura Nr. 16/PA  del 02/02/2018 (di cui Split per euro 172,59) - DETERMINAZIONE N.189 SETTORE 2 DEL 30.12.2017 - IMPEGNO DS02189/1 - 2017;680;1;3;2;19;4
ASSOCIAZIONE CULTURALE IL PONTE;08/03/2018;Altre spese per contratti di servizio pubblico;6.135,96;Liquidazione Fattura Nr. 50  del 29/12/2017 - SERVIZIO CONCESSIONE SERVIZI EDUCATIVI PER L'INFANZIA E SERVIZI EXTRASCOLASTICI VILLA REGHINI MESI DI NOVEMBRE E DICEMBRE 2017;677;1;3;2;15;999
SELMI DI SELMI ANDREA & SELMI FRANCESCO S.N.C.;09/03/2018;Altri beni e materiali di consumo n.a.c.;153,00;Liquidazione Fattura Nr. 5  del 31/12/2017 (di cui Split per euro 27,59) - ACQUISTO DI MINUTERIA ED ARTICOLI DI FERRAMENTA PER LAVORI DI MANUTENZIONE EDIFICI E SCUOLE;687;1;3;1;2;999
VESCOVI RENZO S.P.A.;09/03/2018;Altri beni e materiali di consumo n.a.c.;1.204,73;Liquidazione Fattura Nr. 65/10  del 31/12/2017 (di cui Split per euro 217,25) - FORNITURA STABILIZZATO PER LA MANUTENZIONE DELLE STRADE BIANCHE _ DETERMINA A CONTRARRE E AFFIDAMENTO DITTA VESCOVI RENZO SPA;689;1;3;1;2;999
SELMI DI SELMI ANDREA & SELMI FRANCESCO S.N.C.;09/03/2018;Altri beni e materiali di consumo n.a.c.;341,00;Liquidazione Fattura Nr. 5  del 31/12/2017 (di cui Split per euro 61,49) - ACQUISTO DI MINUTERIA ED ARTICOLI DI FERRAMENTA PER LAVORI DI MANUTENZIONE EDIFICI E SCUOLE;683;1;3;1;2;999
SELMI DI SELMI ANDREA & SELMI FRANCESCO S.N.C.;09/03/2018;Altri beni e materiali di consumo n.a.c.;399,28;Liquidazione Fattura Nr. 5  del 31/12/2017 (di cui Split per euro 72,00) - ACQUISTO DI MINUTERIA ED ARTICOLI DI FERRAMENTA PER LAVORI DI MANUTENZIONE EDIFICI E SCUOLE;691;1;3;1;2;999
ANCILLOTTI  FOLCO;09/03/2018;Musei, teatri e biblioteche;8.177,95;LIQUIDAZIONE FATTURA NR. 2/PA  DEL 08/01/2018 (DI CUI SPLIT PER EURO 1.474,71) - RESTAURO DI PORZIONE DELLA GALLERIA DEL PALAZZO COMUNALE E REALIZZAZIONE DELLA NUOVA BIGLIETTERIA MUSEALE � INCARICO PER PROGETTAZIONE ESECUTIVA � DETERMINA A ;694;2;2;1;9;18
ENERGETIC S.P.A.;09/03/2018;Gas;410,86;Liquidazione Fattura Nr. EX08103/2018  del 08/02/2018 (di cui Split per euro 47,46) - Servizio di fornitura Gas Naturale - VILLA REGHINI;711;1;3;2;5;6
ENERGETIC S.P.A.;09/03/2018;Gas;1.558,43;Liquidazione Fattura Nr. EX08102/2018  del 08/02/2018 (di cui Split per euro 254,40) - Servizio di fornitura Gas Naturale - RSA;712;1;3;2;5;6
ENERGETIC S.P.A.;09/03/2018;Gas;1.947,47;Liquidazione Fattura Nr. EX08101/2018  del 08/02/2018 (di cui Split per euro 324,56) - Servizio di fornitura Gas Naturale - SCUOLA SECONDARIA SOVIGLIANA;707;1;3;2;5;6
LATINI  CLAUDIO;09/03/2018;Musei, teatri e biblioteche;3.939,81;LIQUIDAZIONE FATTURA NR. 000003-2018-PA  DEL 10/01/2018 (DI CUI SPLIT PER EURO 710,46) - VERIFICA PROGETTI SCUOLA SIBILLA ALERAMO E BIGLIETTERIA MUSEALE;694;2;2;1;9;18
ENERGETIC S.P.A.;09/03/2018;Gas;1.397,99;Liquidazione Fattura Nr. EX08107/2018  del 08/02/2018 (di cui Split per euro 225,47) - Servizio di fornitura Gas Naturale - SCUOLA INFANZIA SOVIGLIANA;705;1;3;2;5;6
ENERGETIC S.P.A.;09/03/2018;Gas;670,17;Liquidazione Fattura Nr. EX08104/2018  del 08/02/2018 (di cui Split per euro 94,22) - Servizio di fornitura Gas Naturale-MAGAZZINO COMUNALE;701;1;3;2;5;6
ACQUE S.P.A.;09/03/2018;Acqua;16,81;Liquidazione Fattura Nr. 6018012000001780  del 15/02/2018 (di cui Split per euro 1,53) - FORNITURA ACQUA POTABILE SCUOLA SECONDARIA SOVIGLIANA;686;1;3;2;5;5
ACQUE S.P.A.;09/03/2018;Acqua;372,21;Liquidazione Fattura Nr. 6018012000001780  del 15/02/2018 (di cui Split per euro 33,84) - FORNITURA ACQUA POTABILE SCUOLA SECONDARIA SOVIGLIANA;685;1;3;2;5;5
LATINI  CLAUDIO;09/03/2018;Fabbricati ad uso scolastico;3.419,23;LIQUIDAZIONE FATTURA NR. 000003-2018-PA  DEL 10/01/2018 (DI CUI SPLIT PER EURO 616,58) - VERIFICA PROGETTI SCUOLA SIBILLA ALERAMO E BIGLIETTERIA MUSEALE;693;2;2;1;9;3
LATINI  CLAUDIO;09/03/2018;Altre prestazioni professionali e specialistiche n.a.c.;2.902,18;LIQUIDAZIONE FATTURA NR. 000002-2018-PA  DEL 10/01/2018 (DI CUI SPLIT PER EURO 523,34) - REDAZIONE D.V.R. ANNO 2016;682;1;3;2;11;999
ANCILLOTTI  FOLCO;09/03/2018;Incarichi professionali per la realizzazione di investimenti;8.247,82;LIQUIDAZIONE FATTURA NR. 1/PA  DEL 08/01/2018 (DI CUI SPLIT PER EURO 1.487,31) - RESTAURO DI PORZIONE DELLA GALLERIA DEL PALAZZO COMUNALE E REALIZZAZIONE DELLA BIGLIETTERIA MUSEALE - INCARICO PER PROGETTAZIONE DEFINITIVA - DETERMINAZIONE A ;697;2;2;3;5;1
SELMI DI SELMI ANDREA & SELMI FRANCESCO S.N.C.;09/03/2018;Attrezzature n.a.c.;460,61;Liquidazione Fattura Nr. 6  del 31/12/2017 (di cui Split per euro 83,06) - acquisto attrezzatura per manutenzione aree verde e viabilit� - det.319 del 28/11/2017;695;2;2;1;5;999
COOPERATIVA SOCIALE PEGASO SOCIETA' COOPERATIVA;09/03/2018;Manutenzione ordinaria e riparazioni di beni immobili;1.622,73;Liquidazione Fattura Nr. 187be  del 31/12/2017 (di cui Split per euro 292,62) - taglio erba lungo i cigli delle strade comunali urb ed extraurbane rif det n 175 contratto del 12/07/17 cig ZA51F53660;692;1;3;2;9;8
LATINI  CLAUDIO;09/03/2018;Altre prestazioni professionali e specialistiche n.a.c.;5.709,60;LIQUIDAZIONE FATTURA NR. 000001-2018-PA  DEL 10/01/2018 (DI CUI SPLIT PER EURO 1.029,60) - RSPP ANNO 2017;682;1;3;2;11;999
ITALIANA PETROLI S.P.A.;09/03/2018;Carburanti, combustibili e lubrificanti ;399,49;Liquidazione Fattura Nr. I8059676  del 31/01/2018 (di cui Split per euro 72,04) - FORNITURA CARBURANTI GENNAIO 2018;702;1;3;1;2;2
ITALIANA PETROLI S.P.A.;09/03/2018;Carburanti, combustibili e lubrificanti ;217,99;Liquidazione Fattura Nr. I8059676  del 31/01/2018 (di cui Split per euro 39,31) - FORNITURA CARBURANTI GENNAIO 2018;703;1;3;1;2;2
ITALIANA PETROLI S.P.A.;09/03/2018;Carburanti, combustibili e lubrificanti ;791,35;Liquidazione Fattura Nr. I8059676  del 31/01/2018 (di cui Split per euro 142,70) - FORNITURA CARBURANTI GENNAIO 2018;704;1;3;1;2;2
CINELLI TACITO;09/03/2018;Locazione di beni immobili;1.677,47;CANONE LOCAZIONE LOCALI VIA FUCINI ANGOLO VIA ROSSI - 1� TRIM. 2018;700;1;3;2;7;1
SELMI DI SELMI ANDREA & SELMI FRANCESCO S.N.C.;09/03/2018;Attrezzature n.a.c.;460,61;Liquidazione Fattura Nr. 6  del 31/12/2017 (di cui Split per euro 83,06) - acquisto attrezzatura per manutenzione aree verde e viabilit� - det.319 del 28/11/2017;696;2;2;1;5;999
CINELLI TACITO;09/03/2018;Locazione di beni immobili;2.500,00;CANONE LOCAZIONE LOCALI VIA FUCINI ANGOLO VIA ROSSI - 1� TRIM. 2018;699;1;3;2;7;1
ACQUE S.P.A.;09/03/2018;Acqua;25,20;Liquidazione Fattura Nr. 6018012000001706  del 15/02/2018 (di cui Split per euro 2,29) - FORNITURA ACQUA POTABILE FONTANELLO VIA N.SAURO;688;1;3;2;5;5
ACQUE S.P.A.;09/03/2018;Acqua;424,46;Liquidazione Fattura Nr. 6018012000001649  del 14/02/2018 (di cui Split per euro 38,59) - FORNITURA ACQUA POTABILE SCUOLA PRIMARIA SPICCHIO;684;1;3;2;5;5
ENERGETIC S.P.A.;09/03/2018;Gas;419,66;Liquidazione Fattura Nr. EX08108/2018  del 08/02/2018 (di cui Split per euro 49,05) - Servizio di fornitura Gas Naturale-SCUOLA INFANZIA SPICCHIO;705;1;3;2;5;6
EDISON ENERGIA S.P.A.;09/03/2018;Energia elettrica;24.592,24;Liquidazione Fattura Nr. 5750533252  del 14/02/2018 (di cui Split per euro 4.434,67) - FORNITURA ENERGIA ELETTRICA PER P.I. GENNAIO 2018;709;1;3;2;5;4
R�UNION DES MUS�ES NATIONAUX. AGENCE PHOTOGRAPHIQUE;09/03/2018;Altri beni e materiali di consumo n.a.c.;585,60;LIQUIDAZIONE FATTURA NR. DP00021314 DEL 05/03/2018 - ACQUISTO IMMAGINI LEONARDIANE;698;1;3;1;2;999
GIUNTI  MICHELE ANGELO DOTTORE FORESTALE;09/03/2018;Spese per commissioni e comitati dell'Ente;134,25;LIQUIDAZIONE FATTURA NR. 3/FE  DEL 02/02/2018 (DI CUI SPLIT PER EURO 24,21) - PARTECIPAZIONE A SEDUTE COMMISSIONE PAESAGGIO DEL COMUNE DI VINCI - CIG Z3F20B381C;690;1;3;2;99;5
ENERGETIC S.P.A.;09/03/2018;Gas;824,58;Liquidazione Fattura Nr. EX08105/2018  del 08/02/2018 (di cui Split per euro 122,07) - Servizio di fornitura Gas Naturale - NIDO D'INFANZIA;710;1;3;2;5;6
ENERGETIC S.P.A.;09/03/2018;Gas;682,90;Liquidazione Fattura Nr. EX08106/2018  del 08/02/2018 (di cui Split per euro 96,52) - Servizio di fornitura Gas Naturale - UFFICI SOVIGLIANA;701;1;3;2;5;6
ECOMEDICA S.P.A.;09/03/2018;Altre prestazioni professionali e specialistiche n.a.c.;30,82;Liquidazione Fattura Nr. 00125  del 30/11/2017 - PRESTAZIONI DIAGNOSTICHE - DETERMINA A CONTRARRE - AFFIDAMENTO ECOMEDICA SRL;682;1;3;2;11;999
LATINI  CLAUDIO;09/03/2018;Altre prestazioni professionali e specialistiche n.a.c.;8.407,78;LIQUIDAZIONE FATTURA NR. 000004-2018-PA  DEL 10/01/2018 (DI CUI SPLIT PER EURO 1.516,16) - D.V.R. ANNO 2017;682;1;3;2;11;999
ENERGETIC S.P.A.;09/03/2018;Gas;569,51;Liquidazione Fattura Nr. EX08113/2018  del 08/02/2018 (di cui Split per euro 76,07) - Servizio di fornitura Gas Naturale - SCUOLA INFANZIA VINCI;705;1;3;2;5;6
BONANSEGNA  GIOVANNI;09/03/2018;Fabbricati ad uso scolastico;2.283,84;"LIQUIDAZIONE FATTURA NR. FATTPA 1_18  DEL 08/01/2018 (DI CUI SPLIT PER EURO 411,84) - RIQUALIFICAZIONE CORPI ""B"" E ""C"" E COMPLETAMENTO OPERE PREVENZIONE INCENDI SCUOLA PRIMARIA SIBILLA ALERAMO DI SPICCHIO - INCARICO PER PRESTAZIONI PROFESSI";693;2;2;1;9;3
ENERGETIC S.P.A.;09/03/2018;Gas;739,62;Liquidazione Fattura Nr. EX08112/2018  del 08/02/2018 (di cui Split per euro 146,48) - Servizio di fornitura Gas Naturale-PLESSO SCOLASTICO VINCI;707;1;3;2;5;6
ENERGETIC S.P.A.;09/03/2018;Gas;739,62;Liquidazione Fattura Nr. EX08112/2018  del 08/02/2018 (di cui Split per euro 146,47) - Servizio di fornitura Gas Naturale-PLESSO SCOLASTICO VINCI;706;1;3;2;5;6
ENERGETIC S.P.A.;09/03/2018;Gas;2.406,88;Liquidazione Fattura Nr. EX08111/2018  del 08/02/2018 (di cui Split per euro 407,40) - Servizio di fornitura Gas Naturale - SCUOLA PRIMARIA SPICCHIO;706;1;3;2;5;6
ENERGETIC S.P.A.;09/03/2018;Gas;483,28;Liquidazione Fattura Nr. EX08110/2018  del 08/02/2018 (di cui Split per euro 76,50) - Servizio di fornitura Gas Naturale - PALASPORT;708;1;3;2;5;6
ENERGETIC S.P.A.;09/03/2018;Gas;724,93;Liquidazione Fattura Nr. EX08110/2018  del 08/02/2018 (di cui Split per euro 114,75) - Servizio di fornitura Gas Naturale - PALASPORT;708;1;3;2;5;6
ENERGETIC S.P.A.;09/03/2018;Gas;893,03;Liquidazione Fattura Nr. EX08109/2018  del 08/02/2018 (di cui Split per euro 134,41) - Servizio di fornitura Gas Naturale-SEDI ISTITUZIONALI;701;1;3;2;5;6
LATINI  CLAUDIO;09/03/2018;Altre prestazioni professionali e specialistiche n.a.c.;6.052,63;LIQUIDAZIONE FATTURA NR. 000002-2018-PA  DEL 10/01/2018 (DI CUI SPLIT PER EURO 1.091,46) - REDAZIONE D.V.R. ANNO 2016;681;1;3;2;11;999
ERARIO DELLO STATO PER PAGAMENTO I.V.A.;12/03/2018;Versamenti IVA a debito per le gestioni commerciali;11.078,78;PAGAMENTO IVA SU SERVIZI COMMERCIALI ESERCIZIO 2018 MESE DI FEBBRAIO;713;1;10;3;1;1
SANMINIATESE STRADE S.R.L.;13/03/2018;Manutenzione ordinaria e riparazioni di beni immobili;2.776,72;Liquidazione Fattura Nr. 02  del 16/01/2018 (di cui Split per euro 500,72) - Determinazione n. 343 del 12/12/2017 - capitolo di spesa 4053/0 6210/0 3765/0 Anno 2017 - impegno n. DS03343/1-2-3  - CIG Z25214322F;729;1;3;2;9;8
SANMINIATESE STRADE S.R.L.;13/03/2018;Manutenzione ordinaria e riparazioni di beni immobili;1.464,00;Liquidazione Fattura Nr. 02  del 16/01/2018 (di cui Split per euro 264,00) - Determinazione n. 343 del 12/12/2017 - capitolo di spesa 4053/0 6210/0 3765/0 Anno 2017 - impegno n. DS03343/1-2-3  - CIG Z25214322F;735;1;3;2;9;8
SANMINIATESE STRADE S.R.L.;13/03/2018;Manutenzione ordinaria e riparazioni di beni immobili;1.830,00;Liquidazione Fattura Nr. 02  del 16/01/2018 (di cui Split per euro 330,00) - Determinazione n. 343 del 12/12/2017 - capitolo di spesa 4053/0 6210/0 3765/0 Anno 2017 - impegno n. DS03343/1-2-3  - CIG Z25214322F;731;1;3;2;9;8
MAGGIOLI S.P.A.;13/03/2018;Carta, cancelleria e stampati;78,00;PAGAMENTO BUONO ECONOMALE NR. 200006 - ACQUISTO URGENTE DI UNA PUBBLICAZIONE SUGLI ACQUISTI SOTTOSOGLIA-ACQUISTO VOLUME SPECIFICO SULLE PROCEDURE SOTTOSOGLIA;718;1;3;1;2;1
COMPUTER SHOP DI COMPARINI PAOLO & C.S.N.C.;13/03/2018;Attrezzature n.a.c.;3.498,94;Liquidazione Fattura Nr. 70045  del 23/01/2018 (di cui Split per euro 630,96) - DETERMINAZIONE A CONTRARRE E AFFIDAMENTO DELLA FORNITURA DI N. 4 COMPUTER + 4 SCHERMI PER MUSEO LEONARDIANO, CASA NATALE DI LEONARDO AD ANCHIANO E BIBLIOTECA LE;750;2;2;1;5;999
GIANI MILA SNC;13/03/2018;Carta, cancelleria e stampati;175,20;PAGAMENTO BUONO ECONOMALE NR. 200004 - ACQUISTO URGENTE DI CARTA PER GLI UFFICI-ACQUISTO RISME CARTA MANCANTE AGLI UFFICI;719;1;3;1;2;1
CALOS ITALIA DI CASTELLI ANTONIO;13/03/2018;Carta, cancelleria e stampati;78,80;PAGAMENTO BUONO ECONOMALE NR. 200005 - ACQUISTI URGENTI DI MATERIALE VARIO PER GLI UFFICI-ACQUISTO  CARTELLE SOSPESE E DISPENSER PER NASTRO DA IMBALLO PACCHI;719;1;3;1;2;1
NESTI FABIO;13/03/2018;Beni per consultazioni elettorali;15,00;PAGAMENTO BUONO ECONOMALE NR. 200003 - ACQUISTO URGENTE COLLA PER AFFISSIONE MANIFESTI ELETTORALI-ACQUISTO 2 CONFEZIONI DI COLLA PER AFFISSIONE MANIFESTI NEGLI APPOSITI SPAZI ELETTORALI;717;1;3;1;2;10
ARCA - COOPERATIVA SOCIALE A R.L.;13/03/2018;Contratti di servizio di asilo nido;34.914,74;"Liquidazione Fattura Nr. E-84  del 15/01/2018 (di cui Split per euro 1.662,61) - AFFIDAMENTO GESTIONE DEL NIDO D'INFANZIA ""PICCINO PICCIO'"" VIA DELLA LIBERTA' 58 - VITOLINI- VINCI - PERIODO 01/09/2017-31/07/2020 - CIG: 6927708D7B. AGGIUDICA";742;1;3;2;15;10
LINEA RINNOVA SNC;13/03/2018;Fabbricati ad uso scolastico;4.721,58;Liquidazione Fattura Nr. 000001-2018-1  del 12/01/2018 (di cui Split per euro 851,43) - LAVORI DI MESSA IN SICUREZZA SOLAI TRAMITE PRESIDI ANTISFONDELLAMENTO PRESSO IL PLESSO SCOLASTICO DI PIAZZA GARIBALDI IN VINCI CAPOLUOGO - BLOCCO A E BL;736;2;2;1;9;3
LINEA RINNOVA SNC;13/03/2018;Fabbricati ad uso scolastico;3.696,42;Liquidazione Fattura Nr. 000001-2018-1  del 12/01/2018 (di cui Split per euro 666,57) - LAVORI DI MESSA IN SICUREZZA SOLAI TRAMITE PRESIDI ANTISFONDELLAMENTO PRESSO IL PLESSO SCOLASTICO DI PIAZZA GARIBALDI IN VINCI CAPOLUOGO - BLOCCO A E BL;736;2;2;1;9;3
COOPERATIVA SOCIALE ZOE S.C.A.R.L.;13/03/2018;Servizi di pulizia e lavanderia;1.132,11;Liquidazione Fattura Nr. FATTPA 373_17  del 30/11/2017 (di cui Split per euro 204,15) - PULIZIA LOCALI COMUNALI (GENERALE) MESE DI NOVEMBRE 2017;738;1;3;2;13;2
COOPERATIVA SOCIALE ZOE S.C.A.R.L.;13/03/2018;Servizi di pulizia e lavanderia;116,46;Liquidazione Fattura Nr. FATTPA 371_17  del 30/11/2017 (di cui Split per euro 21,00) - PULIZIE - VARIANTE NOVEMBRE 2017;738;1;3;2;13;2
COOPERATIVA SOCIALE ZOE S.C.A.R.L.;13/03/2018;Servizi di pulizia e lavanderia;178,75;Liquidazione Fattura Nr. FATTPA 370_17  del 30/11/2017 (di cui Split per euro 32,23) - PULIZIA BIBLIOTECHE NOVEMBRE 2017;739;1;3;2;13;2
COOPERATIVA SOCIALE ZOE S.C.A.R.L.;13/03/2018;Servizi di pulizia e lavanderia;230,82;Liquidazione Fattura Nr. FATTPA 369_17  del 30/11/2017 (di cui Split per euro 41,62) - PULIZIE  NUOVO UFFICIO TURISTICO NOVEMBRE 2017;740;1;3;2;13;2
CO&SO EMPOLI - CONS. DI COOP. SOCIALI - SOCIETA' COOPERATIVA;13/03/2018;Altre spese per contratti di servizio pubblico;5.466,80;"Liquidazione Fattura Nr. 001260-2C0 del 31/12/2017 - Fattura dicembre per servizi front-office e didattica presso Biblioteca Leonardiana e sedi distaccate
";747;1;3;2;15;999
CO&SO EMPOLI - CONS. DI COOP. SOCIALI - SOCIETA' COOPERATIVA;13/03/2018;Altre spese per contratti di servizio pubblico;14.586,08;Liquidazione Fattura Nr. 001263-2C0  del 31/12/2017 (di cui Split per euro 694,58) - SERVIZIO SOSTEGNO HANDICAP NELL'AMBITO SCOLASTICO MESE DI DICEMBRE 2017;743;1;3;2;15;999
CO&SO EMPOLI - CONS. DI COOP. SOCIALI - SOCIETA' COOPERATIVA;13/03/2018;Altre spese per contratti di servizio pubblico;3.453,63;Liquidazione Fattura Nr. 001264-2C0  del 31/12/2017 - SERVIZI EDUCATIVI EXTRASCOLASTICI PRESSO VILLA REGHINI MESE DI DICEMBRE 2017;744;1;3;2;15;999
TAMBURINI  GIONNI;13/03/2018;Altre prestazioni professionali e specialistiche n.a.c.;516,00;"LIQUIDAZIONE FATTURA NR. FATTPA 1_18  DEL 26/01/2018 - AFFIDAMENTO DEL SERVIZIO PER LO SVOLGIMENTO DELLE ATTIVITA' DI ""MEDICO COMPETENTE"" AI SENSI DEL D.LGS. 81/2008 - ANNI 2015-2016.2017.";721;1;3;2;11;999
L'ELETTRICA S.P.A.;13/03/2018;Attrezzature n.a.c.;914,12;"Liquidazione Fattura Nr. 0000012PA del 31/01/2018 - *D.D.T. n.      344/B21 Del 10.01.18 ** Riferim.N.DETERMINAA 169       Del 21.12.17 --------------------------------------------- Operazione soggetta alla ""Scissione Pagamenti"" Art.17-ter,";750;2;2;1;5;999
ARCA - COOPERATIVA SOCIALE A R.L.;13/03/2018;Contratti di servizio di asilo nido;4.951,37;"Liquidazione Fattura Nr. E-85  del 15/01/2018 (di cui Split per euro 235,78) - AFFIDAMENTO GESTIONE DEL NIDO D'INFANZIA ""PICCINO PICCIO'"" VIA DELLA LIBERTA' 58 - VITOLINI- VINCI - PERIODO 01/09/2017-31/07/2020 - CIG: 6927708D7B. AGGIUDICAZI";742;1;3;2;15;10
SOCIETA' IMPIANTI TECNOLOGICI SNC DI RUGGIERO C. & C.;13/03/2018;Manutenzione ordinaria e riparazioni di impianti e macchinari;576,39;Liquidazione Fattura Nr. 000003-2018-PA  del 23/01/2018 (di cui Split per euro 103,94) - MANUTENZIONE IMPIANTI IDRAULICI E IDROSANITARI -sedi istituzionali, scuole infanzia, scuole primarie, scuole secondarie primo grado, Uff. turistico, Vi;734;1;3;2;9;4
SOCIETA' IMPIANTI TECNOLOGICI SNC DI RUGGIERO C. & C.;13/03/2018;Manutenzione ordinaria e riparazioni di impianti e macchinari;1.740,00;Liquidazione Fattura Nr. 000004-2018-PA  del 23/01/2018 (di cui Split per euro 313,77) - MANUTENZIONE IMPIANTI IDRAULICI E IDROSANITARI Museo, Palazzina, Casa Natale Leonardo, Asilo nido, 60% Palasport;728;1;3;2;9;4
PACI SRL;13/03/2018;Mobili e arredi n.a.c.;519,35;Liquidazione Fattura Nr. 00007/2018  del 31/01/2018 (di cui Split per euro 93,65) - COD. IMPEGNO DS01227/1 DEL 21/12/2017 - DETERMINA 227 DEL 21/12/2017 - ESERCIZIO 2017  CAP. 10761 2017 ART. 0 - ACQUISTO ARREDI SCOLASTICI ;745;2;2;1;3;999
SOCIETA' IMPIANTI TECNOLOGICI SNC DI RUGGIERO C. & C.;13/03/2018;Manutenzione ordinaria e riparazioni di impianti e macchinari;1.250,00;Liquidazione Fattura Nr. 000004-2018-PA  del 23/01/2018 (di cui Split per euro 225,41) - MANUTENZIONE IMPIANTI IDRAULICI E IDROSANITARI Museo, Palazzina, Casa Natale Leonardo, Asilo nido, 60% Palasport;727;1;3;2;9;4
CRISTOFORO SOC.COOP. SOCIALE ONLUS;13/03/2018;Altri servizi diversi n.a.c.;6.051,57;Liquidazione Fattura Nr. 53. 20006/ 2018  del 18/01/2018 (di cui Split per euro 550,14) - SERVIZIO ACCOMPAGNAMENTO SCUOLABUS MESE DI DICEMBRE 2017;741;1;3;2;99;999
SOCIETA' IMPIANTI TECNOLOGICI SNC DI RUGGIERO C. & C.;13/03/2018;Manutenzione ordinaria e riparazioni di impianti e macchinari;500,00;Liquidazione Fattura Nr. 000003-2018-PA  del 23/01/2018 (di cui Split per euro 90,16) - MANUTENZIONE IMPIANTI IDRAULICI E IDROSANITARI -sedi istituzionali, scuole infanzia, scuole primarie, scuole secondarie primo grado, Uff. turistico, Vil;733;1;3;2;9;4
BARTALUCCI SAS DI BARTALUCCI ELENA E BARTALUCCI MONICA;13/03/2018;Altri servizi ausiliari n.a.c.;96,47;Liquidazione Fattura Nr. 598/P  del 30/12/2017 (di cui Split per euro 17,40) - DETERMINA A CONTRARRE E AFFIDAMENTO DIRETTO DEL SERVIZIO DI TRASCRIZIONE SEDUTE DEL CONSIGLIO COMUNALE -  TRASCRIZIONE C/C DEL 12/06/2017 - TOTALE MINUTI 191;737;1;3;2;13;999
SPEMA S.N.C. - ALLESTIMENTI SU VEICOLI INDUSTRIALI;13/03/2018;Manutenzione ordinaria e riparazioni di mezzi di trasporto ad uso civile, di sicurezza e ordine pubblico;84,79;Liquidazione Fattura Nr. 5/PA  del 29/12/2017 (di cui Split per euro 15,29) - ASSISTENZA PER LA VERIFICA PERIODICA DI GRU E PIATTAFORMA MONTATI SU AUTOCARRI IN DOTAZIONE AL COMUNE _ DETERMINA A CONTRARRE E AFFIDAMENTO DITTA SPEMA SNC;722;1;3;2;9;1
ETRURIA P.A. SRL;13/03/2018;Altri beni e materiali di consumo n.a.c.;333,06;Liquidazione Fattura Nr. 112/00000 del 26/01/2018 - Fornitura generica;746;1;3;1;2;999
SOCIETA' IMPIANTI TECNOLOGICI SNC DI RUGGIERO C. & C.;13/03/2018;Manutenzione ordinaria e riparazioni di impianti e macchinari;800,00;Liquidazione Fattura Nr. 000004-2018-PA  del 23/01/2018 (di cui Split per euro 144,26) - MANUTENZIONE IMPIANTI IDRAULICI E IDROSANITARI Museo, Palazzina, Casa Natale Leonardo, Asilo nido, 60% Palasport;732;1;3;2;9;4
SPEMA S.N.C. - ALLESTIMENTI SU VEICOLI INDUSTRIALI;13/03/2018;Manutenzione ordinaria e riparazioni di mezzi di trasporto ad uso civile, di sicurezza e ordine pubblico;478,61;Liquidazione Fattura Nr. 5/PA  del 29/12/2017 (di cui Split per euro 86,31) - ASSISTENZA PER LA VERIFICA PERIODICA DI GRU E PIATTAFORMA MONTATI SU AUTOCARRI IN DOTAZIONE AL COMUNE _ DETERMINA A CONTRARRE E AFFIDAMENTO DITTA SPEMA SNC;723;1;3;2;9;1
SOCIETA' IMPIANTI TECNOLOGICI SNC DI RUGGIERO C. & C.;13/03/2018;Manutenzione ordinaria e riparazioni di impianti e macchinari;2.400,00;Liquidazione Fattura Nr. 000003-2018-PA  del 23/01/2018 (di cui Split per euro 432,79) - MANUTENZIONE IMPIANTI IDRAULICI E IDROSANITARI -sedi istituzionali, scuole infanzia, scuole primarie, scuole secondarie primo grado, Uff. turistico, Vi;724;1;3;2;9;4
SOCIETA' IMPIANTI TECNOLOGICI SNC DI RUGGIERO C. & C.;13/03/2018;Manutenzione ordinaria e riparazioni di impianti e macchinari;2.200,00;Liquidazione Fattura Nr. 000003-2018-PA  del 23/01/2018 (di cui Split per euro 396,72) - MANUTENZIONE IMPIANTI IDRAULICI E IDROSANITARI -sedi istituzionali, scuole infanzia, scuole primarie, scuole secondarie primo grado, Uff. turistico, Vi;725;1;3;2;9;4
PROMOCULTURA SOCIETA' COOPERATIVA A.R.L..;13/03/2018;Altri servizi diversi n.a.c.;1.019,00;Liquidazione Fattura Nr. 165-E-2017 del 31/12/2017 - REALIZZAZIONE PROGETTO TI PRESENTO L'AUTORE EDIZIONE 2017. Det. 133/2017 imp. DS05133/1  CIG Z27206CE06;748;1;3;2;99;999
CRISTOFORO SOC.COOP. SOCIALE ONLUS;13/03/2018;Altri servizi diversi n.a.c.;735,41;Liquidazione Fattura Nr. 54. 20006/ 2018  del 18/01/2018 (di cui Split per euro 66,86) - SERVIZIO PRESCUOLA MESE DI DICEMBRE 2017;741;1;3;2;99;999
NANNA FIREWORKS SRL;13/03/2018;Organizzazione e partecipazione a manifestazioni e convegni;2.987,78;Liquidazione Fattura Nr. 01/01/2018  del 19/02/2018 (di cui Split per euro 538,78) - SPETTACOLO PIROTECNICO PER LA CHIUSURA DEL CARNEVALE DI SPICCHIO-SOVIGLIANA 2018 - DETERMINA A CONTRARRE E AFFIDAMENTO DIRETTO - DITTA NANNA FIREWORKS SRL;749;1;3;2;2;5
SOCIETA' IMPIANTI TECNOLOGICI SNC DI RUGGIERO C. & C.;13/03/2018;Manutenzione ordinaria e riparazioni di impianti e macchinari;1.160,00;Liquidazione Fattura Nr. 000003-2018-PA  del 23/01/2018 (di cui Split per euro 209,19) - MANUTENZIONE IMPIANTI IDRAULICI E IDROSANITARI -sedi istituzionali, scuole infanzia, scuole primarie, scuole secondarie primo grado, Uff. turistico, Vi;728;1;3;2;9;4
SOCIETA' IMPIANTI TECNOLOGICI SNC DI RUGGIERO C. & C.;13/03/2018;Manutenzione ordinaria e riparazioni di impianti e macchinari;1.900,00;Liquidazione Fattura Nr. 000003-2018-PA  del 23/01/2018 (di cui Split per euro 342,62) - MANUTENZIONE IMPIANTI IDRAULICI E IDROSANITARI -sedi istituzionali, scuole infanzia, scuole primarie, scuole secondarie primo grado, Uff. turistico, Vi;720;1;3;2;9;4
SOCIETA' IMPIANTI TECNOLOGICI SNC DI RUGGIERO C. & C.;13/03/2018;Manutenzione ordinaria e riparazioni di impianti e macchinari;800,00;Liquidazione Fattura Nr. 000003-2018-PA  del 23/01/2018 (di cui Split per euro 144,26) - MANUTENZIONE IMPIANTI IDRAULICI E IDROSANITARI -sedi istituzionali, scuole infanzia, scuole primarie, scuole secondarie primo grado, Uff. turistico, Vi;730;1;3;2;9;4
SOCIETA' IMPIANTI TECNOLOGICI SNC DI RUGGIERO C. & C.;13/03/2018;Manutenzione ordinaria e riparazioni di impianti e macchinari;2.323,68;Liquidazione Fattura Nr. 000003-2018-PA  del 23/01/2018 (di cui Split per euro 419,02) - MANUTENZIONE IMPIANTI IDRAULICI E IDROSANITARI -sedi istituzionali, scuole infanzia, scuole primarie, scuole secondarie primo grado, Uff. turistico, Vi;726;1;3;2;9;4
CALOS ITALIA DI CASTELLI ANTONIO;14/03/2018;Carta, cancelleria e stampati;9,13;IVA LIQUIDAZIONE FATTURA NR. 6/PA  DEL 02/02/2018 (DI CUI SPLIT PER EURO 9,13) - RIF. VS ORDINE ECONOMALE DEL 02/02/2018;751;1;3;1;2;1
MATERIALI EDILI BALDACCI DI BALDACCI RENATO E C. SNC;14/03/2018;Altri beni e materiali di consumo n.a.c.;24,52;IVA LIQUIDAZIONE FATTURA NR. 141  DEL 14/02/2018 (DI CUI SPLIT PER EURO 24,52) - ACQUISTO N 2 SCALEI PER INTERVENTI SU VIABILITA' E PUBBLICA ILLUMINAZIONE;754;1;3;1;2;999
ETRURIA P.A. SRL;14/03/2018;Assistenza all'utente e formazione;550,00;Liquidazione Fattura Nr. 98/00000  del 24/01/2018 - ACQUISTO GIORNATE DI FORMAZIONE PER UFFICIO TRIBUTI E CONTABILIT� - MEPA;752;1;3;2;19;2
EDISON ENERGIA S.P.A.;15/03/2018;Energia elettrica;34,03;Liquidazione Fattura Nr. 5750527122  del 14/02/2018 (di cui Split per euro 6,14) - IT001E04919543 - FORNITURA ENERGIA ELETTRICA MESE DI GENNAIO 2018 MERCATO SETTIMANALE E IMPIANTO IRRIGAZIONE;770;1;3;2;5;4
EDISON ENERGIA S.P.A.;15/03/2018;Energia elettrica;239,50;Liquidazione Fattura Nr. 5750529662  del 14/02/2018 (di cui Split per euro 43,19) - IT001E04919540 - FORNITURA ENERGIA ELETTRICA MESE DI GENNAIO 2018 VILLA REGHINI;774;1;3;2;5;4
EDISON ENERGIA S.P.A.;15/03/2018;Energia elettrica;26,29;Liquidazione Fattura Nr. 5750526919  del 14/02/2018 (di cui Split per euro 2,39) - IT001E41741369 - FORNITURA ENERGIA ELETTRICA MESE DI GENNAIO 2018 ALLOGGI PETROIO;761;1;3;2;5;4
EDISON ENERGIA S.P.A.;15/03/2018;Energia elettrica;58,30;Liquidazione Fattura Nr. 5750527982  del 14/02/2018 (di cui Split per euro 10,51) - IT001E04919530 - FORNITURA ENERGIA ELETTRICA MESE DI GENNAIO 2018 EX SCUOLA ANCHIANO;761;1;3;2;5;4
EDISON ENERGIA S.P.A.;15/03/2018;Energia elettrica;48,96;Liquidazione Fattura Nr. 5750527803  del 14/02/2018 (di cui Split per euro 8,83) - IT001E41398842 - FORNITURA ENERGIA ELETTRICA MESE DI GENNAIO 2018 FONTANELLO PARCO MILLE;772;1;3;2;5;4
EDISON ENERGIA S.P.A.;15/03/2018;Energia elettrica;64,38;Liquidazione Fattura Nr. 5750528082  del 14/02/2018 (di cui Split per euro 11,61) - IT001E04919527 - FORNITURA ENERGIA ELETTRICA MESE DI GENNAIO 2018  ARCHIVIO COMUNALE;762;1;3;2;5;4
EDISON ENERGIA S.P.A.;15/03/2018;Energia elettrica;60,04;Liquidazione Fattura Nr. 5750528009  del 14/02/2018 (di cui Split per euro 10,83) - IT001E43263124 - FORNITURA ENERGIA ELETTRICA MESE DI GENNAIO 2018 FONTANELLO VITOLINI;772;1;3;2;5;4
EDISON ENERGIA S.P.A.;15/03/2018;Energia elettrica;236,59;Liquidazione Fattura Nr. 5750529647  del 14/02/2018 (di cui Split per euro 42,66) - IT001E04919515 - FORNITURA ENERGIA ELETTRICA MESE DI GENNAIO 2018 SCUOLA INFANZIA SPICCHIO;763;1;3;2;5;4
EDISON ENERGIA S.P.A.;15/03/2018;Energia elettrica;118,84;Liquidazione Fattura Nr. 5750528861  del 14/02/2018 (di cui Split per euro 21,43) - IT001E04919517 - FORNITURA ENERGIA ELETTRICA MESE DI GENNAIO 2018 CASSA ESPANSIONE PICCARATICO;770;1;3;2;5;4
EDISON ENERGIA S.P.A.;15/03/2018;Energia elettrica;72,87;Liquidazione Fattura Nr. 5750528302  del 14/02/2018 (di cui Split per euro 13,14) - IT001E04919532 - FORNITURA ENERGIA ELETTRICA MESE DI GENNAIO 2018 UFF. COMUNALI VIA TORRE, 9;761;1;3;2;5;4
COMUNE DI VINCI- CONTI CORRENTI POSTALI VARI;15/03/2018;Spese per servizi finanziari n.a.c.;181,34;REINTEGRO RITENUTA ERRONEAMENTE ADDEBITATA SU CONTO CORRENTE ONERI CONCESSORI ;757;1;3;2;17;999
ESKIMO COOP. SOCIALE ONLUS;15/03/2018;Altre spese per contratti di servizio pubblico;9.848,12;Liquidazione Fattura Nr. FATTPA 139_17  del 30/12/2017 - servizio di concessione servizi educativi per l'infanzia e servizi extra scolastici Villa Reghini mese di Dicembre 2017;760;1;3;2;15;999
EDISON ENERGIA S.P.A.;15/03/2018;Energia elettrica;339,79;Liquidazione Fattura Nr. 5750530001  del 14/02/2018 (di cui Split per euro 61,27) - IT001E04919519 - FORNITURA ENERGIA ELETTRICA MESE DI GENNAIO 2018 UFF. COMUNALI VIA FUCINI;762;1;3;2;5;4
ANTICIMEX SRL;15/03/2018;Altri acquisti di servizi sanitari n.a.c.;146,97;Liquidazione Fattura Nr. 118/PA  del 31/01/2018 - Fattura da imp. PA Split Payment - derattizzazione gennaio 2018;759;1;3;2;18;999
ALIA SERVIZI AMBIENTALI S.P.A.;15/03/2018;Contratti di servizio per la raccolta rifiuti;178.793,23;Liquidazione Fattura Nr. 0000132095  del 28/02/2018 (di cui Split per euro 16.253,93) - servizi di igiene ambientale corrispettivo mese di febbraio 2018;758;1;3;2;15;4
ANTICIMEX SRL;15/03/2018;Altri acquisti di servizi sanitari n.a.c.;32,33;IVA LIQUIDAZIONE FATTURA NR. 118/PA  DEL 31/01/2018 - FATTURA DA IMP. PA SPLIT PAYMENT - DERATTIZZAZIONE GENNAIO 2018;759;1;3;2;18;999
BANCA CAMBIANO 1884;15/03/2018;Spese per servizi finanziari n.a.c.;3,00;SPESE  POSTALI SOSTENUTE ANNO 2017  DA RESTITUIRE AL TESORIERE. PER I MANDATI N.999 E 1898/2007;756;1;3;2;17;999
EDISON ENERGIA S.P.A.;15/03/2018;Energia elettrica;21,98;Liquidazione Fattura Nr. 5750526344  del 14/02/2018 (di cui Split per euro 3,96) - IT001E40889318 - FORNITURA ENERGIA ELETTRICA MESE DI GENNAIO 2018 CASA COMPARINI;761;1;3;2;5;4
BANCA CAMBIANO 1884;15/03/2018;Spese per servizi finanziari n.a.c.;4,50;RIMBORSO AL TESORIERE SPESE ANTICIPATE SU PAGAMENTI TRAMITE BOLLETTINO POSTALE. ANNO 2016 MANDATI N.1123-1480-3383/2016;755;1;3;2;17;999
EDISON ENERGIA S.P.A.;15/03/2018;Energia elettrica;13,91;Liquidazione Fattura Nr. 5750525449  del 14/02/2018 (di cui Split per euro 2,51) - IT001E04919526 - FORNITURA ENERGIA ELETTRICA MESE DI GENNAIO 2018 BAGNI PUBBLICI;771;1;3;2;5;4
EDISON ENERGIA S.P.A.;15/03/2018;Energia elettrica;21,98;Liquidazione Fattura Nr. 5750526240  del 14/02/2018 (di cui Split per euro 3,96) - IT001E04919533 - FORNITURA ENERGIA ELETTRICA MESE DI GENNAIO 2018 UFF. DISMESSO VIA TORRE, 3;761;1;3;2;5;4
EDISON ENERGIA S.P.A.;15/03/2018;Energia elettrica;21,98;Liquidazione Fattura Nr. 5750526273  del 14/02/2018 (di cui Split per euro 3,96) - IT001E04919522 - FORNITURA ENERGIA ELETTRICA MESE DI GENNAIO 2018 LOCALI EX MACELLI;761;1;3;2;5;4
EDISON ENERGIA S.P.A.;15/03/2018;Energia elettrica;21,98;Liquidazione Fattura Nr. 5750526328  del 14/02/2018 (di cui Split per euro 3,96) - IT001E04919518 - FORNITURA ENERGIA ELETTRICA MESE DI GENNAIO 2018 PILOMAT;770;1;3;2;5;4
EDISON ENERGIA S.P.A.;15/03/2018;Energia elettrica;322,31;Liquidazione Fattura Nr. 5750529950  del 14/02/2018 (di cui Split per euro 58,12) - IT001E04919524 - FORNITURA ENERGIA ELETTRICA MESE DI GENNAIO 2018 MAGAZZINO COMUNALE ;761;1;3;2;5;4
EDISON ENERGIA S.P.A.;15/03/2018;Energia elettrica;312,34;Liquidazione Fattura Nr. 5750529917  del 14/02/2018 (di cui Split per euro 56,32) - IT001E04919525 - FORNITURA ENERGIA ELETTRICA MESE DI GENNAIO 2018 UFF. TURISTICO NUOVO;771;1;3;2;5;4
EDISON ENERGIA S.P.A.;15/03/2018;Energia elettrica;387,90;Liquidazione Fattura Nr. 5750530121  del 14/02/2018 (di cui Split per euro 69,95) - IT001E04919536 - FORNITURA ENERGIA ELETTRICA MESE DI GENNAIO 2018 UFF. COMUNALI VIA BATTISTI;761;1;3;2;5;4
EDISON ENERGIA S.P.A.;15/03/2018;Energia elettrica;1.083,16;Liquidazione Fattura Nr. 5750531470  del 14/02/2018 (di cui Split per euro 195,32) - IT001E04919516 - FORNITURA ENERGIA ELETTRICA MESE DI GENNAIO 2018 SCUOLA PRIMARIA SPICCHIO;764;1;3;2;5;4
EDISON ENERGIA S.P.A.;15/03/2018;Energia elettrica;1.309,23;Liquidazione Fattura Nr. 5750531765  del 14/02/2018 (di cui Split per euro 236,09) - IT001E04919523 - FORNITURA ENERGIA ELETTRICA MESE DI GENNAIO 2018 EDIFICIO COMUNALE;761;1;3;2;5;4
EDISON ENERGIA S.P.A.;15/03/2018;Energia elettrica;1.421,69;Liquidazione Fattura Nr. 5750531889  del 14/02/2018 (di cui Split per euro 256,37) - IT001E04919531 - FORNITURA ENERGIA ELETTRICA MESE DI GENNAIO 2018 MUSEO LEONARDIANO;767;1;3;2;5;4
EDISON ENERGIA S.P.A.;15/03/2018;Energia elettrica;1.547,92;Liquidazione Fattura Nr. 5750531977  del 14/02/2018 (di cui Split per euro 279,13) - IT001E04919528 - FORNITURA ENERGIA ELETTRICA MESE DI GENNAIO 2018 PALAZZINA UZIELLI;767;1;3;2;5;4
EDISON ENERGIA S.P.A.;15/03/2018;Energia elettrica;410,52;Liquidazione Fattura Nr. 5750530171  del 14/02/2018 (di cui Split per euro 74,03) - IT001E40889726 - FORNITURA ENERGIA ELETTRICA MESE DI GENNAIO 2018 TEATRO MISERICORDIA;768;1;3;2;5;4
ACQUE S.P.A.;15/03/2018;Acqua;722,60;Liquidazione Fattura Nr. 6018012000002204  del 23/02/2018 (di cui Split per euro 65,69) - FORNITURA ACQUA ROTATORIA VIA DEI MARTIRI;777;1;3;2;5;5
ACQUE S.P.A.;15/03/2018;Acqua;662,54;Liquidazione Fattura Nr. 6018012000002203  del 23/02/2018 (di cui Split per euro 60,23) - FORNITURA ACQUA RSA;778;1;3;2;5;5
ACQUE S.P.A.;15/03/2018;Acqua;371,32;Liquidazione Fattura Nr. 6018012000002203  del 23/02/2018 (di cui Split per euro 33,76) - FORNITURA ACQUA RSA;779;1;3;2;5;5
ACQUE S.P.A.;15/03/2018;Acqua;4,94;Liquidazione Fattura Nr. 6018012000002195  del 22/02/2018 (di cui Split per euro 0,45) - FORNITURA ACQUA POTABILE PER IDRANTE VIA PROV.DI MERCATALE;777;1;3;2;5;5
ACQUE S.P.A.;15/03/2018;Acqua;805,76;Liquidazione Fattura Nr. 6018012000002147  del 22/02/2018 (di cui Split per euro 73,25) - FORNITURA ACQUA POTABILE PER SCUOLA INFANZIA SOVIGLIANA;776;1;3;2;5;5
ACQUE S.P.A.;15/03/2018;Acqua;116,65;Liquidazione Fattura Nr. 6018012000001937  del 19/02/2018 al netto di Nota: N. 6017012000004479 del 14/04/2017 di 103,47 (di cui Split per euro 10,60) - Fornitura acqua - fontanello via Pietramarina;777;1;3;2;5;5
EDISON ENERGIA S.P.A.;15/03/2018;Energia elettrica;1.092,50;Liquidazione Fattura Nr. 5750531480  del 14/02/2018 (di cui Split per euro 197,01) - IT001E40886806 - FORNITURA ENERGIA ELETTRICA MESE DI GENNAIO 2018 SCUOLA SECONDARIA 1� GRADO SOVIGLIANA;765;1;3;2;5;4
EDISON ENERGIA S.P.A.;15/03/2018;Energia elettrica;775,64;Liquidazione Fattura Nr. 5750530999  del 14/02/2018 (di cui Split per euro 139,87) - IT001E04919538 - FORNITURA ENERGIA ELETTRICA MESE DI GENNAIO 2018 SCUOLA INFANZIA SOVGIGLIANA;763;1;3;2;5;4
EDISON ENERGIA S.P.A.;15/03/2018;Energia elettrica;479,35;Liquidazione Fattura Nr. 5750530311  del 14/02/2018 (di cui Split per euro 86,44) - IT001E04919529 - FORNITURA ENERGIA ELETTRICA MESE DI GENNAIO 2018 CASA NATALE LEONARDO;767;1;3;2;5;4
EDISON ENERGIA S.P.A.;15/03/2018;Energia elettrica;611,60;Liquidazione Fattura Nr. 5750530654  del 14/02/2018 (di cui Split per euro 110,29) - IT001E04919534 - FORNITURA ENERGIA ELETTRICA MESE DI GENNAIO 2018 RESIDENZA PER ANZIANI;775;1;3;2;5;4
EDISON ENERGIA S.P.A.;15/03/2018;Energia elettrica;281,55;Liquidazione Fattura Nr. 5750530857  del 14/02/2018 (di cui Split per euro 50,77) - IT001E41412665 - FORNITURA ENERGIA ELETTRICA MESE DI GENNAIO 2018 PALASPORT;769;1;3;2;5;4
EDISON ENERGIA S.P.A.;15/03/2018;Energia elettrica;457,57;Liquidazione Fattura Nr. 5750530271  del 14/02/2018 (di cui Split per euro 82,51) - IT001E04919544 - FORNITURA ENERGIA ELETTRICA MESE DI GENNAIO 2018 NIDO COMUNALE;773;1;3;2;5;4
EDISON ENERGIA S.P.A.;15/03/2018;Energia elettrica;422,33;Liquidazione Fattura Nr. 5750530857  del 14/02/2018 (di cui Split per euro 76,16) - IT001E41412665 - FORNITURA ENERGIA ELETTRICA MESE DI GENNAIO 2018 PALASPORT;769;1;3;2;5;4
EDISON ENERGIA S.P.A.;15/03/2018;Energia elettrica;533,19;Liquidazione Fattura Nr. 5750530429  del 14/02/2018 (di cui Split per euro 96,15) - IT001E04919535 - FORNITURA ENERGIA ELETTRICA MESE DI GENNAIO 2018 SCUOLA INFANZIA VINCI;763;1;3;2;5;4
EDISON ENERGIA S.P.A.;15/03/2018;Energia elettrica;523,87;Liquidazione Fattura Nr. 5750531449  del 14/02/2018 (di cui Split per euro 94,47) - IT001E04919520 - FORNITURA ENERGIA ELETTRICA MESE DI GENNAIO 2018 SCUOLA PRIMARIA E SEC. 1� GRADO VINCI;764;1;3;2;5;4
EDISON ENERGIA S.P.A.;15/03/2018;Energia elettrica;723,18;Liquidazione Fattura Nr. 5750530889  del 14/02/2018 (di cui Split per euro 130,41) - IT001E04919521 - FORNITURA ENERGIA ELETTRICA MESE DI GENNAIO 2018 BIBLIOTECA;766;1;3;2;5;4
EDISON ENERGIA S.P.A.;15/03/2018;Energia elettrica;523,88;Liquidazione Fattura Nr. 5750531449  del 14/02/2018 (di cui Split per euro 94,47) - IT001E04919520 - FORNITURA ENERGIA ELETTRICA MESE DI GENNAIO 2018 SCUOLA PRIMARIA E SEC. 1� GRADO VINCI;765;1;3;2;5;4
UNIONE DEI COMUNI CIRCONDARIO EMPOLESE VALDELSA;16/03/2018;Trasferimenti correnti a Unioni di Comuni;3.557,50;QUOTA FONDO DOTAZIONE 2015;782;1;4;1;2;5
ENERGETIC S.P.A.;16/03/2018;Gas;146,48;saldo Liquidazione Fattura Nr. EX08112/2018  del 08/02/2018 - Servizio di fornitura Gas Naturale-PLESSO SCOLASTICO VINCI-integrazione a liquid.n.75 del 05/03/2018;780;1;3;2;5;6
ENERGETIC S.P.A.;16/03/2018;Gas;146,48;saldo Liquidazione Fattura Nr. EX08112/2018  del 08/02/2018 - Servizio di fornitura Gas Naturale-PLESSO SCOLASTICO VINCI-integrazione a liquid.n.75 del 05/03/2018;781;1;3;2;5;6
ENERGRID S.R.L.;19/03/2018;Energia elettrica;19.251,07;Liquidazione Fattura Nr. 184004735  del 19/02/2018 (di cui Split per euro 3.471,50) - FORNITURA ENERGIA ELETTRICA P.I. - MESE DICEMBRE 2017;784;1;3;2;5;4
ENERGRID S.R.L.;19/03/2018;Energia elettrica;26.125,34;Liquidazione Fattura Nr. 184004735  del 19/02/2018 (di cui Split per euro 4.711,13) - FORNITURA ENERGIA ELETTRICA P.I. - MESE DICEMBRE 2017;783;1;3;2;5;4
I PINI S.RL.;19/03/2018;Beni per consultazioni elettorali;450,00;Liquidazione Fattura Nr. FATTPA 2_18 del 13/02/2018 - FORNITURA LEGNAME PER RISTRUTTURAZIONE TABELLONI DI PROPAGANDA ELETTORALE;787;1;3;1;2;10
INCISIONE ARTE SNC;19/03/2018;Carta, cancelleria e stampati;219,60;"IVA LIQUIDAZIONE FATTURA NR. 1/PA  DEL 04/05/2017 (DI CUI SPLIT PER EURO 219,60) - ACQUISTO DI N. 70 QUADRETTI DELL'ARTISTA GIULIANO GRITTINI INTITOLATI ""IL CAVALLO DI LEONARDO DA VINCI"" - IMPEGNO DI SPESA";785;1;3;1;2;1
INCISIONE ARTE SNC;19/03/2018;Carta, cancelleria e stampati;998,20;"Liquidazione Fattura Nr. 1/PA  del 04/05/2017 - ACQUISTO DI N. 70 QUADRETTI DELL'ARTISTA GIULIANO GRITTINI INTITOLATI ""IL CAVALLO DI LEONARDO DA VINCI"" - IMPEGNO DI SPESA";785;1;3;1;2;1
I PINI S.RL.;19/03/2018;Beni per consultazioni elettorali;2.600,00;Liquidazione Fattura Nr. FATTPA 2_18 del 13/02/2018 - FORNITURA LEGNAME PER RISTRUTTURAZIONE TABELLONI DI PROPAGANDA ELETTORALE;786;1;3;1;2;10
AMMINISTRATORI COMUNALI;20/03/2018;Organi istituzionali dell'amministrazione - Rimborsi ;9,00;RIMBORSO SPESE DI VIAGGIO AMMINISTRATORI;1072;1;3;2;1;2
AMMINISTRATORI COMUNALI;20/03/2018;Organi istituzionali dell'amministrazione - indennit�;8.330,37;stipendio 03;899;1;3;2;1;1
PERSONALE DIPENDENTE SEDE;20/03/2018;indennit� di missione e di trasferta;39,60;stipendio 03;845;1;3;2;2;2
PERSONALE DIPENDENTE SEDE;20/03/2018;Rimborso per viaggio e trasloco;183,04;stipendio 03;827;1;3;2;2;1
PERSONALE DIPENDENTE SEDE;20/03/2018;indennit� di missione e di trasferta;25,45;stipendio 03;871;1;3;2;2;2
ARAMINI CAMILLA;23/03/2018;Altre spese per consultazioni elettorali dell'ente;145,00;ELEZIONI POLITICHE 4 MARZO 2018 - COMPENSO PER I COMPONENTI DI SEGGIO - IMPEGNO DI SPESA;1076;1;3;2;99;4
ANGELUCCI MARCO;23/03/2018;Altre spese per consultazioni elettorali dell'ente;145,00;ELEZIONI POLITICHE 4 MARZO 2018 - COMPENSO PER I COMPONENTI DI SEGGIO - IMPEGNO DI SPESA;1075;1;3;2;99;4
DE BLASIO JESSICA;23/03/2018;Altre spese per consultazioni elettorali dell'ente;145,00;ELEZIONI POLITICHE 4 MARZO 2018 - COMPENSO PER I COMPONENTI DI SEGGIO - IMPEGNO DI SPESA;1081;1;3;2;99;4
BERTINI MATTIA;23/03/2018;Altre spese per consultazioni elettorali dell'ente;145,00;ELEZIONI POLITICHE 4 MARZO 2018 - COMPENSO PER I COMPONENTI DI SEGGIO - IMPEGNO DI SPESA;1077;1;3;2;99;4
BOLDRINI MONICA;23/03/2018;Altre spese per consultazioni elettorali dell'ente;145,00;ELEZIONI POLITICHE 4 MARZO 2018 - COMPENSO PER I COMPONENTI DI SEGGIO - IMPEGNO DI SPESA;1078;1;3;2;99;4
BUSCIONI MASSIMO;23/03/2018;Altre spese per consultazioni elettorali dell'ente;145,00;ELEZIONI POLITICHE 4 MARZO 2018 - COMPENSO PER I COMPONENTI DI SEGGIO - IMPEGNO DI SPESA;1079;1;3;2;99;4
BUSCIONI MAURIZIO;23/03/2018;Altre spese per consultazioni elettorali dell'ente;145,00;ELEZIONI POLITICHE 4 MARZO 2018 - COMPENSO PER I COMPONENTI DI SEGGIO - IMPEGNO DI SPESA;1080;1;3;2;99;4
DESIDERI SARA;23/03/2018;Altre spese per consultazioni elettorali dell'ente;145,00;ELEZIONI POLITICHE 4 MARZO 2018 - COMPENSO PER I COMPONENTI DI SEGGIO - IMPEGNO DI SPESA;1082;1;3;2;99;4
ULIVELLI MARCO;23/03/2018;Altre spese per consultazioni elettorali dell'ente;145,00;ELEZIONI POLITICHE 4 MARZO 2018 - COMPENSO PER I COMPONENTI DI SEGGIO - IMPEGNO DI SPESA;1088;1;3;2;99;4
IANNUZZI MATTIA;23/03/2018;Altre spese per consultazioni elettorali dell'ente;187,00;ELEZIONI POLITICHE 4 MARZO 2018 - COMPENSO PER I COMPONENTI DI SEGGIO - IMPEGNO DI SPESA;1083;1;3;2;99;4
LEPORATTI LORENZO;23/03/2018;Altre spese per consultazioni elettorali dell'ente;145,00;ELEZIONI POLITICHE 4 MARZO 2018 - COMPENSO PER I COMPONENTI DI SEGGIO - IMPEGNO DI SPESA;1084;1;3;2;99;4
MAESTRINI VITTORIA;23/03/2018;Altre spese per consultazioni elettorali dell'ente;145,00;ELEZIONI POLITICHE 4 MARZO 2018 - COMPENSO PER I COMPONENTI DI SEGGIO - IMPEGNO DI SPESA;1085;1;3;2;99;4
MENICHETTI PAOLA;23/03/2018;Altre spese per consultazioni elettorali dell'ente;145,00;ELEZIONI POLITICHE 4 MARZO 2018 - COMPENSO PER I COMPONENTI DI SEGGIO - IMPEGNO DI SPESA;1086;1;3;2;99;4
SANTINI ELISABETTA;23/03/2018;Altre spese per consultazioni elettorali dell'ente;145,00;ELEZIONI POLITICHE 4 MARZO 2018 - COMPENSO PER I COMPONENTI DI SEGGIO - IMPEGNO DI SPESA;1087;1;3;2;99;4
ZOMBINI GABRIELLA;23/03/2018;Altre spese per consultazioni elettorali dell'ente;145,00;ELEZIONI POLITICHE 4 MARZO 2018 - COMPENSO PER I COMPONENTI DI SEGGIO - IMPEGNO DI SPESA;1089;1;3;2;99;4
COLORIFICIO CAPPELLI  DI STEFANO CAPPELLI;27/03/2018;Altri beni e materiali di consumo n.a.c.;30,00;Liquidazione Fattura Nr. 19/E  del 31/12/2017 (di cui Split per euro 5,41) - FORNITURA DI  PRODOTTI PER VARI INTERVENTI DI MANUTENZIONE PRESSO SCUOLE E PARCHI GIOCHI  _ DETERMINA A CONTRARRE E AFFIDAMENTO DITTA COLORIFICIO CAPPELLI DI STEFA;1101;1;3;1;2;999
INFORDATA SPA;27/03/2018;Postazioni di lavoro;348,51;Liquidazione Fattura Nr. 260  del 21/02/2018 (di cui Split per euro 62,85) - Fatturazione pro quota della mandataria pari al 55,00 % delcorrispettivo contrattuale;1096;2;2;1;7;2
BELLUCCI SPA;27/03/2018;Postazioni di lavoro;285,15;Liquidazione Fattura Nr. 4/163  del 31/01/2018 (di cui Split per euro 51,42) - VEND.A COLLAUDO;1096;2;2;1;7;2
RC RADIOCOMUNICAZIONI S.R.L.;27/03/2018;Manutenzione ordinaria e riparazioni di impianti e macchinari;4.148,00;Liquidazione Fattura Nr. 5-E  del 31/01/2018 (di cui Split per euro 748,00) - ASSISTENZA PREVENTIVA DEL SISTEMA DI VIDEO SORVEGLIANZA URBANO - MEPA;1093;1;3;2;9;4
RC RADIOCOMUNICAZIONI S.R.L.;27/03/2018;Manutenzione ordinaria e riparazioni di impianti e macchinari;502,64;Liquidazione Fattura Nr. 5-E  del 31/01/2018 (di cui Split per euro 90,64) - ASSISTENZA PREVENTIVA DEL SISTEMA DI VIDEO SORVEGLIANZA URBANO - MEPA;1092;1;3;2;9;4
COLORIFICIO CAPPELLI  DI STEFANO CAPPELLI;27/03/2018;Altri beni e materiali di consumo n.a.c.;50,00;Liquidazione Fattura Nr. 19/E  del 31/12/2017 (di cui Split per euro 9,02) - FORNITURA DI  PRODOTTI PER VARI INTERVENTI DI MANUTENZIONE PRESSO SCUOLE E PARCHI GIOCHI  _ DETERMINA A CONTRARRE E AFFIDAMENTO DITTA COLORIFICIO CAPPELLI DI STEFA;1100;1;3;1;2;999
ELMAS S.R.L.;27/03/2018;Musei, teatri e biblioteche;4.635,99;Liquidazione Fattura Nr. 008  del 26/01/2018 (di cui Split per euro 836,00) - Istallazione impianto allarme-det.307 del 23/11/2017;1104;2;2;1;9;18
COLORIFICIO CAPPELLI  DI STEFANO CAPPELLI;27/03/2018;Altri beni e materiali di consumo n.a.c.;994,12;Liquidazione Fattura Nr. 19/E  del 31/12/2017 (di cui Split per euro 179,26) - FORNITURA DI  PRODOTTI PER VARI INTERVENTI DI MANUTENZIONE PRESSO SCUOLE E PARCHI GIOCHI  _ DETERMINA A CONTRARRE E AFFIDAMENTO DITTA COLORIFICIO CAPPELLI DI STE;1103;1;3;1;2;999
AUTOGAMMA SNC DI LETTIERI FABIO & C.;27/03/2018;Equipaggiamento;1.000,00;Liquidazione Fattura Nr. 19  del 13/12/2017 (di cui Split per euro 180,33) - FORNITURA VESTIARIO E DPI;1098;1;3;1;2;3
OFFICE DEPOT ITALIA SRL;27/03/2018;Carta, cancelleria e stampati;255,08;Liquidazione Fattura Nr. 1600514  del 20/02/2018 (di cui Split per euro 46,00) - ACQUISTO FALDONI PER ARCHIVIAZIONE PRATICHE DELL'ENTE-DETERMINAZIONE DI AFFIDAMENTO;1095;1;3;1;2;1
COOPERATIVA SOCIALE ZOE S.C.A.R.L.;27/03/2018;Servizi di pulizia e lavanderia;1.370,45;Liquidazione Fattura Nr. FATTPA 428_17  del 31/12/2017 (di cui Split per euro 247,13) - PULIZIA PALESTRE DICEMBRE 2017;1090;1;3;2;13;2
AUTOGAMMA SNC DI LETTIERI FABIO & C.;27/03/2018;Equipaggiamento;895,91;Liquidazione Fattura Nr. 19  del 13/12/2017 (di cui Split per euro 161,55) - FORNITURA VESTIARIO E DPI;1099;1;3;1;2;3
AUTOGAMMA SNC DI LETTIERI FABIO & C.;27/03/2018;Equipaggiamento;1.000,00;Liquidazione Fattura Nr. 19  del 13/12/2017 (di cui Split per euro 180,33) - FORNITURA VESTIARIO E DPI;1097;1;3;1;2;3
COOPERATIVA SOCIALE ZOE S.C.A.R.L.;27/03/2018;Servizi di pulizia e lavanderia;1.698,17;Liquidazione Fattura Nr. FATTPA 372_17  del 30/11/2017 (di cui Split per euro 306,23) - PULIZIA PALESTRE NOVEMBRE 2017;1090;1;3;2;13;2
OFFICE DEPOT ITALIA SRL;27/03/2018;Carta, cancelleria e stampati;46,70;Liquidazione Fattura Nr. 1596116  del 07/02/2018 (di cui Split per euro 8,42) - ACQUISTO MATERIALE VARIO DI CANCELLERIA PER GLI UFFICI MEDIANTE AFFIDAMENTO DIRETTO;1094;1;3;1;2;1
ORDINE DEGLI INGEGNERI  DELLA PROVINCIA DI  PISA;27/03/2018;Acquisto di servizi per altre spese per formazione e addestramento n.a.c.;10,00;Liquidazione Fattura Nr. 1 PA  del 12/02/2018 - CORSO 'PROGETTARE E PIANIFICARE LE RETI CICLABILI' PARTECIPANTE CLAUDIA PERUZZI;1091;1;3;2;4;999
O.E.S. OFFICINE ELETTROMECCANICHE SIGNESI SRL;27/03/2018;Manutenzione ordinaria e riparazioni di beni immobili;976,00;Liquidazione Fattura Nr. 1/PE  del 08/05/2017 (di cui Split per euro 176,00) - PER LAVORI DI RIPARAZIONE OROLOGIO PROGRAMMATORE PER IMPIANTO CAMPANARIO-TORRE CASTELLO CONTI GUIDI;1102;1;3;2;9;8
COMUNE DI MONTELUPO FIORENTINO;28/03/2018;Trasferimenti correnti a Comuni;95,00;QUOTA PARTE BIGLIETTO UNICO DEL SISTEMA MUSEALE MUSEO DIFFUSO EMPOLESE VALDELSA (DET.161/2017 SETT.5);1109;1;4;1;2;3
FONDAZIONE TOSCANA SPETTACOLO ONLUS;28/03/2018;Quote di associazioni;1.032,91;quota adesione anno 2018;1108;1;3;2;99;3
ASSOCIAZIONE MUS.E;28/03/2018;Quote di associazioni;1.000,00;quota adesione anno 2018;1108;1;3;2;99;3
I PINI S.RL.;28/03/2018;Beni per consultazioni elettorali;2.052,04;Liquidazione Fattura Nr. FATTPA 1_18 del 31/01/2018 - DETERMINA A CONTRARRE E AFFIDAMENTO DIRETTO ART. 36 COMMA 2 LETT. A) DLGS 50/2016 DELLA FORNITURA DI LEGNAME PER RISTRUTTURAZIONE TABELLONI PER LA PROPAGANDA ELETTORALE ELEZIONI POLITICH;1105;1;3;1;2;10
COLORIFICIO CAPPELLI  DI STEFANO CAPPELLI;28/03/2018;Altri beni e materiali di consumo n.a.c.;529,11;Liquidazione Fattura Nr. 24/E del 31/12/2017 - Fornitura generica;1107;1;3;1;2;999
ANGELINO S.R.L.;28/03/2018;Contratti di servizio di trasporto scolastico;35.717,26;Liquidazione Fattura Nr. 00066P  del 28/02/2018 (di cui Split per euro 3.247,02) - SERVIZIO TRASPORTO SCOLASTICO MESE DI FEBBRAIO 2018;1106;1;3;2;15;2
